{"text_format":"1","workbook":"xlsx","n_sheets":1,"sheets":["ورقة1"],"not_rendered":{"charts":0,"images":3,"macros":1,"external_links":0,"defined_names":5,"comments":1,"pivot_tables":0},"unopened":[],"bounds":{"document_bytes":16777216,"sheet_cells":100000,"rows_first":2000,"rows_last":500,"rows_between":2000,"halvings":0,"cell_chars":16384,"cell_head_chars":4096},"cells_cut":0,"cells_raw":0,"read":"whole","date_system":"1900"}

{"sheet":"ورقة1","index":0,"n_rows":1048536,"n_cols":11,"rows_kept":4500,"cut":true,"hidden":false,"merged":[[1,1,3,8],[0,9,8,10],[5,3,6,3],[5,5,6,5],[5,7,6,7],[7,1,8,4],[0,1,0,2],[4,1,4,2]],"bounds":{"rows_first":2000,"rows_last":500,"rows_between":2000,"halvings":0}}
[]
[null,"المركز التسويقي لمنتسبي وزارة الداخلية"]
[]
[]
[]
[null,null,null,{"$f":"SUBTOTAL(9,B:B)","v":38179149},null,{"$f":"SUBTOTAL(9,C:C)","v":{"$error":"#VALUE!"}},null,{"$f":"SUBTOTAL(9,E:E)","v":509885.5}]
[]
[]
[]
["الاسم الكامل","المبلغ الكلي","المبلغ المتبقي","المادة","الاستقطاع الشهري","عدد الأشهر","الدائرة","التاريخ ","القسط الأول","القسط الثاني","القسط الثالث"]
["عزيز حامد عبد الباقي عبد العزيز",5000,5000,"تكتك احمر",500,{"$f":"B11/E11","v":10},"مديرية حماية المنشات","2018-04-26","تم التسديد"]
["عدنان نعيم حنا",6000,500,"تكتك احمر",500,12,"مديرية نفط الوسط","2018-04-26"]
["حسين جبار لعيبي خلف",660000,660,"سبلت 2 طن",110,6,"حرس الحدود","2018-04-26"]
["ثائر عباس عزيز علي",1500,{"$f":"B14-I14","v":1500},"سبلت 3 طن",150,10,"الشرطة الاتحادية ف2","2018-04-26"]
["زهير ناصر هادي كاظم",3000,{"$f":"B15-I15","v":3000},"سبلت 3 طن",300,10,"الشرطة الاتحادية فوج المغاوير","2018-04-26"]
["خالد فاضل علي ديوان الاسدي",175,175,"براد ماء",44,4,"الشرطة الاتحادية فق 1","2018-04-26"]
["حسين صالح سويد محمد العبسي",175,175,"براد ماء",44,4,"الشرطة الاتحادية فق1 الفوج الالي","2018-04-26"]
["زهير ناصر هادي كاظم",1500,1500,"سبلت 3 طن",150,10,"الشرطة الاتحادية فوج المغاوير","2018-04-26"]
["مجدي عباس فاضل عباس",1540,1540,"سبلت 3 طن",220,7,"الشرطة الاتحادية ل 3 ف3","2018-04-28"]
["حسين جبار لعيبي خلف",700000,700000,"سبلت 2 طن",100,7,"حرس الحدود","2018-04-28"]
["حسين جبار لعيبي خلف",175,175,"براد ماء",44,4,"حرس الحدود","2018-04-28"]
["سعد عزيز حمودي كاظم السعيدي",1500,1500,"سبلت 3 طن",150,10,"مديرية شؤون السيطرات","2018-04-28"]
["سعد عزيز حمودي كاظم السعيدي",800,800,"سبلت 2 طن",100,8,"مديرية شؤون السيطرات","2018-04-28"]
["نصير صادق جعفر عوده علي",300000,300000,"طباخ 4 شعلة",50,6,"الشرطة الاتحادية فق 6","2018-04-28"]
["نصير صادق جعفر عوده علي",250000,250000,"ميز طعام",50,5,"الشرطة الاتحادية فق 6","2018-04-28"]
["محمد مهدي سليم حسين الزيداوي",3000000,3000000,"سبلت 3 طن",300,10,"حماية المنشأت","2018-04-28"]
["بشير سلمان شكاصي",3000000,3000000,"سبلت 3 طن",300,10,"حماية المنشأت","2018-04-28"]
["علي اسماعيل عبد الحسن",770000,770000,"ثلاجة 18",110,7,"حرس الحدود","2018-04-28"]
["حيدر محمد رشيد محمد",900000,900000,"سبلت 2 طن",100,9,"حرس الحدود","2018-04-28"]
["حسين علي حسين غضبان ",250,{"$error":"#VALUE!"},"طباخ 4 شعلة",50,6,"مديرية الإدارة والميرة ش.أ","2018-04-28","تم التسديد"]
["نصير صادق جعفر عوده علي",3600,3600,"سبلت 2 طن",400,9,"الشرطة الاتحادية فق 6","2018-04-28"]
["علاء ستار شاوي حمود",440000,{"$error":"#VALUE!"},"سبلت 2 طن",110,7,"مديرية شرطة النجدة","2018-04-28","تم التسديد","تم التسديد"]
["علاء ستار شاوي حمود",200000,{"$error":"#VALUE!"},"بلازمة 43",100,5,"مديرية شرطة النجدة","2018-04-28","تم التسديد","تم التسديد"]
["عبدالرزاق مطرود زناد سعيد",180000,180000,"براد ماء",45,4,"الشرطة الاتحادية فق 1 ل3 ف 2","2018-04-28"]
["محمد سعدي عبد الرسول نجم",1750000,1750000,"سبلت 3 طن",175,10,"الشرطة الاتحادية ل 8 ف 2","2018-04-28"]
["محمد سعدي عبد الرسول نجم",600000,600000,"طباخ 4 شعلة",100,6,"الشرطة الاتحادية ل 8 ف 2","2018-04-28"]
["سيف جعفر جبار عبد رمضان",600000,600000,"ثلاجة 14",100,6,"الشرطة الاتحادية فق 1 ل2 ف 2","2018-04-28"]
["اكرم عباس حسين راضي",600000,600000,"طباخ 5 شعلة",100,6,"الشرطة الاتحادية فق2 ف2","2018-04-28"]
["احمد محمد زوبري حمد",2700,{"$error":"#VALUE!"},"سبلت 3 طن",300,10,"حماية المنشأت","2018-04-28","تم التسديد"]
["احمد محمد زوبري حمد",450,{"$error":"#VALUE!"},"طباخ 5 شعلة",100,6,"حماية المنشأت","2018-04-28","تم التسديد"]
["محمد عبدالقادر خماس إبراهيم",1500000,1500000,"سبلت 3 طن",150,10,"الشرطة الاتحادية الدعم اللوجستي","2018-04-28"]
["اياد كايت رحمن عبد",900,900,"سبلت 2 طن",100,9,"الشرطة الاتحادية فق1 ل 3 ف 3","2018-04-28"]
["اياد كايت رحمن عبد",180,180,"براد ماء",45,4,"الشرطة الاتحادية فق1 ل 3 ف 3","2018-04-28"]
["حيدر علي عبد غافل التميمي",2975,{"$error":"#VALUE!"},"سبلت 3 طن",350,10,"حماية المنشأت","2018-04-28","تم التسديد"]
["رفعت عيسى حبيب جاسم",900000,900000,"سبلت 2 طن",100,9,"الشرطة الاتحادية مقر القيادة","2018-04-29"]
["محمد عبد الكريم خلف فرج",1500000,1500000,"سبلت 3 طن",150,10,"الشرطة الاتحادية مقر قيادة الاعلام","2018-04-29"]
["محمد عبد الكريم خلف فرج",900000,900000,"سبلت 2 طن",100,9,"الشرطة الاتحادية مقر قيادة الاعلام","2018-04-29"]
["محمد عبد الكريم خلف فرج",180000,180000,"براد ماء",45,4,"الشرطة الاتحادية مقر قيادة الاعلام","2018-04-29"]
["محمد عبد الكريم خلف فرج",250,250,"شاشة 32",50,5,"الشرطة الاتحادية مقر قيادة الاعلام","2018-04-29"]
["ماهر كريم عبد الزهرة رحيمة",5250000,5250000,"سبلت 3 طن",525,10,"شرطة اتحادية النسور","2018-04-29"]
["باسم محمد كرم عزيز",700000,700000,"غسالة سامسونج",100,7,"الشرطة الاتحادية فق1 ل2 ف 1","2018-04-29"]
["باسم محمد كرم عزيز",600000,600000,"شاشة 55",100,6,"الشرطة الاتحادية فق1 ل2 ف 1","2018-04-29"]
["كرار حسن عبد مسلم الربيعي",600000,600000,"بلازمة 55",100,6,"عمليات الوزارة","2018-04-29"]
["كرار حسن عبد مسلم الربيعي",450,450,"بلازمة 43",90,5,"عمليات الوزارة","2018-04-29"]
["عزيز حامد عبد الباقي عبد العزيز",510,{"$error":"#VALUE!"},"سبلت 2 طن",100,7,"مديرية حماية المنشات","2018-04-29","تم التسديد"]
["فريد مجيد احمد حسين",900000,900000,"بلازمة 43",180,5,"الشرطة الاتحادية ف 1","2018-04-29"]
["عقبة مطلك بدر لازم الساعدي",2400,{"$error":"#VALUE!"},"غرفة نوم",300,10,"مديرية حماية السفارات","2018-04-29","تم التسديد"]
["عقبة مطلك بدر لازم الساعدي",270,{"$error":"#VALUE!"},"شاشة 34",90,5,"مديرية حماية السفارات","2018-04-29","تم التسديد"]
["عقبة مطلك بدر لازم الساعدي",50,{"$error":"#VALUE!"},"طباخ 4 شعلة",50,6,"مديرية حماية السفارات","2018-04-29","تم التسديد"]
["عقبة مطلك بدر لازم الساعدي",150,{"$error":"#VALUE!"},"ميز طعام",50,5,"مديرية حماية السفارات","2018-04-29","تم التسديد"]
["علي حسين زيدان مطلك الجابري",4500000,4500000,"سبلت 2 طن",500,9,"فوج طوارئ بغداد","2018-04-29"]
["حيدر رحيم حسين كاظم العامري",1275,{"$error":"#VALUE!"},"سبلت 3 طن",150,10,"مديرية حماية المنشات","2018-04-29","تم التسديد"]
["حيدر رحيم حسين كاظم العامري",750,{"$error":"#VALUE!"},"سبلت 2 طن",100,9,"مديرية حماية المنشات","2018-04-29","تم التسديد"]
["علي شهيد غانم بريسم البلحاوي",1275,{"$error":"#VALUE!"},"سبلت 3 طن",150,10,"مديرية حماية المنشات","2018-04-29","تم التسديد"]
["علي شهيد غانم بريسم البلحاوي",750,{"$error":"#VALUE!"},"سبلت 2 طن",100,9,"مديرية حماية المنشات","2018-04-29","تم التسديد"]
["علي شهيد غانم بريسم البلحاوي",225,{"$error":"#VALUE!"},"مبردة إيراني",50,6,"مديرية حماية المنشات","2018-04-29","تم التسديد"]
["ابراهيم محمد شوكت عبد الحميد",1275,{"$error":"#VALUE!"},"سبلت 3 طن",150,10,"مديرية حماية المنشات","2018-04-29","تم التسديد"]
["ابراهيم محمد شوكت عبد الحميد",750,{"$error":"#VALUE!"},"سبلت 2 طن",100,9,"مديرية حماية المنشات","2018-04-29","تم التسديد"]
["وسام علي إبراهيم حمود الجنابي",2250,{"$error":"#VALUE!"},"سبلت 2 طن",300,9,"حماية المنشات والشخصيات","2018-04-29","تم التسديد"]
["عماد موحي حسن هوزي",900000,900000,"سبلت 2 طن",100,9,"حماية السفارات","2018-04-29"]
["عقيل ستار شاوي حمود الساعدي",400000,{"$error":"#VALUE!"},"ثلاجة 16",100,7,"مديرية شرطة النجدة","2018-04-29","تم التسديد","تم التسديد"]
["فواز موفق شرقي رزوقي",700000,700000,"سبلت 2 طن",100,7,"الشرطة الاتحادية اللواء الالي","2018-04-29"]
["حيدر هادي سلمان عبد الرزاق",700000,700000,"سبلت 2 طن",100,7,"مديرية شرطة ديالى","2018-04-29"]
["علي حسن عبود جارالله الخفاجي",3500,3500,"سبلت 3 طن",350,10,"قيادة شرطة بغداد","2018-04-29"]
["طاهر عطاء تقي عبود السراي",550,{"$error":"#VALUE!"},"ثلاجة 18",110,7,"شرطة اتحادية فق 1","2018-04-29","تم التسديد","تم التسديد"]
["خليل إبراهيم جخيور علي فرحان",600,{"$error":"#VALUE!"},"سبلت 2 طن",400,9,"حماية الشخصيات","2018-04-29","تم التسديد"]
["خليل إبراهيم جخيور علي فرحان",550,{"$f":"B77-I77","v":{"$error":"#VALUE!"}},"غسالة سامسونج",100,7,"حماية الشخصيات","2018-04-29","تم التسديد"]
["محمد مهدي سليم حسين",1540,1540,"ثلاجة 18",220,7,"حماية الشخصيات","2018-04-29"]
["سيف سعدي عبد جاسم",900,900,"سبلت 2 طن",100,9,"مكتب الوزير التدقيق المركزي","2018-04-29"]
["سيف سعدي عبد جاسم",500,500,"بلازمة 43",100,5,"مكتب الوزير التدقيق المركزي","2018-04-29"]
["حسين جبار لعيبي خلف",1000,1000,"شاشة 43",200,5,"حرس الحدود","2018-04-29"]
["حيدر محمد كاظم حسن العامري",3000,3000,"سبلت 3 طن",300,10,"حماية المنشأت","2018-04-29"]
["عزيز عبدالحمزة عزيز محمد ",4500,4500,"تكتك احمر",410,11,"فوج طوارئ بغداد","2018-04-29"]
["سعد عبدالرزاق مجيد حبيب",750,750,"مبردة إيراني",150,5,"حماية المنشأت","2018-04-29"]
["سعد عبدالرزاق مجيد حبيب",700,700,"ثلاجة 16",100,7,"حماية المنشأت","2018-04-29"]
["سعد عبدالرزاق مجيد حبيب",180,180,"براد ماء",45,4,"حماية المنشأت","2018-04-29"]
["احمد حسين جلوب دلي اللامي",1200,1200,"شاشة 55",200,6,"الشرطة الاتحادية القيادة","2018-04-29"]
["محمد عبد الزهرة محيسن حلو ",450,{"$error":"#VALUE!"},"طباخ 5 شعلة",100,6,"حماية المنشأت","2018-04-29","تم التسديد"]
["علي عبد العزيز فليح حسن",1000,1000,"شاشة 43",200,5,"الشرطة الاتحادية فق 6","2018-04-29"]
["فراس علي حسين علي العبيدي",1500,1500,"سبلت 3 طن",150,10,"قيادة شرطة صلاح الدين","2018-04-29"]
["فراس علي حسين علي العبيدي",770,770,"ثلاجة 18",110,7,"قيادة شرطة صلاح الدين","2018-04-29"]
["فراس علي حسين علي العبيدي",500,500,"شاشة 32",100,5,"قيادة شرطة صلاح الدين","2018-04-29"]
["فراس علي حسين علي العبيدي",770,770,"ثلاجة 18",110,7,"قيادة شرطة صلاح الدين","2018-04-29"]
["صالح خلف حمود جليهم ",4500,4500,"سبلت 3 طن",450,10,"الشرطة الاتحادية مقر القيادة","2018-04-29"]
["علي شرقي جبر حسن اللامي",3000,3000,"سبلت 3 طن",300,10,"قيادة شرطة بغداد شؤون السيطرات","2018-04-29"]
["عباس علي عويلي برهان",600,600,"شاشة 32",100,6,"الشرطة الاتحادية فق 6","2018-04-29"]
["حسام خزعل فيصل عبود",4500,4500,"تكتك احمر",450,10,"فوج طوارئ بغداد","2018-04-29"]
["صدام فاضل قاسم",3150,3150,"سبلت 3 طن",350,10,"حرس الحدود","2018-04-29"]
["علي مهدي رحيمه فهد",3500,3500,"سبلت 3 طن",350,10,"الشرطة الاتحادية فق1","2018-04-29"]
["علي مهدي رحيمه فهد",700,700,"غسالة سامسونج",100,7,"الشرطة الاتحادية فق1","2018-04-29"]
["سعد عزيز حمودي كاظم السعيدي",1750,1750,"سبلت 3 طن",175,10,"شؤن السيطرات","2018-04-29"]
["سعد عزيز حمودي كاظم السعيدي",600,600,"شاشة 55",100,6,"شؤن السيطرات","2018-04-29"]
["احمد كنكر مجور ساري",3500,3500,"تكتك اصفر",350,10,"الشرطة الاتحادية فق 1","2018-04-29"]
["فريد مجيد احمد حسين",1750,1750,"سبلت 3 طن",175,10,"الشرطة الاتحادية فوج المغاوير","2018-04-29"]
["حسين موسى عبد المهدي",1750,1750,"سبلت 3 طن",175,10,"وكالة شؤون الشرطة ","2018-04-29"]
["حسين موسى عبد المهدي",1750,1750,"سبلت 3 طن",175,10,"وكالة شؤون الشرطة ","2018-04-29"]
["حسين موسى عبد المهدي",1750,1750,"سبلت 3 طن",175,10,"وكالة شؤون الشرطة ","2018-04-29"]
["صاحب محسن راضي كعيد",200,{"$error":"#VALUE!"},"ميز طعام",50,5,"حماية المنشأت","2018-04-29","تم التسديد"]
["خالد وليد عبدالله أنور",300,300,"مبردة إيراني",50,6,"الشرطة الاتحادية فق 1 ف 1","2018-04-29"]
["خالد وليد عبدالله أنور",600,600,"شاشة 55",100,6,"الشرطة الاتحادية فق 1 ف 1","2018-04-29"]
["رضا فرحان جعفر محمد",3500,3500,"سبلت 3 طن",350,10,"شؤن السيطرات","2018-04-29"]
["سيف سعدي عبد جاسم",600,600,"شاشة 55",100,6,"مكتب الوزير التدقيق المركزي","2018-04-29"]
["بشير عبدالله محمد خليل",10000,10000,"عرض زواج",500,20,"الشرطة الاتحادية فق 2 ل8 ف 2","2018-04-29"]
["محمد سعدي عبد الرسول نجم",600,600,"شاشة 55",100,6,"الشرطة الاتحادية فق 1 ل 8 ف 2","2018-04-29"]
["محمد سعدي عبد الرسول نجم",800,800,"غسالة سامسونج",100,8,"الشرطة الاتحادية فق 1 ل 8 ف 2","2018-04-29"]
["حسين جبار لعيبي خلف",600,600,"شاشة 55",100,6,"حرس الحدود","2018-04-29"]
["احمد حسين جلوب دلي",600,600,"شاشة 55",100,6,"الشرطة الاتحادية القيادة","2018-05-01"]
["ناطق هاشم مهدي فهد",3000,3000,"سبلت 3 طن",300,10,"الشرطة الاتحادية فق 1","2018-05-01"]
["فواز موفق شرقي رزوقي",180,180,"براد ماء",45,4,"الشرطة الاتحادية اللواء الالي","2018-05-20"]
["فواز موفق شرقي رزوقي",250,250,"ميز طعام",50,5,"الشرطة الاتحادية اللواء الالي","2018-05-20"]
["صالح خلف حمود جليهم ",450,450,"شاشة 55",90,5,"الشرطة الاتحادية قسم الميرة","2018-05-21"]
["صاحب محسن راضي كعيد",332,{"$error":"#VALUE!"},"طباخ 5 شعلة",84,6,"حماية المنشأت","2018-05-21","تم التسديد"]
["قاسم عبد الأمير كاظم عبدالله",2700,{"$error":"#VALUE!"},"غرفة نوم",300,10,"الشرطة الاتحادية كتيبة الراجمات","2018-05-21","تم التسديد"]
["محمود زرعود سلوم فرحان",3000,3000,"سبلت 3 طن",300,10,"الشرطة الاتحادية فق 1","2018-05-21"]
["محمود زرعود سلوم فرحان",600,600,"شاشة 55",100,6,"الشرطة الاتحادية فق 1","2018-05-21"]
["حيدر كوطي ندى الدراجي",600,600,"طباخ 5 شعلة",100,6,"مديرية الشرطة القضائية","2018-05-21"]
["حيدر كوطي ندى الدراجي",800,800,"غسالة سامسونج",100,8,"مديرية الشرطة القضائية","2018-05-21"]
["حيدر كوطي ندى الدراجي",900,900,"سبلت 2 طن",100,9,"مديرية الشرطة القضائية","2018-05-19"]
["محمد جنيد معروف مرهون حسن",3500,3500,"سبلت 3 طن",350,10,"الشرطة الاتحادية فق 1 ف3","2018-05-21"]
["محمد نصيف كرين لفتة ",3500,3500,"سبلت 3 طن",350,10,"الشرطة الاتحادية فق 1ل 2 ف 2","2018-05-19"]
["علي حسين محي رسن",3500,3500,"سبلت 3 طن",350,10,"الشرطة الاتحادية فق1 ل 3 ف 3","2018-05-19"]
["مشتاق داوود سليمان مجيد",3500,3500,"سبلت 3 طن",350,10,"حرس الحدود","2018-05-21"]
["علي شرقي جبر حسن",1750,1750,"سبلت 3 طن",175,10,"شؤون السيطرات","2018-05-21"]
["مشتاق داوود سليمان مجيد",1750,1750,"سبلت 3 طن",175,10,"حرس الحدود","2018-05-21"]
["اياد سامي فياض حاتم",4500,4500,"تكتك احمر",450,10,"فوج طوارئ بغداد","2018-05-21"]
["محمد قاسم عبد الحسن مهدي",3150,{"$error":"#VALUE!"},"سبلت 3 طن",450,10,"فرقة التدخل السريع","2018-05-19","تم التسديد","تم التسديد"]
["احمد مانع فلاح ايلوي",1800,{"$error":"#VALUE!"},"سبلت 3 طن",300,9,"فرقة التدخل السريع","2018-05-19","تم التسديد","تم التسديد"]
["احمد مانع فلاح ايلوي",500,{"$error":"#VALUE!"},"غسالة سامسونج",100,8,"فرقة التدخل السريع","2018-05-21","تم التسديد","تم التسديد"]
["احمد مانع فلاح ايلوي",400,{"$error":"#VALUE!"},"ثلاجة 16",100,7,"فرقة التدخل السريع","2018-05-19","تم التسديد","تم التسديد"]
["احمد مانع فلاح ايلوي",300,{"$error":"#VALUE!"},"شاشة 32",100,6,"فرقة التدخل السريع","2018-05-19","تم التسديد","تم التسديد"]
["عباس شاكر كشكول عبد ",2700,{"$f":"B141-I141","v":2700},"سبلت 2 طن",300,9,"شرطة نفط الوسط","2018-05-21"]
["عباس شاكر كشكول عبد ",700,700,"ثلاجة 16",100,7,"شرطة نفط الوسط","2018-05-19"]
["عباس شاكر كشكول عبد ",800,800,"غسالة سامسونج",100,8,"شرطة نفط الوسط","2018-05-19"]
["حسين جبار لعيبي خلف",300,300,"شاشة 32",50,6,"حرس الحدود","2018-05-21"]
["مسلم عقيل عبد دويج",700,{"$error":"#VALUE!"},"سبلت 2 طن",100,9,"مكتب الوزير التدخل السريع","2018-05-19","تم التسديد","تم التسديد"]
["ضياء عبد الكاظم محمد سلمان",600,600,"ثلاجة 14",100,6,"شرطة اتحادية مقر فق 2","2018-05-19"]
["ضياء عبد الكاظم محمد سلمان",300,300,"طباخ 4 شعلة",50,6,"شرطة اتحادية مقر فق 2","2018-05-21"]
["ضياء عبد الكاظم محمد سلمان",180,180,"براد ماء",45,4,"شرطة اتحادية مقر فق 2","2018-05-19"]
["علاوي عبود محمد لفتة",3500,3500,"تكتك اصفر",350,10,"فوج طوارئ بغداد","2018-05-21"]
["كنعان نظام الدين عسكر",800,800,"غسالة سامسونج",100,8,"مديرية التدقيق المركزي","2018-05-21"]
["ضياء عبد الكاظم محمد سلمان",600,600,"شاشة 55",100,6,"شرطة اتحادية مقر فق 2","2018-05-19"]
["ضياء عبد الكاظم محمد سلمان",150,150,"ميز بلازما",50,6,"شرطة اتحادية مقر فق 2","2018-05-19"]
["علاء عامر صالح محمد",300,300,"شاشة 32",50,6,"مديرية شرطة صلاح الدين","2018-05-21"]
["احمد حسين جلوب دلي",1200,1200,"شاشة 55",200,6,"الشرطة الاتحادية القيادة","2018-05-19"]
["مرتضى عبد الزهرة عبدالله شناوة",4500,4500,"تكتك احمر",450,10,"شرطة اتحادية فق1","2018-05-21"]
["مرتضى عبد الزهرة عبدالله شناوة",300,300,"شاشة 32",50,6,"شرطة اتحادية فق1","2018-05-19"]
["سعد عزيز حمودي كاظم السعيدي",800,800,"غسالة سامسونج",100,8,"مديرية شؤون السيطرات","2018-05-19"]
["احمد سليم هاتو سلمان",3500,3500,"تكتك اصفر",350,10,"شرطة اتحادية البيجية","2018-05-19"]
["نصر عبد الرزاق كرم ناصح",600,600,"شاشة 55",100,6,"شرطة اتحادية فق 3","2018-05-19"]
["عماد موحي حسن هوزي",800,800,"غسالة سامسونج",100,8,"حماية المنشأت","2018-05-21"]
["علي نجاح عبدالله علي",2400,2400,"شاشة 55",400,6,"شرطة اتحادية فق 4","2018-05-19"]
["عقيل لازم خلف ثامر السوداني",225,{"$error":"#VALUE!"},"شاشة 32",50,6,"حماية المنشأت","2018-05-19","تم التسديد"]
["فواز موفق شرقي رزوقي",600,600,"بلازمة 55",100,6,"الشرطة الاتحادية اللواء الالي","2018-05-21"]
["احمد جميل طارش اللامي",600,600,"بلازمة 55",100,6,"مديرية الاتصالات ","2018-05-19"]
["عدنان كاظم حمزة حبيب",1200,1200,"بلازمة 32 عدد 4",200,6,"شرطة اتحادية فق 1 المقر","2018-05-21"]
["وسام علي إبراهيم حمود الجنابي",450,{"$error":"#VALUE!"},"بلازمة 32",100,6,"حماية المنشات والشخصيات","2018-05-19","تم التسديد"]
["مجدي عباس فاضل عباس",1200,1200,"ثلاجة 14 عدد 2",200,6,"الشرطة الاتحادية ل 3 ف3","2018-05-21"]
["هيثم جاسم محمد حسن",3000,2550,"غرفة نوم",300,10,"الشرطة الاتحادية مديرية الرواتب ","2018-05-19",450]
["حيدر رزوقي فرج محمد",700,700,"ثلاجة 16",100,7,"شرطة اتحادية فق 2 فوج المغاوير","2018-05-21"]
["حيدر رزوقي فرج محمد",500,500,"طباخ 5 شعلة",100,5,"شرطة اتحادية فق 2 فوج المغاوير","2018-05-19"]
["حيدر رزوقي فرج محمد",300,300,"غسالة",50,6,"شرطة اتحادية فق 2 فوج المغاوير","2018-05-21"]
["حيدر رزوقي فرج محمد",300,300,"شاشة 32",50,6,"شرطة اتحادية فق 2 فوج المغاوير","2018-05-19"]
["زهير ناصر هادي كاظم",600,600,"ثلاجة 16",100,6,"شرطة اتحادية فوج المغاوير","2018-05-19"]
["زهير ناصر هادي كاظم",180,180,"براد ماء",45,4,"شرطة اتحادية فوج المغاوير","2018-05-21"]
["رامي رزاق ضيدان جاسم",750,{"$error":"#VALUE!"},"سبلت 2 طن",100,9,"حماية المنشأت","2018-05-21","تم التسديد"]
["رامي رزاق ضيدان جاسم",450,{"$error":"#VALUE!"},"ثلاجة 14",100,6,"حماية المنشأت","2018-05-19","تم التسديد"]
["رامي رزاق ضيدان جاسم",225,{"$error":"#VALUE!"},"غسالة",50,6,"حماية المنشأت","2018-05-19","تم التسديد"]
["رامي رزاق ضيدان جاسم",350,{"$error":"#VALUE!"},"طباخ 5 شعلة",100,5,"حماية المنشأت","2018-05-19","تم التسديد"]
["حيدر محمد كاظم حسن العامري",600,500,"ثلاجة 14",100,6,"حماية المنشأت","2018-05-19",100]
["وليد خالد رشيد محمد",4500,4500,"تكتك احمر",450,10,"شرطة اتحادية وحدة منتسبي الجرحى","2018-05-21"]
["حسن موسى عبد المهدي",9000,9000,"تكتك احمر عدد 2",900,10,"شرطة بغداد","2018-05-19"]
["طارق هاشم حميد سالم",250,250,"ميز طعام",50,5,"شرطة اتحادية مقر القيادة","2018-05-21"]
["حسين ورود خزعل الساعدي",3500,3500,"تكتك اصفر",350,10,"شؤن السيطرات","2018-05-19"]
["علي طه حميد عباس",1500,1500,"تخم قنفات",150,10,"مدبربة شرطة بغداد","2018-05-21"]
["فراس مصطفى كامل الربيعي",4500,4500,"تكتك احمر",450,10,"فوج طوارئ بغداد","2018-05-19"]
["محمد عبد القادر خماس ",600,600,"ثلاجة 14",100,6,"شرطة اتحادية مقر القيادة","2018-05-21"]
["علي عبود محمد علي ",4500,4500,"تكتك احمر",450,10,"شرطة اتحادية مقر الفرقة الأولى","2018-05-19"]
["حسين علي عودة  راشد",4500,4500,"تكتك احمر",450,10,"شؤون السيطرات","2018-05-19"]
["يوسف عبدالله حسن ناصر",225,{"$error":"#VALUE!"},"غسالة",50,6,"فرقة الرد السريع","2018-05-21","تم التسديد"]
["يوسف عبدالله حسن ناصر",15,{"$error":"#VALUE!"},"بنكة شحن",30,2,"فرقة الرد السريع","2018-05-19","تم التسديد"]
["قصي صلال فالح موسى",3000,3000,"غرفة نوم",300,10,"مديرية الاستخبارات ومكافحة الإرهاب","2018-05-22"]
["قصي صلال فالح موسى",450,450,"مجمدة 13",90,5,"مديرية الاستخبارات ومكافحة الإرهاب","2018-05-19"]
["أسامة فرات طلب محمد",25,25,"خلاط",25,1,"حرس الحدود","2018-05-22"]
["عمر هيثم بهاء الدين حسين",300,{"$error":"#VALUE!"},"مجمدة 13",100,4,"مقر الفرقة الأولى الشرطة الاتحادية","2018-05-19","تم التسديد"]
["احمد عبد الزهرة احسان لازم",800,800,"سبلت 2 طن",100,8,"شؤون السيطرات","2018-05-22"]
["احمد عبد الزهرة احسان لازم",450,450,"مجمدة 13",90,5,"شؤون السيطرات","2018-05-22"]
["سارة علي ذياب صالح",650,{"$error":"#VALUE!"},"سبلت 2 طن",100,8,"حماية المنشأت","2018-05-19","تم التسديد"]
["رامي رزاق ضيدان جاسم",125,{"$error":"#VALUE!"},"طباخ ",50,4,"حماية المنشأت","2018-05-22","تم التسديد"]
["رامي رزاق ضيدان جاسم",650,{"$error":"#VALUE!"},"سبلت 2 طن",100,8,"حماية المنشأت","2018-05-19","تم التسديد"]
["حسام حسين شوحي مطشر",500,500,"ثلاجة 14",100,5,"ف1 ل2 فق2 ش.أ","2018-05-22"]
["حسام حسين شوحي مطشر",500,500,"طباخ 4 شعلة",100,5,"ف1 ل2 فق2 ش.أ","2018-05-19"]
["علاء ستار شاوي حمود",125,{"$error":"#VALUE!"},"غسالة حوضين",50,5,"شرطة النجدة","2018-05-19","تم التسديد","تم التسديد"]
["عقيل ستار شاوي حمود الساعدي",100,{"$error":"#VALUE!"},"غسالة حوضين",50,5,"شرطة النجدة","2018-05-22","تم التسديد","تم التسديد"]
["اوس خالد صالح سعيد",800,800,"سبلت 2 طن",100,8,"الشرطة الاتحادية مديرية التدريب","2018-05-19"]
["اوس خالد صالح سعيد",180,{"$f":"B205-I205","v":180},"براد ماء",45,4,"الشرطة الاتحادية مديرية التدريب","2018-05-22"]
["علي مهدي حسن لفتة",275,{"$error":"#VALUE!"},"ثلاجة 14",100,5,"قوات رد السريع","2018-05-19","تم التسديد","تم التسديد"]
["صفاء حسين علوان حمود",800,800,"سبلت 2 طن",100,8,"العاب الشرطة ","2018-05-22"]
["يعقوب جاسم هاشم حسن",1300,{"$error":"#VALUE!"},"سبلت 2 طن",200,8,"حماية المنشأت","2018-05-19","تم التسديد"]
["ميثم امجد حسين نعمة",1600,1600,"سبلت 2 طن",200,8,"شرطة بغداد","2018-05-22"]
["اياد كايت رحمن عبد",800,800,"سبلت 2 طن",100,8,"الشرطة الاتحادية فق1","2018-05-19"]
["اياد كايت رحمن عبد",250,250,"ميز طعام",50,5,"الشرطة الاتحادية فق1","2018-05-19"]
["فريد مجيد احمد حسين",700,700,"عارضة",100,7,"الشرطة الاتحادية فوج المغاوير","2018-05-22"]
["فريد مجيد احمد حسين",500,500,"سبلت 1 طن",100,5,"الشرطة الاتحادية فوج المغاوير","2018-05-19"]
["فريد مجيد احمد حسين",125,125,"غسالة حوضين",25,5,"الشرطة الاتحادية فوج المغاوير","2018-05-22"]
["رامي رزاق ضيدان جاسم",650,{"$error":"#VALUE!"},"سبلت 2 طن",100,8,"حماية المنشأت","2018-05-19","تم التسديد"]
["امير عبد المهدي عبيد محمد",500,{"$error":"#VALUE!"},"سبلت 2 طن",100,8,"الرد السريع","2018-05-22","تم التسديد","تم التسديد"]
["عدي مهدي إبراهيم محمود",2400,2400,"سبلت 2 طن عدد 3",300,8,"حماية المنشأت","2018-05-22"]
["عباس حميد عباس حميد",4500,4500,"تكتك احمر",450,10,"قيادة الشرطة الاتحادية فق 1","2018-05-22"]
["كنعان نظام الدين عسكر",800,800,"سبلت 2 طن",100,8,"مديرية التدقيق المركزي","2018-05-19"]
["علي طالب هاشم عكروك",500,500,"ميز طعام عدد 2",100,5,"الشرطة الاتحادية فوج المغاوير","2018-05-19"]
["حسام مشرف جميل حمادي",2400,2400,"سبلت 2 طن عدد 3",300,8,"فوج طوارئ بغداد","2018-05-19"]
["حيدر احمد هادي سلوم",500,{"$error":"#VALUE!"},"سبلت 2 طن",100,8,"الرد السريع","2018-05-22","تم التسديد","تم التسديد"]
["لؤي عباس حميد طاهر",1200,1200,"طباخ كريازي عدد 2",200,6,"الشرطة الاتحادية فق 3 ل 1 الالي","2018-05-19"]
["لؤي عباس حميد طاهر",900,900,"مجمدة عدد 2",180,5,"الشرطة الاتحادية فق 3 ل 1 الالي","2018-05-22"]
["لؤي عباس حميد طاهر",500,500,"غسالة عدد 2",100,5,"الشرطة الاتحادية فق 3 ل 1 الالي","2018-05-19"]
["مخلد منذر شعلان جسام",4500,4500,"تكتك احمر",450,10,"معمل ميدان فق 4 الشرطة الاتحادية","2018-05-19"]
["محمد احمد مجيد زامل ",1600,1600,"سبلت 2 طن عدد 2",200,8,"الشرطة الاتحادية الفوج الالي","2018-05-22"]
["مهند محمد عباس علي",2100,2100,"سبلت 2 طن عدد 3",300,8,"حماية المنشأت","2018-05-19"]
["طارق هاشم حميد سالم",600,600,"طباخ كريازي",100,6,"مقر قيادة الشرطة الاتحادية","2018-05-19"]
["قحطان حكمان ناصر محمد",650,{"$error":"#VALUE!"},"سبلت 2 طن",100,8,"حماية المنشأت","2018-05-22","تم التسديد"]
["شندل كاظم عبيد حمزة",1200,1200,"طباخ كريازي 2",200,6,"وحدة متابعة الجرحى","2018-05-22"]
["شندل كاظم عبيد حمزة",500,500,"ثلاجة 14",100,5,"وحدة متابعة الجرحى","2018-05-19"]
["شندل كاظم عبيد حمزة",250,250,"غسالة ",50,5,"وحدة متابعة الجرحى","2018-05-19"]
["علي حسن عبود جارالله الخفاجي",800,800,"سبلت 2 طن",100,8,"فوج طوارئ بغداد","2018-05-19"]
["قتيبة مسلم علي سعودي",1600,1600,"سبلت 2 طن عدد 2",200,8,"الشرطة الاتحادية فق 1 ل 3","2018-05-19"]
["قتيبة مسلم علي سعودي",700,700,"عارضة",100,7,"الشرطة الاتحادية فق 1 ل 3","2018-05-22"]
["مهند خالد فاضل ذنون",800,800,"سبلت 2 طن ",100,8,"الشرطة الاتحادية الفرقة الالية ف 3 ل3","2018-05-22"]
["مهند خالد فاضل ذنون",250,250,"غسالة",50,5,"الشرطة الاتحادية الفرقة الالية ف 3 ل3","2018-05-19"]
["محمد ثامر عبد الصاحب علوان",500,500,"طباخ كريازي",100,6,"فوج طوارئ بغداد","2018-05-22"]
["محمد ثامر عبد الصاحب علوان",200,200,"ميز طعام",50,5,"فوج طوارئ بغداد","2018-05-22"]
["مصطفى مراد كلمامي مراد",1600,1600,"سبلت 2 طن عد 2",200,8,"الشرطة الاتحادية فوج المغاوير","2018-05-22"]
["نور مهدي خلف اللامي",800,800,"سبلت 2 طن",100,8,"مديرية شرطة بغداد","2018-05-19"]
["نور مهدي خلف اللامي",400,400,"مجمدة",100,4,"مديرية شرطة بغداد","2018-05-22"]
["نور مهدي خلف اللامي",25,25,"خلاط",25,1,"مديرية شرطة بغداد","2018-05-19"]
["ضياء عبد الكاظم محمد سلمان",250,250,"غسالة",50,5,"الشرطة الاتحادية مقر فق 2","2018-05-22"]
["ضيف جعفر هادي عباس التميمي",125,125,"غسالة",25,5,"الشرطة الاتحادية فق1 ل1 ","2018-05-19"]
["كرار سالم خشان فرج البديري",800,800,"سبلت 2 طن",100,8,"الشرطة الاتحادية ف1 ل 1","2018-05-22"]
["محمد احمد مجيد زامل ",1600,1600,"سبلت 2 طن عدد 2",200,8,"الشرطة الاتحادية الفوج الالي","2018-05-19"]
["جاسم محمد عباس حليبي",175,{"$error":"#VALUE!"},"ميز طعام",50,5,"فرقة الرد السريع","2018-05-19","تم التسديد"]
["جاسم محمد عباس حليبي",1300,{"$error":"#VALUE!"},"سبلت 2 طن عدد 2",200,8,"فرقة الرد السريع","2018-05-23","تم التسديد"]
["مجدي عباس فاضل عباس",1600,1600,"سبلت 2 طن عدد 2",200,8,"الشرطة الاتحادية ل 3 ف3","2018-05-19"]
["ذوالفقار علي محسن عريبي",3500,3500,"تكتك اصفر",350,10,"الشرطة الاتحادية فق 5 ل 2","2018-05-23"]
["هادي صالح عبد المهدي شرار",1000,{"$error":"#VALUE!"},"سبلت 2 طن",200,8,"فرقة الرد السريع","2018-05-19","تم التسديد","تم التسديد"]
["فارس سلمان خليل نايف",3500,3500,"تكتك اصفر",350,10,"الشرطة الاتحادية فق 1","2018-05-23"]
["فارس سلمان خليل نايف",1600,1600,"سبلت 2 طن",200,8,"الشرطة الاتحادية فق 1","2018-05-23"]
["لطيف فاضل محمد الذهيباوي ",2100,2100,"عارضة عدد 3",300,7,"الشرطة الاتحادية فق 1","2018-05-20"]
["مهند محمد عداي جعاتي",500,500,"سبلت 1 طن",50,5,"قوات حرس الحدود","2018-05-20"]
["مهند محمد عداي جعاتي",800,800,"سبلت 2 طن",100,8,"قوات حرس الحدود","2018-05-23"]
["حيدر رعد هاشم حسن السراي",1250,1250,"كرسي كهربائي",125,10,"فوج طوارئ بغداد","2018-05-20"]
["محمد ثامر عبد الصاحب علوان",2750,2750,"تخم قنفات",250,12,"مديرية شرطة بغداد","2018-05-20"]
[]
["احمد حسين علوان حسن ",800,800,"سبلت 2طن",100,8,"مديرية الصيانة والخدمات","2018-05-20"]
["سعد جمعة شاكر محمود الزوبعي",600,600,"طباخ ",100,6,"الشرطة الاتحادية فوج المشات الالي","2018-05-23"]
["سعد جمعة شاكر محمود الزوبعي",180,180,"براد ماء",45,4,"الشرطة الاتحادية فوج المشات الالي","2018-05-20"]
["سعد جمعة شاكر محمود الزوبعي",25,25,"خلاط",25,1,"الشرطة الاتحادية فوج المشات الالي","2018-05-23"]
["بلال رزاق سلمان عيسى",1200,1200,"طباخ عدد 2",200,6,"الشرطة الاتحادية فق 1","2018-05-20"]
["بلال رزاق سلمان عيسى",1600,1600,"سبت عدد 2",200,8,"الشرطة الاتحادية فق 1","2018-05-23"]
["بلال رزاق سلمان عيسى",180,180,"براد ماء",45,4,"الشرطة الاتحادية فق 1","2018-05-20"]
["الأمير سالم جبار عبود ",700,{"$f":"B269-I269","v":{"$error":"#VALUE!"}},"سبلت 2 طن",100,8,"قيادة قوات الشرطة الاتحادية","2018-05-23","تم التسديد"]
["احمد سليم هاتو سلمان",700,700,"عارضة",100,7,"شرطة اتحادية البيجية","2018-05-20"]
["احمد بزون مجلي عادل",1300,{"$error":"#VALUE!"},"سبلت 2 طن عدد 2",200,8,"فرقة الرد السريع","2018-05-23","تم التسديد"]
["حيدر محي داخل حسن ",1600,1600,"سبلت 2 طن عدد 2",200,8,"الشرطة الاتحادية فق2 ف 3 ","2018-05-20"]
["حسن عبد السادة طعمة حياوي",650,{"$error":"#VALUE!"},"سبلت 2 طن",100,8,"مديرية السفارات","2018-05-20","تم التسديد"]
["بلال خالد ناجي مجيد البياتي",1600,1600,"سبلت 2 طن عدد 2",200,8,"مديرية امن الافراد","2018-05-20"]
["بلال خالد ناجي مجيد البياتي",1500,1500,"سبلت 3 طن",150,10,"مديرية امن الافراد","2018-05-20"]
["حيدر رزوقي فرج محمد",1750,1750,"سبلت 3 طن",175,10,"الشرطة الاتحادية فق 2 فوج المغاوير","2018-05-16"]
["شندل كاظم عبيد حمزة",500,500,"ثلاجة 14",100,5,"وحدة متابعة الجرحى","2018-05-16"]
["احمد جميل طارش اللامي",3500,3500,"تكتك اصفر",350,10,"مديرية الاتصالات ","2018-05-16"]
["عبد الرحمن كاظم علي حسين",3500,3500,"سبلت 3طن عدد 2",350,10,"كلية الشرطة","2018-05-16"]
["بشير سلمان شكاصي",800,800,"سبلت 2 طن",100,8,"حماية المنشأت","2018-05-16"]
["مصطفى وليد كامل عبد الرزاق",2975,{"$error":"#VALUE!"},"سبلت 3 طن عدد 2",350,10,"حماية المنشأت","2018-05-16","تم التسديد"]
["ميثم امجد حسين نعمة",1750,1750,"سبلت 3 طن",175,10,"قيادة شرطة بغداد","2018-05-16"]
["مخلص عباس كريم غالي العقابي",1350,1350,"سبلت 3 طن",150,10,"مديرية امن الافراد","2018-05-26"]
["قتيبة مسلم علي سعودي",1750,1750,"سبلت 3 طن",175,10,"الشرطة الاتحادية فق 1 ل 3","2018-05-26"]
["عباس عليوي بندر ناصر ",700,700,"سبلت 2 طن",100,8,"وكالة شؤون الشرطة ","2018-05-26"]
["فيصل امير غازي فاضل",1600,1600,"سبلت 2 طن عدد 2",200,8,"قيادة شرطة بغداد","2018-05-26"]
["حمزة عبد دخان مجدوم",75,75,"بنكة شحن",25,3,"الشرطة الاتحادية قسم الاعلام","2018-05-23"]
["حيدر خضر عبد الجليل عبد الرضا",800,800,"سبلت 2 طن",100,8,"ش.أ ف1 ل1 فق1","2018-05-26"]
["جواد كاظم خيون حمود",800,800,"سبلت 2 طن",100,8,"فوج طوارئ بغداد","2018-05-26"]
["محمد عبد المحسن مسلم ",1400,1400,"سبلت 2 طن عدد 2",200,8,"فوج طوارئ بغداد","2018-05-23"]
["مهند خالد فاضل ذنون",700,700,"عارضة",100,7,"الشرطة الاتحادية الفرقة الالية ف 3 ل3","2018-05-23"]
["مهند خالد فاضل ذنون",250,250,"ميز طعام",50,5,"الشرطة الاتحادية الفرقة الالية ف 3 ل3","2018-05-23"]
["حيدر خضير عباس حمودي",1600,1600,"سبلت 2 طن عدد 2",200,8,"شؤون السيطرات","2018-05-26"]
["علاء الدين شاكر حمود العبودي",800,800,"سبلت 2 طن",100,8,"الشرطة الاتحادية فق 2 ل6 ف 1","2018-05-26"]
["علاء الدين شاكر حمود العبودي",180,180,"براد ماء",45,4,"الشرطة الاتحادية فق 2 ل6 ف 1","2018-05-23"]
["علاء الدين شاكر حمود العبودي",25,25,"خلاط",25,1,"الشرطة الاتحادية فق 2 ل6 ف 1","2018-05-26"]
["علاء الدين شاكر حمود العبودي",125,125,"غسالة حوض",25,5,"الشرطة الاتحادية فق 2 ل6 ف 1","2018-05-23"]
["نصير صادق جعفر عوده علي",90,90,"كارتات 2",90,1,"الشرطة الاتحادية فق 6","2018-05-26"]
["بلال خالد ناجي مجيد البياتي",45,45,"كارتات 1",45,1,"مديرية امن الافراد","2018-05-26"]
["اوس خالد صالح سعيد",45,45,"كارت 1",45,1,"الشرطة الاتحادية مديرية التدريب","2018-05-23"]
["حيدر رعد هاشم حسن السراي",180,180,"كارت 4",180,1,"فوج طوارئ بغداد","2018-05-26"]
["زينب علي حسوني حديد",500,500,"ثلاجة 16",100,5,"مديرية الجنسية العامة","2018-05-23"]
["زينب علي حسوني حديد",125,125,"براد ماء",25,5,"مديرية الجنسية العامة","2018-05-26"]
["زينب علي حسوني حديد",250,250,"ميز طعام",50,5,"مديرية الجنسية العامة","2018-05-23"]
["زينب علي حسوني حديد",250,250,"طباخ",50,5,"مديرية الجنسية العامة","2018-05-26"]
["زينب علي حسوني حديد",250,250,"غسالة حوض",50,5,"مديرية الجنسية العامة","2018-05-23"]
["حيدر احمد هادي سلوم",1000,{"$error":"#VALUE!"},"سبلت 2 طن عدد 2",200,8,"قوات التدخل السريع","2018-05-26","تم التسديد","تم التسديد"]
["قصي صلال فالح موسى",700,700,"ثلاجة 22",100,7,"مديرية الاستخبارات","2018-05-23"]
["حسن راضي حسين علي ",2400,2400,"سبلت 2 طن عدد 3",300,8,"حماية المنشأت","2018-05-26"]
["مشتاق طالب كاظم كسار",3000,3000,"سبلت 3طن عدد 2",300,10,"حماية المنشأت","2018-05-26"]
["مشتاق طالب كاظم كسار",800,800,"سبلت 2 طن",100,8,"حماية المنشأت","2018-05-23"]
["علي سعد نعيم بلعوط ",800,800,"سبلت 2 طن",100,8,"قوات حرس الحدود","2018-05-26"]
["قحطان حكمان ناصر محمد",650,{"$error":"#VALUE!"},"سبلت 2 طن",100,8,"حماية المنشأت","2018-05-23","تم التسديد"]
["عماد موحي حسن هوزي",1750,1750,"سبلت 3 طن",175,10,"حماية السفارات","2018-05-26"]
["حسام عبد الأمير صبري معين",500,{"$error":"#VALUE!"},"سبلت 2 طن",100,8,"شرطة النجدة","2018-05-23","تم التسديد","تم التسديد"]
["حسام عبد الأمير صبري معين",400,{"$error":"#VALUE!"},"ثلاجة 18",100,7,"شرطة النجدة","2018-05-26","تم التسديد","تم التسديد"]
["حسام عبد الأمير صبري معين",300,{"$error":"#VALUE!"},"طباخ",100,6,"شرطة النجدة","2018-05-23","تم التسديد","تم التسديد"]
["حسام عبد الأمير صبري معين",45,{"$error":"#VALUE!"},"براد ماء",45,4,"شرطة النجدة","2018-05-23","تم التسديد","تم التسديد"]
["حيدر هادي سلمان عبد الرزاق",800,800,"سبلت 2 طن",100,8,"مديرية شرطة ديالى","2018-05-26"]
["كنعان نظام الدين عسكر",225,225,"كارتات",225,1,"مديرية التدقيق المركزي","2018-05-26"]
["كرار سالم خشان فرج البديري",600,600,"طباخ ",100,6,"الشرطة الاتحادية ف1 ل 1","2018-05-23"]
["كرار سالم خشان فرج البديري",1750,1750,"سبلت 3 طن",175,10,"الشرطة الاتحادية ف1 ل 1","2018-05-26"]
["نور مهدي خلف اللامي",800,800,"سبلت 2طن",100,8,"مديرية شرطة بغداد","2018-05-23"]
["ابتسام عبد الزهرة حمود زبون ",600,600,"طباخ 5 شعلة",100,6,"مركز تدريب النجف","2018-05-23"]
["ابتسام عبد الزهرة حمود زبون ",1750,1750,"سبلت 3 طن",175,10,"مركز تدريب النجف","2018-05-26"]
["ابتسام عبد الزهرة حمود زبون ",800,800,"سبلت 2 طن",100,8,"مركز تدريب النجف","2018-05-26"]
["امير رسول كاظم سعيد ",800,800,"سبلت 2 طن",100,8,"قوات حرس الحدود","2018-05-23"]
["امير رسول كاظم سعيد ",45,45,"كارتات اسيا",45,1,"قوات حرس الحدود","2018-05-26"]
["فاضل عبد السادة راشد عليوي",500,500,"طباخ ",100,5,"الشرطة الاتحادية فق 1 ل2 ف 2","2018-05-23"]
["حسين هاشم عبد علي القريشي",270,270,"كارتات 6",270,1,"قوات حرس الحدود","2018-05-26"]
["علي طه حميد عباس",180,180,"كارتات 4",180,1,"مديرية شرطة بغداد","2018-05-27"]
["ضياء لطيف حسن جابر",45,45,"كارتات",45,1,"قيادة قوات الشرطة الاتحادية","2018-05-23"]
["وسام فالح حسن خلف الساعدي",1575,{"$f":"B333-I333","v":1575},"سبلت 3 طن",175,10,"مديرية المرور العامة","2018-05-27"]
["عباس علي جولي رهيف",450,450,"كارتات 10",450,1,"الشرطة الاتحادية فق 4","2018-05-23"]
["مخلص عباس كريم غالي العقابي",250,250,"غسالة حوض",50,5,"مديرية امن الافراد","2018-05-27"]
["علي جواد كاظم مناتي",25,25,"خلاط",25,1,"الشرطة الاتحادية اللواء الرابع الالي","2018-05-23"]
["مخلص زبون جابر علي",1487,{"$error":"#VALUE!"},"سبلت 3 طن",175,10,"حماية المنشأت","2018-05-27","تم التسديد"]
["حسين حسن صالح خلف",180,180,"براد ماء",45,4,"مديرية التدقيق المركزي","2018-05-23"]
["فاضل كريم إبراهيم فاضل",250,250,"غسالة حوض",50,5,"الشرطة الاتحادية فق 1 ل 2 ف 1","2018-05-23"]
["فاضل كريم إبراهيم فاضل",250,250,"مبردة إيراني",50,5,"الشرطة الاتحادية فق 1 ل 2 ف 1","2018-05-27"]
["محمد حيدر مغنم غليم ",250,250,"ميز طعام",50,5,"مديرية امن الافراد","2018-05-23"]
["محمد حيدر مغنم غليم ",600,600,"طباخ",100,6,"مديرية امن الافراد","2018-05-27"]
["فاضل كريم إبراهيم فاضل",180,180,"براد ماء",45,4,"الشرطة الاتحادية فق 1 ل 2 ف 1","2018-05-23"]
["احمد هاشم كريم مطر",1750,1750,"سبلت 3 طن",175,10,"قيادة الشرطة الاتحادية / قسم الاعلام","2018-05-23"]
["احمد هاشم كريم مطر",700,700,"ثلاجة رويال",100,7,"قيادة الشرطة الاتحادية / قسم الاعلام","2018-05-27"]
["احمد هاشم كريم مطر",25,25,"خلاط",25,1,"قيادة الشرطة الاتحادية / قسم الاعلام","2018-05-23"]
["حيدر محي داخل حسن ",75,75,"بنكة شحن",25,3,"الشرطة الاتحادية فق2 ف 3 ","2018-05-27"]
["علي رشيد حسين محمود ",3500,3500,"سبلت 3طن عدد 2",350,10,"الشرطة الاتحادية فق 2","2018-05-27"]
["احمد عدوان مهوس غيلان",250,250,"مبردة بلاستك",50,5,"قوات حرس الحدود","2018-05-23"]
["حسام حسين شوحي مطشر",500,500,"مبردة عدد 2",100,5,"ف1 ل2 فق2 ش.أ","2018-05-27"]
["محمود زرعود سلوم فرحان",250,250,"مبردة",50,5,"الشرطة الاتحادية فق 1 ل 1 ف1","2018-05-23"]
["حسين فليح عبد عبد الحسين",600,600,"طباخ",100,6,"الشرطة الاتحادية","2018-05-27"]
["حسين فليح عبد عبد الحسين",3250,3250,"سبلت 3 طن عدد 2",325,10,"الشرطة الاتحادية","2018-05-23"]
["حسين فليح عبد عبد الحسين",300,300,"شاشة 32",50,6,"الشرطة الاتحادية","2018-05-27"]
["جاسم محمد محسن ماشاف",1000,1000,"سبلت 1 طن عدد 2",200,5,"الشرطة الاتحادية فق 1 المقر","2018-05-23"]
["زياد فخري محسن علي",500,500,"سبلت 1 طن",100,5,"الشرطة الاتحادية فوج المغاوير","2018-05-27"]
["حيدر عبد الوهاب رزوقي جواد",1500,1500,"سبلت 3 طن",150,10,"الشرطة الاتحادية ف1 ل 12","2018-05-27"]
["سجاد جميل حسان عبد الوهاب ",3500,3500,"تكتك اصفر",350,10,"الشرطة الاتحادية ف2 ل2","2018-05-23"]
["علي كريم عباس حافظ ",125,125,"غسالة حوض",25,5,"الشرطة الاتحادية فق 6","2018-05-27"]
["هيثم صبري محمد معين ",1200,1200,"شاشة 50 عدد 2",200,6,"الادعام العام","2018-05-27"]
["علي خماس عاتي مشجل ",1500,1500,"سبلت 3 طن",150,10,"شرطة بغداد","2018-05-27"]
["علي خماس عاتي مشجل ",600,600,"شاشة 50",100,6,"شرطة بغداد","2018-05-23"]
["علي خماس عاتي مشجل ",45,45,"كارت",45,1,"شرطة بغداد","2018-05-23"]
["مخلص زبون جابر علي",450,{"$error":"#VALUE!"},"شاشة 50",100,6,"حماية المنشأت","2018-05-27","تم التسديد"]
["ستار جبار جرخت اللامي",180,180,"كارت عدد 4",180,1,"الشرطة الاتحادية فق 2 ل6","2018-05-23"]
["عقيل محسن ماجد عطية ",250,250,"مبردة",50,5,"مكتب الوزير ","2018-05-27"]
["سعد عدنان عبد جاسم الجبوري",1500,1500,"سبلت 3 طن",150,10,"الشرطة الاتحادية فق 6 ف3 ","2018-05-27"]
["سعد عدنان عبد جاسم الجبوري",600,600,"طباخ",100,6,"الشرطة الاتحادية فق 6 ف3 ","2018-05-27"]
["مشرق عباس عجلان خليفة",250,250,"مبردة",50,5,"الشرطة الاتحادية مديرية الاتصالات","2018-05-23"]
["احمد محمد جاسم كاطع البهادلي",250,250,"مبردة",50,5,"امن وسلامة الوزارة","2018-05-27"]
["مصطفى وليد إبراهيم اسود",700,{"$error":"#VALUE!"},"سبلت 1 طن عدد 2",200,5,"حماية المنشأت","2018-05-23","تم التسديد"]
["عماد فائق إبراهيم عبد الفهداوي",3000,3000,"سبلت 3 طن عدد 2",300,10,"شرطة الانبار","2018-05-23"]
["عماد فائق إبراهيم عبد الفهداوي",500,500,"شاشة 43",100,5,"شرطة الانبار","2018-05-23"]
["عماد ناجي موسى حماد الدليمي",3000,3000,"سبلت 3 طن عدد 2",300,10,"شرطة الانبار","2018-05-27"]
["عماد ناجي موسى حماد الدليمي",500,500,"شاشة 43",100,5,"شرطة الانبار","2018-05-23"]
["عماد ناجي موسى حماد الدليمي",45,45,"كارت",45,1,"شرطة الانبار","2018-05-23"]
["معن سامي طلال حمادي",3000,3000,"سبلت 3 طن عدد 2",300,10,"شرطة الانبار","2018-05-23"]
["معن سامي طلال حمادي",500,500,"شاشة 43",100,5,"شرطة الانبار","2018-05-27"]
["يعقوب جاسم هاشم حسن",1275,{"$error":"#VALUE!"},"سبلت 3 طن",150,10,"حماية المنشأت","2018-05-23","تم التسديد"]
["انمار فرحان عواد خلف الدليمي",1050,{"$error":"#VALUE!"},"سبلت 3 طن",150,10,"الرد السريع","2018-05-27","تم التسديد","تم التسديد"]
["حيدر عذاب خماس داوود",300,{"$error":"#VALUE!"},"شاشة 50",100,6,"مديرية نجدة بغداد","2018-05-24","تم التسديد","تم التسديد"]
["حيدر عذاب خماس داوود",200,{"$error":"#VALUE!"},"شاشة 43",100,5,"مديرية نجدة بغداد","2018-05-27","تم التسديد","تم التسديد"]
["احمد طالب عباس علي العبيدي",125,125,"غسالة حوض",25,5,"الشرطة الاتحادية ف 1 ل","2018-05-27"]
["احمد طالب عباس علي العبيدي",180,180,"براد ماء",45,4,"الشرطة الاتحادية ف 1 ل","2018-05-24"]
["احمد طالب عباس علي العبيدي",25,25,"خلاط",25,1,"الشرطة الاتحادية ف 1 ل","2018-05-27"]
["حسين علي نعمة شبار العبودي",600,600,"شاشة بلازمة 50",100,6,"التدريب البدني","2018-05-24"]
["علي كاظم حميد حسين ",300,300,"شاشة 32",50,6,"الشرطة الاتحادية مقر قيادة امرية التموين ","2018-05-27"]
["نبيل صبحي كاظم خميس",600,600,"شاشة 50",100,6,"محكمة تميز قوى الامن","2018-05-24"]
["صفاء عبد الرزاق محسن عبود",600,600,"شاشة 50",100,6,"الشرطة الاتحادية","2018-05-24"]
["صفاء عبد الرزاق محسن عبود",250,250,"ميز طعام",50,5,"الشرطة الاتحادية","2018-05-24"]
["صفاء عبد الرزاق محسن عبود",90,90,"كارت 2",90,1,"الشرطة الاتحادية","2018-05-24"]
["سمير مهدي مهلهل جوهر",75,75,"مروحة شحن",25,3,"الشرطة الاتحادية","2018-05-27"]
["احمد جاسم طالب مهدي العامري",1500,1500,"سبلت 3 طن",150,10,"مديرية شؤون السيطرات","2018-05-24"]
["احمد جاسم طالب مهدي العامري",180,180,"براد ماء",45,4,"مديرية شؤون السيطرات","2018-05-27"]
["احمد عادل صباح ناجي الجبوري",1500,1500,"سبلت 3 طن",150,10,"الشرطة الاتحادية فق2","2018-05-24"]
["ستار جبار جرخت اللامي",700,700,"ثلاجة رويال",100,7,"الشرطة الاتحادية فق 2 ل 6","2018-05-27"]
["علي خماس عاتي مشجل ",1500,{"$f":"B397-I397","v":1500},"سبلت 3 طن",150,10,"شرطة بغداد","2018-05-27"]
["حيدر فاضل عباس لعيبي",450,450,"كارت 10",450,1,"شرطة بغداد","2018-05-27"]
["حيدر فاضل عباس لعيبي",650,650,"شاشة 55",100,7,"شرطة بغداد","2018-05-24"]
["مروان هشام عبد العباس ونان",500,500,"سبلت 1 ط",100,5,"الشرطة الاتحاديةفق3","2018-05-24"]
["مروان هشام عبد العباس ونان",1300,1300,"شاشة 55 عدد 2",200,7,"الشرطة الاتحاديةفق3","2018-05-27"]
["زينب علي حسوني حديد",650,650,"شاشة 55",100,7,"مديرية الجنسية العامة","2018-05-24"]
["حيدر خضر عبد الجليل عبد الرضا",1500,1500,"سبلت 3 طن",150,10,"ش.أ ف1 ل1 فق1","2018-05-27"]
["حيدر خضر عبد الجليل عبد الرضا",700,700,"عارضة",100,7,"ش.أ ف1 ل1 فق1","2018-05-24"]
["علي مهدي حسن لفتة",65,{"$error":"#VALUE!"},"براد ماء",45,4,"قوات رد السريع","2018-05-27","تم التسديد","تم التسديد"]
["أناس عبدالله حسن سلطان",3000,3000,"سبلت 3 طن عدد 2",300,10,"مديرية الصيانة والخدمات","2018-05-27"]
["أناس عبدالله حسن سلطان",650,650,"شاشة 55",100,7,"مديرية الصيانة والخدمات","2018-05-24"]
["كرار حسن عبد مسلم الربيعي",650,650,"شاشة 55",100,7,"عمليات الوزارة","2018-05-27"]
["كرار حسن عبد مسلم الربيعي",2500,2500,"غرفة نوم",250,10,"عمليات الوزارة","2018-05-24"]
["محمد عبد الحسين عيدان حزيم",1000,1000,"سبلت 1 طن عدد 2",200,5,"الشرطة الاتحادية سرية حماية القائد","2018-05-24"]
["نصر عبد الرزاق كرم ناصح",25,25,"خلاط",25,1,"الشرطة الاتحادية فق 3","2018-05-29"]
["نصر عبد الرزاق كرم ناصح",45,45,"كارت",45,1,"الشرطة الاتحادية فق 3","2018-05-29"]
["احمد صابر رسن اكطم ",2100,{"$error":"#VALUE!"},"سبلت 3 طن عدد 2",300,10,"مديرية نجدة بغداد","2018-05-27","تم التسديد","تم التسديد"]
["احمد صابر رسن اكطم ",50,{"$error":"#VALUE!"},"طباخ",50,4,"مديرية نجدة بغداد","2018-05-29","تم التسديد","تم التسديد"]
["محمد كامل كاطع بندر",250,250,"مبردة",50,5,"مديرية التدريب والتأهيل","2018-05-27"]
["محمد كامل كاطع بندر",650,650,"شاشة 55",100,6,"مديرية التدريب والتأهيل","2018-05-29"]
["مهند جاسم محمد عبد الرضا",3500,3500,"تكتك اصفر",350,10,"الشرطة الاتحادية فق 5","2018-05-29"]
["علي عبد الكريم كاظم رهيف",1950,1950,"شاشة 55 عدد 3",300,6,"مديرية شرطة بغداد","2018-05-27"]
["حيدر رحيم علي ضويع",500,500,"شاشة 43",100,5,"الشرطة الاتحادية","2018-05-29"]
["حيدر رحيم علي ضويع",500,500,"سبلت 1 طن",100,5,"الشرطة الاتحادية","2018-05-27"]
["اكرم عباس حسن صحن",45,45,"كارت",45,1,"مديرية العاب نادي الشرطة","2018-05-29"]
["نهلة عطية عبد الزهرة عباس",2500,2500,"غرفة نوم",250,10,"شؤون السيطرات","2018-05-27"]
["نهلة عطية عبد الزهرة عباس",250,250,"شاشة 32",50,5,"شؤون السيطرات","2018-05-29"]
["نهلة عطية عبد الزهرة عباس",180,180,"براد ماء",45,4,"شؤون السيطرات","2018-05-29"]
["واثق محمد عبد الرزاق حرجان",500,{"$error":"#VALUE!"},"شاشة 55",100,7,"حماية المنشأت","2018-05-29","تم التسديد"]
["واثق محمد عبد الرزاق حرجان",350,{"$error":"#VALUE!"},"سبلت 1 طن",100,5,"حماية المنشأت","2018-05-29","تم التسديد"]
["مهدي صاحب حمدان هاشم",600,600,"شاشة 50",100,6,"كلية الشرطة","2018-05-29"]
["محمد عدنان كلو صخي اللامي",250,250,"مبردة",50,5,"الشرطة الاتحادية مقر ف1","2018-05-29"]
["امجد خليف حسن شلال",250,250,"مبردة",50,5,"الشرطة الاتحادية ل6 ف1","2018-05-29"]
["احمد ثامر عبد الصاحب علوان",500,500,"طباخ",100,6,"مديرية شرطة بغداد","2018-05-29"]
["باسم خليل ورود ارحيم",400,{"$error":"#VALUE!"},"ثلاجة رويال",100,7,"مديرية النجدة العامة","2018-05-29","تم التسديد","تم التسديد"]
["باسم خليل ورود ارحيم",350,{"$error":"#VALUE!"},"شاشة 55",100,6,"مديرية النجدة العامة","2018-05-29","تم التسديد","تم التسديد"]
["باسم خليل ورود ارحيم",200,{"$error":"#VALUE!"},"شاشة 43",100,5,"مديرية النجدة العامة","2018-05-29","تم التسديد","تم التسديد"]
["جاسم محمد رضا حسن العبيدي",650,650,"شاشة 55",100,7,"مديرية شرطة بغداد","2018-05-29"]
["جاسم محمد رضا حسن العبيدي",45,45,"كارت ",45,1,"مديرية شرطة بغداد","2018-05-30"]
["جبار حسين لعيبي علي ",1500,1500,"سبلت 3 طن",150,10,"كلية الشرطة","2018-05-30"]
["حسين ورود خزعل الساعدي",90,90,"كارت 2",90,1,"مديرية شؤون السيطرات","2018-05-30"]
["حسين عبد عبيجي حسن",900,900,"سبلت 2 طن",100,9,"محكمة تميز قوى الامن","2018-05-30"]
["مخلص عباس كريم غالي العقابي",550,550,"شاشة 55",100,7,"مديرية امن الافراد","2018-05-30"]
["حيدر علي جمعة عبود",800,{"$error":"#VALUE!"},"سبلت 2 طن",100,9,"مديرية التدريب والتأهيل","2018-05-30","تم التسديد"]
["سجاد عبد العزيز حسن امام علي",900,900,"سبلت 2 طن",100,9,"الشرطة الاتحادية فوج المغاوير","2018-05-30"]
["مهدي صاحب حمدان هاشم",1800,1800,"سبلت 2 طن عدد 2",200,9,"كلية الشرطة","2018-05-30"]
["احمد عادل صباح ناجي الجبوري",1500,1500,"سبلت 3 طن",150,10,"الشرطة الاتحادية فق 2 ل 6","2018-05-30"]
["احمد عادل صباح ناجي الجبوري",900,900,"سبلت 2 طن",100,9,"الشرطة الاتحادية فق 2 ل 6","2018-05-30"]
["محمد يوسف عبد الحسين كحيوش",3000,3000,"سبلت 3 طن عدد 2",300,10,"الشرطة الاتحادية مقر اللواء الالي","2018-05-30"]
["محمد يوسف عبد الحسين كحيوش",900,900,"سبلت 2 طن",100,9,"الشرطة الاتحادية مقر اللواء الالي","2018-05-30"]
["صفاء خماس عاتي مشجل",3000,3000,"سبلت 3 طن عدد 2",300,10,"قيادة شرطة بغداد","2018-05-30"]
["علي طه حميد عباس",1500,1500,"سبلت 3 طن",150,10,"مديرية شرطة بغداد","2018-05-30"]
["فؤاد سالم جارالله حمد",250,250,"مبردة",50,5,"مكتب الوزير","2018-05-30"]
["محمد باقر محمود كاطع",900,900,"سبلت 2 طن",100,9,"الشرطة الاتحادية ف3 ل3","2018-05-30"]
["محمد باقر محمود كاطع",600,600,"شاشة 50",100,6,"الشرطة الاتحادية ف3 ل3","2018-05-30"]
["محمد مرتضى سلمان مهدي",500,500,"شاشة 43",100,5,"الشرطة الاتحادية امرية التموين والنقل","2018-05-30"]
["حيدر محسن خليفة إبراهيم",600,600,"طباخ",100,6,"كلية الشرطة","2018-05-30"]
["سليم مهوس ناهيي بشير",1800,1800,"سبلت 2 طن عدد 2",200,9,"قيادة شرطة بغداد","2018-05-30"]
["مصطفى مراد كلمامي مراد",900,900,"سبلت 2 طن",100,9,"الشرطة الاتحادية لواء المغاوير ف 3","2018-05-30"]
["مصطفى مراد كلمامي مراد",25,25,"خلاط",25,1,"الشرطة الاتحادية لواء المغاوير ف 3","2018-05-30"]
["محمد حيدر مغنم غليم ",250,250,"شاشة 32",50,5,"مديرية امن الافراد","2018-05-30"]
["محمد حيدر مغنم غليم ",75,75,"مروحة شحن",25,3,"مديرية امن الافراد","2018-05-30"]
["علي عبد الكريم كاظم رهيف",600,600,"غسالة ",100,6,"مديرية شرطة بغداد","2018-05-30"]
["بلال صالح هادي حسن",284,284,"سبلت 1 طن",72,7,"فرقة الرد السريع","2018-05-30"]
["عناد كحواش معارج ذفال",3150,{"$f":"B461-I461","v":{"$error":"#VALUE!"}},"سبلت 3 طن عدد 3",450,10,"قوات الرد السريع","2018-05-30","تم التسديد","تم التسديد"]
["عناد كحواش معارج ذفال",100,{"$error":"#VALUE!"},"شاشة 32",50,5,"قوات الرد السريع","2018-05-30","تم التسديد","تم التسديد"]
["ياسر صلاح طاهر محمد علي",250,250,"مبردة",50,5,"الشرطة الاتحادية","2018-05-31"]
["علاء إسماعيل عذير لفتة",200,{"$error":"#VALUE!"},"مبردة",100,5,"مديرية شرطة النجدة","2018-05-31","تم التسديد","تم التسديد"]
["حسين محمد ناو خاص",2550,{"$error":"#VALUE!"},"سبلت 3 طن عدد 2",300,10,"حماية المنشأت","2018-05-31","تم التسديد"]
["عقيل محسن ماجد عطية ",45,45,"كارت",45,1,"مكتب الوزير","2018-05-31"]
["علي صالح حسن اعليب ",900,900,"سبلت 2 طن",100,9,"الشرطة الاتحادية فق1 ل2 ف2","2018-05-31"]
["علي صالح حسن اعليب ",90,90,"كارت 2",90,1,"الشرطة الاتحادية فق1 ل2 ف2","2018-05-31"]
["علي صالح حسن اعليب ",75,75,"مروحة شحن",25,3,"الشرطة الاتحادية فق1 ل2 ف2","2018-05-31"]
["اياد سلمان شطب محمد",150,{"$error":"#VALUE!"},"مبردة",50,6,"قوات الرد السريع","2018-05-31","تم التسديد","تم التسديد"]
["ندى حسين خريبط جبر",600,600,"طباخ",100,6,"الشرطة الاتحادية مقر القيادة","2018-05-31"]
["ندى حسين خريبط جبر",1350,{"$error":"#VALUE!"},"تخم قنفات",150,10,"الشرطة الاتحادية مقر القيادة","2018-05-31","تم التسديد"]
["ندى حسين خريبط جبر",100,{"$error":"#VALUE!"},"ميز بلازما",25,5,"الشرطة الاتحادية مقر القيادة","2018-05-31","تم التسديد"]
["هيثم عيدان عبد كايم ",46,{"$error":"#VALUE!"},"مروحة شحن",25,3,"قوات الرد السريع","2018-05-31","تم التسديد","تم التسديد"]
["مهدي سيد فتيان كريخي اللامي",2700,2700,"سبلت 2 طن عدد 3",300,9,"الشرطة الاتحادية فق1","2018-05-31"]
["قحطان حكمان ناصر محمد",750,{"$error":"#VALUE!"},"سبلت 2 طن",100,9,"حماية المنشأت","2018-05-31","تم التسديد"]
["منتظر عيسى سالم سعيد",3000,3000,"سبلت 3 طن عدد 2",300,10,"مديرية شرطة بغداد","2018-05-31"]
["فاضل سلمان خليفة كاطع",3000,3000,"سبلت 3 طن عدد 2",300,10,"قوات حرس الحدود","2018-05-31"]
["ستار جبار جرخت اللامي",700,700,"ثلاجة 18",100,7,"الشرطة الاتحادية فق1 ل2","2018-05-31"]
["ستار جبار جرخت اللامي",900,900,"سبلت 2طن",100,9,"الشرطة الاتحادية فق1 ل2","2018-05-31"]
["حسن علي شكور محمود ",2100,{"$error":"#VALUE!"},"سبلت 3 طن عدد 2",300,10,"مديرية نجدة بغداد","2018-05-31","تم التسديد","تم التسديد"]
["حسن علي شكور محمود ",400,{"$error":"#VALUE!"},"شاشة 43 عدد 2",200,5,"مديرية نجدة بغداد","2018-05-31","تم التسديد","تم التسديد"]
["نجم عبد عودة عبدالله ",3000,3000,"سبلت 3 طن عدد 2",300,10,"الشرطة الاتحادية","2018-05-31"]
["صباح سعدون عبد زيد",1800,1800,"سبلت 2 طن عدد 2",200,9,"ش.ا فق1 ل2 ف1","2018-05-31"]
["صباح سعدون عبد زيد",600,600,"طباخ",100,6,"ش.ا فق1 ل2 ف1","2018-05-27"]
["حيدر رعد هاشم حسن السراي",90,90,"كارت 2 ",90,1,"مديرية شرطة بغداد","2018-05-27"]
["حيدر رعد هاشم حسن السراي",75,75,"مروحة شحن",25,3,"مديرية شرطة بغداد","2018-05-27"]
["طه حسين محمد حسين الجبوري",200,{"$error":"#VALUE!"},"شاشة 43",100,5,"قوات الرد السريع","2018-05-27","تم التسديد","تم التسديد"]
["حسين هاشم عبد علي القريشي",1800,1800,"سبلت 2 طن عدد 2",200,9,"قوات حرس الحدود","2018-05-27"]
["وسام كاظم علي خنيفس",600,600,"طباخ",100,6,"الشرطة الاتحاديةفق1 ل2 ف2","2018-05-27"]
["محمد جنيد معروف مرهون حسن",900,900,"سبلت 2 طن",100,9,"الشرطة الاتحادية فق4","2018-05-27"]
["حاتم اكرم إبراهيم عباس ",150,{"$error":"#VALUE!"},"مبردة",50,6,"مديرية نجدة بغداد","2018-05-27","تم التسديد","تم التسديد"]
["هاشم طالب نايف حسون ",500,500,"شاشة 43",100,5,"الشرطة الاتحادية امرية المعسكر القيادة","2018-05-27",null,"تم التسديد"]
["هاشم طالب نايف حسون ",900,900,"سبلت 2 طن",100,9,"الشرطة الاتحادية امرية المعسكر القيادة","2018-05-27",null,"تم التسديد"]
["هاشم طالب نايف حسون ",75,75,"مروحة شحن",25,3,"الشرطة الاتحادية امرية المعسكر القيادة","2018-05-27",null,"تم التسديد"]
["محمد مشرف عبد جاسم محمد",600,600,"سبلت 2 طن",100,9,"مديرية شرطة الانبار","2018-05-28",null,"تم التسديد"]
["محمد مشرف عبد جاسم محمد",1200,1200,"شاشة 55 عدد 2",200,7,"مديرية شرطة الانبار","2018-05-28"]
["محمد نصيف كرين لفتة ",900,900,"سبلت 2 طن",100,9,"الشرطة الاتحادية ","2018-05-28"]
["ثائر احسان جمال عباس",500,500,"شاشة 43",100,5,"الشرطة الاتحادية ف3 اللواء الالي ","2018-05-28"]
["ثائر احسان جمال عباس",900,900,"سبلت 2 طن",100,9,"الشرطة الاتحادية ف3 اللواء الالي ","2018-05-28"]
["ثائر احسان جمال عباس",250,250,"ميز طعام",50,5,"الشرطة الاتحادية ف3 اللواء الالي ","2018-05-28"]
["باسم خليل ورود ارحيم",350,{"$error":"#VALUE!"},"شاشة 55",100,7,"مديرية النجدة العامة","2018-05-28","تم التسديد","تم التسديد"]
["ميثم رياض فاضل شمخي",100,{"$error":"#VALUE!"},"مبردة",50,5,"مديرية شرطة النجدة","2018-05-28","تم التسديد","تم التسديد"]
["احمد إبراهيم جبار غازي",200,200,"ميز طعام",50,5,"مديرية شرطة بغداد","2018-05-28",null,"تم التسديد"]
["نبيل صبحي كاظم خميس",250,250,null,50,5,"مديرية شرطة بغداد","2018-05-28",null,"تم التسديد"]
["حسن مهدي مطر حسن",600,{"$error":"#VALUE!"},"سبلت 2 طن",100,9,"فرقة التدخل السريع","2018-05-28","تم التسديد","تم التسديد"]
["حسن مهدي مطر حسن",400,{"$error":"#VALUE!"},"ثلاجة 18",100,7,"فرقة التدخل السريع","2018-05-28","تم التسديد","تم التسديد"]
["حسن مهدي مطر حسن",350,{"$error":"#VALUE!"},"شاشة 55",100,7,"فرقة التدخل السريع","2018-05-28","تم التسديد","تم التسديد"]
["علي داخل سعيد مهدي ",250,250,"مبرجة",50,5,"كلية الشرطة","2018-05-28"]
["مصطفى محمد كريم ياسين",135,135,"كارت 3",135,1,"قيادة شرطة بغداد","2018-05-28"]
["حيدر عباس حسن محمد",150,{"$error":"#VALUE!"},"مبردة",50,5,"الشرطة الاتحادية فق2","2018-05-28","تم التسديد","تم التسديد"]
["حيدر عباس حسن محمد",300,{"$error":"#VALUE!"},"شاشة 43",100,5,"الشرطة الاتحادية فق2","2018-05-28","تم التسديد","تم التسديد"]
["علاوي عبود محمد لفتة",650,650,"شاشة 55",100,7,"قيادة شرطة بغداد","2018-05-28"]
["منصور علي مريهج علي",900,900,"سبلت 2 طن",100,9,"الشرطة الاتحادية مديرية الرواتب ","2018-05-28"]
["هاشم طالب نايف حسون ",600,600,"طباخ",86,7,"الشرطة الاتحادية امرية المعسكر القيادة","2018-05-28"]
["علي عبد الرزاق سالم حسين",450,{"$error":"#VALUE!"},"ثلاجة رويال",100,7,"فرقة التدخل السريع","2018-05-28","تم التسديد"]
["ضياء لطيف حسن جابر",45,45,"كارت",45,1,"الشرطة الاتحادية امرية التدريب","2018-05-28"]
["حيدر محسن خليفة إبراهيم",600,600,"طباخ",100,6,"كلية الشرطة","2018-05-28"]
["حسين محمد فايق نصيف العبيدي",1800,1800,"سبلت 2 طن عدد2",200,9,"الشرطة الاتحادية امرية التدريب","2018-05-28"]
["حسين محمد فايق نصيف العبيدي",250,250,"ميز طعام",50,5,"الشرطة الاتحادية امرية التدريب","2018-05-28"]
["حسين محمد فايق نصيف العبيدي",2500,2500,"تخم قنفات",250,10,"الشرطة الاتحادية امرية التدريب","2018-05-28"]
["سارة علي ذياب صالح",500,{"$error":"#VALUE!"},"شاشة 55",100,7,"حماية المنشأت","2018-05-28","تم التسديد"]
["ياسر محمد جاسم محمد",900,900,"سبلت 2 طن",100,9,"الشرطة الاتحادية مقر فق 1","2018-05-28"]
["كاظم كريم جاسم محمد",250,250,"غسالة",50,5,"الشرطة الاتحادية مقر فق 1","2018-05-28"]
["كاظم كريم جاسم محمد",250,{"$f":"B525-I525","v":250},"ميز طعام",50,5,"الشرطة الاتحادية مقر فق 1","2018-05-28"]
["كاظم كريم جاسم محمد",75,75,"مروحة شحن",25,3,"الشرطة الاتحادية مقر فق 1","2018-05-28"]
["كاظم كريم جاسم محمد",250,250,"مبردة",50,5,"الشرطة الاتحادية مقر فق 1","2018-05-28"]
["حسين حربي محمد كاظم",900,900,"سبلت 2 طن",100,9,"مديرية شرطة بغداد","2018-05-28"]
["محمد عبد القادر خماس ",900,900,"سبلت 2 طن",100,9,"شرطة اتحادية مقر القيادة","2018-05-28"]
["حسين مجيد عبد الأمير راضي",300,{"$error":"#VALUE!"},"غسالة",100,6,"فرقة الرد السريع","2018-05-28","تم التسديد","تم التسديد"]
["حسين مجيد عبد الأمير راضي",100,{"$error":"#VALUE!"},"ميز طعام",50,5,"فرقة الرد السريع","2018-05-28","تم التسديد","تم التسديد"]
["حسين مجيد عبد الأمير راضي",600,{"$error":"#VALUE!"},"سبلت 2 طن",100,9,"فرقة الرد السريع","2018-05-28","تم التسديد","تم التسديد"]
["عباس جساس شرقي حسين",500,{"$error":"#VALUE!"},"شاشة 55",100,7,"الشرطة الاتحادية","2018-05-28","تم التسديد"]
["علي داخل سعيد مهدي ",900,900,"سبلت 2 طن",100,9,"كلية الشرطة","2018-05-28"]
["علي داخل سعيد مهدي ",600,600,"شاشة 55",75,7,"كلية الشرطة","2018-05-28"]
["محمد سعدي صالح عبد ",1350,{"$error":"#VALUE!"},"سبلت 3 طن",150,10,"حماية المنشأت","2018-05-29","تم التسديد"]
["علي مهدي عبد الشهيد ",3000,3000,"سبلت 3 طن عدد 2",300,10,"حماية السفارات","2018-05-29"]
["سهيل نجم علي حسين ",2550,{"$error":"#VALUE!"},"سبلت 3 طن عدد 2",300,10,"حماية المنشأت","2018-05-29","تم التسديد"]
["سهيل نجم علي حسين ",750,{"$error":"#VALUE!"},"سبلت 2 طن",100,9,"حماية المنشأت","2018-05-29","تم التسديد"]
["باسم خليل ورود ارحيم",600,{"$error":"#VALUE!"},"سبلت 2 طن",100,9,"مديرية النجدة العامة","2018-05-29","تم التسديد","تم التسديد"]
["عمار شاكر طالب هندي",1500,1500,"سبلت 3 طن",150,10,"الشرطة الاتحادية","2018-05-29",null,"تم التسديد"]
["عمار شاكر طالب هندي",1200,1200,"شاشة 55 عدد 2",150,7,"الشرطة الاتحادية","2018-05-29",null,"تم التسديد"]
["عمار شاكر طالب هندي",900,900,"سبلت 2 طن",100,9,"الشرطة الاتحادية","2018-05-29",null,"تم التسديد"]
["عدي مهدي إبراهيم محمود",900,900,"سبلت 2 طن",100,9,"حماية المنشأت","2018-05-29"]
["محمد كامل كاطع بندر",1800,1800,"سبلت 2 طن عدد 2",200,9,"مديرية التدريب والتأهيل","2018-05-29"]
["ثائر حاتم حمزة خضير ",250,250,"شاشة 32",50,5,"الشرطة الاتحادية فق2 ل6","2018-05-29"]
["ثائر حاتم حمزة خضير ",900,900,"سبلت 2 طن",100,9,"الشرطة الاتحادية فق2 ل6","2018-05-29"]
["ثائر حاتم حمزة خضير ",360,360,"كارت اسيا ",360,1,"الشرطة الاتحادية فق2 ل6","2018-05-29"]
["احمد هاشم كريم مطر",250,250,"مبردة",50,5,"قيادة الشرطة الاتحادية / قسم الاعلام","2018-05-29"]
["احمد هاشم كريم مطر",500,500,"ثلاجة 14",71,7,"قيادة الشرطة الاتحادية / قسم الاعلام","2018-05-29"]
["رأفت ليث كامل خضير ",250,250,"شاشة 32",50,5,"الشرطة الاتحادية الفوج الالي","2018-05-29"]
["حسين عبد النبي خطار هاشم",1200,{"$error":"#VALUE!"},"سبلت 2 طن عدد 2",200,9,"مديرية النجدة العامة","2018-05-29","تم التسديد","تم التسديد"]
["عقيل ظاهر عبد عنبر ",3000,3000,"سبلت 3 طن عدد 2",300,10,"قوات حرس الحدود","2018-05-29"]
["عقيل ظاهر عبد عنبر ",900,900,"سبلت 2 طن",100,9,"قوات حرس الحدود","2018-05-29"]
["حيدر فاضل عباس لعيبي",150,150,"مروحة شحن 2",50,3,"قيادة شرطة بغداد","2018-05-29"]
["وائل سالم جاسم محمد ",3000,3000,"سبلت 3 عدد2",300,10,"الشرطة الاتحادية فق ف الالي","2018-05-29"]
["جاسم قاسم جدوع عبيد",200,{"$error":"#VALUE!"},"مبردة",50,5,"الشرطة الاتحادية فق1","2018-05-29","تم التسديد"]
["ميثاق حازم جبار نجم",100,{"$error":"#VALUE!"},"غسالة",50,5,"مديرية نجدة بغداد","2018-05-29","تم التسديد","تم التسديد"]
["حسين محمد فايق نصيف العبيدي",600,600,"شاشة 55",75,7,"الشرطة الاتحادية امرية التدريب","2018-05-29"]
["ضحى عبد الاله عبد الحسين ",600,600,"طباخ",75,7,"الشرطة الاتحادية فق2 ل7 ف1","2018-05-29"]
["ضحى عبد الاله عبد الحسين ",600,600,"ثلاجة 18",75,7,"الشرطة الاتحادية فق2 ل7 ف1","2018-05-29"]
["ضحى عبد الاله عبد الحسين ",900,900,"سبلت 2 طن",100,9,"الشرطة الاتحادية فق2 ل7 ف1","2018-05-29"]
["ضحى عبد الاله عبد الحسين ",400,400,"مجمده 12",75,5,"الشرطة الاتحادية فق2 ل7 ف1","2018-05-29"]
["سعيد محمد صالح علي ",600,600,"شاشة 55",75,7,"الشرطة الاتحادية فوج المغاوير","2018-05-29"]
["سعيد محمد صالح علي ",900,900,"سبلت 2 طن",100,9,"الشرطة الاتحادية فوج المغاوير","2018-05-29"]
["جمال عبد الناصر محمد محمود",900,900,"سبلت 2 طن",100,9,"مديرية التدريب والتأهيل","2018-05-31"]
["عقيل يعكوب يوسف ساجت",900,900,"سبلت 2 طن",100,9,"مكتب المستشار","2018-05-31"]
["عقيل يعكوب يوسف ساجت",500,500,"مجمدة 14",71,7,"مكتب المستشار","2018-05-31"]
["عقيل يعكوب يوسف ساجت",500,500,"شاشة 43",71,7,"مكتب المستشار","2018-05-31"]
["سيف جواد كاظم تعيب ",75,75,"مروحة شحن",25,3,"مكتب المستشار","2018-05-31"]
["زين العابدين اكرم حميد يونس",3000,3000,"سبلت 3 طن عدد 2",300,10,"مديرية شرطة بغداد","2018-05-31"]
["زين العابدين اكرم حميد يونس",900,900,"سبلت 2 طن",100,9,"مديرية شرطة بغداد","2018-05-31"]
["فراس مصطفى كامل الربيعي",600,600,"شاشة 55",75,7,"فوج طوارئ بغداد","2018-05-31"]
["ميثم رياض فاضل شمخي",287,{"$error":"#VALUE!"},"ثلاجة 14",71,7,"مديرية شرطة النجدة","2018-05-31","تم التسديد","تم التسديد"]
["خالد جمال جبارة ياسين",375,{"$error":"#VALUE!"},"سبلت 1 طن",75,7,"الشرطة الاتحادية مديرية الرواتب ","2018-05-31","تم التسديد"]
["قيس صباح عناد حابط",1500,1500,"سبلت 3 طن",150,10,"مديرية المرور العامة","2018-05-31"]
["علاء حسين كاظم بدر الكناني",600,600,"طباخ ",75,7,"مديرية الصيانة والخدمات","2018-05-31"]
["علاء حسين كاظم بدر الكناني",600,600,"ثلاجة 18",75,7,"مديرية الصيانة والخدمات","2018-05-31"]
["علاء حسين كاظم بدر الكناني",600,600,"شاشة 55",75,7,"مديرية الصيانة والخدمات","2018-05-31"]
["علاء حسين كاظم بدر الكناني",3000,3000,"سبلت 3 طن عدد 2",300,10,"مديرية الصيانة والخدمات","2018-05-31"]
["محمد مالك رشك زايد الطليباوي",487,{"$error":"#VALUE!"},"غسالة",75,7,"الشرطة الاتحادية ","2018-05-31","تم التسديد"]
["يوسف مهدي يوسف مريس",75,75,"مروحة ",25,3,"مديرية العاب نادي الشرطة","2018-05-31"]
["يوسف مهدي يوسف مريس",250,250,"غسالة ",50,5,"مديرية العاب نادي الشرطة","2018-05-31"]
["يوسف مهدي يوسف مريس",25,25,"خلاط",25,1,"مديرية العاب نادي الشرطة","2018-05-31"]
["إيهاب مهدي ناجي علي",200,{"$error":"#VALUE!"},"مبردة",50,5,"الشرطة الاتحادية فق 2","2018-05-31","تم التسديد"]
["عقيل محسن ماجد عطية ",600,600,"شاشة 55",85,7,"مديرية امن الافراد","2018-05-31"]
["اثير مهدي عبد يونس",600,600,"شاشة 55",85,7,"كلية الشرطة","2018-05-31"]
["علي جمال عواد العبودي",3000,3000,"سبلت 3 طن 2",300,10,"مديرية البنى التحتية ","2018-05-31"]
["علي جمال عواد العبودي",900,{"$f":"B589-I589","v":900},"سبلت ص طن",100,9,"مديرية البنى التحتية ","2018-05-31"]
["وليد حسين ناجي خلف",1088,1088,null,544,2,"مديرية نفط الوسط","2018-05-31"]
["كريم جبر صبر عبدالله",361,361,null,361,1,"مديرية نفط الوسط","2018-05-31"]
["عباس شاكر كشكول عبد ",624,624,null,624,1,"مديرية نفط الوسط","2018-05-31"]
["ياسر طلال مطشر عجمي",1276,1276,null,638,2,"مديرية نفط الوسط","2018-05-31"]
["عمر علي عبد الصاحب ",1086,1086,null,543,2,"مديرية نفط الوسط","2018-05-31"]
["ندى موحان فالح زامل",414,414,null,207,2,"مديرية نفط الوسط","2018-05-31"]
["سمير زهير رزاق رحمن",3825,3825,null,546,7,"مديرية نفط الوسط","2018-05-31"]
["عبدالله جاسم حمادي",3279,3279,null,546,6,"مديرية نفط الوسط","2018-05-31"]
["أنور خميس محمود الخزرجي",1912,1912,null,637,3,"مديرية نفط الوسط","2018-05-31"]
["ازهر صباح مطرود جاسم",624,624,null,624,1,"مديرية نفط الوسط","2018-05-31"]
["باسم حسن حاتم كبر ",62,62,null,62,1,"مديرية نفط الوسط","2018-05-31"]
["محمد خضير جارالله عبد علي",1400,1400,null,466,3,"مديرية نفط الوسط","2018-05-31"]
["احمد جبار شوملي كاظم",468,468,null,468,1,"مديرية نفط الوسط","2018-05-31"]
["جمال عبد نجم عبدالله",1575,1575,null,525,3,"مديرية نفط الوسط","2018-05-31"]
["أسماء محمد حسين خلف",1086,1086,null,544,2,"مديرية نفط الوسط","2018-05-31"]
["عقيل عباس حميد ",542,542,null,542,1,"مديرية نفط الوسط","2018-05-31"]
["امجد فاضل حسين جواد",650,650,null,650,1,"مديرية نفط الوسط","2018-05-31"]
["حسن ماجد خضير المسعودي",621,621,null,311,2,"مديرية نفط الوسط","2018-05-31"]
["محمد شاكر جلو عنيد",1630,1630,null,543,3,"مديرية نفط الوسط","2018-05-31"]
["مصطفى مهدي حسين حمزة",1630,1630,null,543,3,"مديرية نفط الوسط","2018-05-31"]
["عباس جاسم حطاب عجيل",1630,1630,null,543,3,"مديرية نفط الوسط","2018-05-31"]
["جبار راضي خلف فياض",1630,1630,null,543,3,"مديرية نفط الوسط","2018-05-31"]
["سهيل نجم عبد الخالق إبراهيم",450,450,null,75,6,"مديرية نجدة ديالى","2018-05-31"]
["فكري حسين علي تايه",650,{"$error":"#VALUE!"},null,150,6,"مديرية شرطة الكهرباء","2018-05-31","تم التسديد"]
["احمد عبد الجبار إبراهيم جواد",450,450,null,75,6,"مديرية نجدة ديالى","2018-05-31"]
["احمد عبد الجبار إبراهيم جواد",45,45,null,45,1,"مديرية نجدة ديالى","2018-05-31"]
["نهاد عبود عواد خلف ",450,450,null,75,6,"مديرية شرطة ديالى","2018-05-31"]
["فتحي صلاح حرب خليفة الاوسي",900,900,null,900,1,"مديرية شرطة الكهرباء","2018-05-31"]
["احمد عبد الجبار إبراهيم جواد",90,90,null,90,1,"مديرية نجدة ديالى","2018-05-31"]
["خالد كامل عبد الوهاب ",1500,1500,"سبلت 3 طن ",150,10,"وكالة شؤون الشرطة ","2018-05-31"]
["طارق جبار علي محمد الساعدي",700,700,"عارضة",100,7,"الشرطة الاتحادية","2018-05-31"]
["طارق جبار علي محمد الساعدي",750,750,"مبردة 3",150,5,"الشرطة الاتحادية","2018-05-31"]
["طارق جبار علي محمد الساعدي",75,75,"مروحة",25,3,"الشرطة الاتحادية","2018-05-31"]
["جاسم محسن كاظم عطية ",1413,{"$error":"#VALUE!"},"طباخ عدد 3",258,7,"حماية المنشأت","2018-05-31","تم التسديد"]
["جاسم محسن كاظم عطية ",1176,{"$error":"#VALUE!"},"شاشة 43 عدد3",216,7,"حماية المنشأت","2018-05-31","تم التسديد"]
["هاشم ثامر برنيط رميح",600,600,"غسالة ",86,7,"قيادة شرطة بغداد","2018-05-31"]
["هاشم ثامر برنيط رميح",75,75,"مروحة شحن",25,3,"قيادة شرطة بغداد","2018-05-31"]
["هاشم ثامر برنيط رميح",250,250,"ميز طعام",50,5,"قيادة شرطة بغداد","2018-05-31"]
["رياض جبار رضا عبد شيروان",900,900,"سبلت 2 طن",100,9,"الشرطة الاتحادية","2018-05-31"]
["رياض جبار رضا عبد شيروان",450,450,"سبلت 1 طن",65,7,"الشرطة الاتحادية","2018-05-31"]
["فراس محي فاضل حميد ",3000,3000,"سبلت 3 طن عدد 2",300,10,"الشرطة الاتحادية","2018-05-31"]
["فراس محي فاضل حميد ",450,450,"سبلت 1 طن",65,7,"الشرطة الاتحادية","2018-05-14"]
["مصطفى عباس حميد اسود",900,900,"سبلت 2 طن",100,9,"الشرطة الاتحادية","2018-05-14"]
["عمار رعد عبد الحسن احسان",1500,1500,"سبلت 3 طن",150,10,"الشرطة الاتحادية","2018-05-14"]
["عمار رعد عبد الحسن احسان",150,150,"مروحة 2",50,3,"الشرطة الاتحادية","2018-05-15"]
["زيد عباس خلف طارش ",3000,3000,"غرفة نوم",300,10,"الشرطة الاتحادية","2018-05-15"]
["هيثم صبري محمد معين ",1500,1500,"سبلت 3 طن",150,10,"الادعام العام","2018-05-19"]
["حيدر محي داخل حسن ",500,500,"شاشة 43",71,7,"الشرطة الاتحادية","2018-05-19"]
["حيدر محي داخل حسن ",250,250,"غسالة",50,5,"الشرطة الاتحادية","2018-05-20"]
["باسم محمد عليوي عودة ",250,250,"مبردة",50,5,"مكتب المستشار","2018-05-20"]
["حسام فتاح حميد خميس",75,75,"مروحة شحن",25,3,"قوات حرس الحدود","2018-05-20"]
["شاكر جبر حمدان مري ",2100,{"$error":"#VALUE!"},"سبلت 3 طن عدد 2",300,10,"فرقة التدخل السريع","2018-05-20","تم التسديد","تم التسديد"]
["شاكر جبر حمدان مري ",600,{"$error":"#VALUE!"},"سبلت 2 طن",100,9,"فرقة التدخل السريع","2018-05-27","تم التسديد","تم التسديد"]
["حنين قاسم حسن رضا الجعفري",510,{"$error":"#VALUE!"},"سبلت 1 طن",130,7,"فرقة التدخل السريع","2018-05-27","تم التسديد","تم التسديد"]
["زيدون عماد مذخور محسن المحمداوي",440,440,"شاشة 43",71,7,"الشرطة الاتحادية","2018-05-27"]
["زيدون عماد مذخور محسن المحمداوي",1350,1350,"سبلت 3 طن",150,10,"الشرطة الاتحادية","2018-05-27"]
["مازن قاسم حسين خلف",900,750,"سبلت 2 طن",100,9,"قيادة الشرطة الاتحادية / قسم الاعلام","2018-05-27",150]
["كرار ناجح مردان عبود ",257,{"$error":"#VALUE!"},"سبلت 1 طن",65,7,"مديرية النجدة العامة","2018-05-27","تم التسديد","تم التسديد"]
["حسين علي خلف طاهر ",250,250,"ميز طعام",50,5,"مديرية شرطة بغداد","2018-05-27"]
["خالد زكي عبد محمد اليساري",2800,{"$error":"#VALUE!"},"تكتك اصفر",350,10,"الشرطة الاتحادية","2018-05-27","تم التسديد","تم التسديد"]
["حيدر خضير عباس حمودي",1800,1800,"سبلت 2 طن عدد 2",200,9,"مديرية شرطة بغداد","2018-06-04"]
["حيدر عادل شميان غالب",1306,1306,null,435,3,"مديرية نفط الجنوب","2018-06-04"]
["محمد عزام سبهان عمر",850,850,null,425,2,"مديرية نفط الجنوب","2018-06-04"]
["مشتاق ناجح محمود يوسف",1142,{"$f":"B653-I653","v":1142},null,380,3,"مديرية نفط الجنوب","2018-06-04"]
["حسين أنور كزار خلخال",1452,1452,null,484,3,"مديرية نفط الجنوب","2018-06-04"]
["وليد عبد عناد علوان",510,510,null,510,1,"مديرية نفط الجنوب","2018-06-04"]
["سجاد صاحب ساهي صباح",969,969,null,485,2,"مديرية نفط الجنوب","2018-06-04"]
["علي عبد الواحد عبد الكريم",483,483,null,483,1,"مديرية نفط الجنوب","2018-06-04"]
["نجم عبود داخل امبارك",2901,2901,null,483,6,"مديرية نفط الجنوب","2018-06-04"]
["جابر طعمة رخيص طاهر",2901,2901,null,483,6,"مديرية نفط الجنوب","2018-06-04"]
["عقيل عبد اللطيف محمد حسن",1452,1452,null,483,3,"مديرية نفط الجنوب","2018-06-04"]
["سمر جبار شاطي راضي",1950,1950,null,487,4,"مديرية نفط الجنوب","2018-06-04"]
["جعفر وحيد خلف كاظم",1449,1449,null,483,3,"مديرية نفط الجنوب","2018-06-04"]
["دويج عكلة سدخان حايف",2418,2418,null,483,5,"مديرية نفط الجنوب","2018-06-04"]
["زكي قاسم عاشور موسى",207,207,null,207,1,"مديرية نفط الجنوب","2018-06-04"]
["ناظم عبد السادة محمد",850,850,null,425,2,"مديرية نفط الجنوب","2018-06-04"]
["بهاء الدين فنجان حسين",850,850,null,425,2,"مديرية نفط الجنوب","2018-06-04"]
["نزار محسن مزعل حسن",544,544,null,544,1,"مديرية نفط الجنوب","2018-06-04"]
["علي كامل علي عبد الحسين",3000,3000,"سبلت 3 طن عدد 2",300,10,"الشرطة الاتحادية","2018-06-04"]
["علي كامل علي عبد الحسين",500,500,"شاشة 43",71,7,"الشرطة الاتحادية","2018-06-05"]
["علي كامل علي عبد الحسين",450,450,"سبلت 1 طن",65,7,"الشرطة الاتحادية","2018-06-05"]
["سيف سعدي عبد جاسم",1000,1000,"شاشة 43 عدد 2",142,7,"مديرية التدقيق المركزي","2018-06-05"]
["مصطفى صادق هذال جعفر",1275,{"$error":"#VALUE!"},"سبلت 3 طن",150,10,"حماية المنشأت","2018-06-05","تم التسديد"]
["نشوان ظاهر حبيب قلب ",1500,1500,"سبلت 3 طن",150,10,"الشرطة الاتحادية ف3 اللواء الالي ","2018-06-05"]
["نشوان ظاهر حبيب قلب ",1000,1000,"شاشة 43 عدد 2",142,7,"الشرطة الاتحادية ف3 اللواء الالي ","2018-06-05"]
["نشوان ظاهر حبيب قلب ",250,250,"غسالة",50,5,"الشرطة الاتحادية ف3 اللواء الالي ","2018-06-05"]
["نشوان ظاهر حبيب قلب ",500,500,"مبردة 2",100,5,"الشرطة الاتحادية ف3 اللواء الالي ","2018-06-05"]
["صلاح جويد خلف سهيل ",500,500,"شاشة 43",71,7,"مكتب المستشار","2018-06-05"]
["هاني كاظم رحيمة عليوي",3000,3000,"سبلت 3 طن عدد 2",300,10,"مديرية الاتصالات ","2018-06-05"]
["هاني كاظم رحيمة عليوي",500,500,"شاشة 43",71,7,"مديرية الاتصالات ","2018-06-05"]
["جبار سلمان كاظم خلف ",250,250,"مبردة",50,5,"الشرطة الاتحادية","2018-06-05"]
["جبار سلمان كاظم خلف ",600,600,"ثلاجة 18",86,7,"الشرطة الاتحادية","2018-06-05"]
["جبار سلمان كاظم خلف ",1500,1500,"سبلت 3 طن",150,10,"الشرطة الاتحادية","2018-06-05"]
["سعد عبدالرزاق مجيد حبيب",2500,2500,"تخم قنفات",250,10,"حماية المنشأت","2018-06-05"]
["سعد عبدالرزاق مجيد حبيب",250,250,"مبردة",50,5,"حماية المنشأت","2018-06-05"]
["سعد عبدالرزاق مجيد حبيب",75,75,"مروحة شحن",25,3,"حماية المنشأت","2018-06-05"]
["علي جاسم سعدون حبش ",2100,{"$error":"#VALUE!"},"سبلت 3 طن عدد 2",300,10,"مديرية النجدة العامة","2018-06-05","تم التسديد","تم التسديد"]
["علي زبالة عيسى احمد الجبوري",3750,{"$error":"#VALUE!"},"سبلت 1 طن عدد 10",500,9,"حماية المنشأت","2018-06-05","تم التسديد"]
["علاء كريم حمودي جواد",2550,2100,"سبلت 3 طن عدد 2",300,10,"حماية المنشأت","2018-06-05",450,450]
["طارق جبار علي محمد الساعدي",3000,3000,"سبلت 3 طن عدد 2",300,10,"الشرطة الاتحادية","2018-06-06"]
["احمد هشام جاسم محمد",500,500,"ثلاجة 14 ",71,7,"الشرطة الاتحادية فوج المغاوير","2018-06-06"]
["احمد هشام جاسم محمد",600,600,"غسالة",86,7,"الشرطة الاتحادية فوج المغاوير","2018-06-06"]
["علاء خلف فرج سعيد ",450,450,"كارت 10",450,1,"الشرطة الاتحادية","2018-06-06"]
["علاء خلف فرج سعيد ",25,25,"خلاط",25,1,"الشرطة الاتحادية","2018-06-06"]
["علاء خلف فرج سعيد ",250,250,"شاشة 32",50,5,"الشرطة الاتحادية","2018-06-06"]
["حيدر عباس حسن محمد",320,{"$error":"#VALUE!"},"سبلت 1 طن",65,7,"الشرطة الاتحادية","2018-06-06","تم التسديد","تم التسديد"]
["ليث ثامر محمود احمد ",225,225,"كارتات 5",225,1,"الشرطة الاتحادية","2018-06-06"]
["حسين هاشم عبد علي القريشي",900,900,"سبلت ا طن عدد 2",130,7,"قوات حرس الحدود","2018-06-06"]
["عدي صبحي احمد إبراهيم",450,450,"سبلت 1 طن",65,7,"مديرية شؤون السيطرات","2018-06-06"]
["سارة علي ذياب صالح",1275,{"$error":"#VALUE!"},"سبلت 3 طن",150,10,"حماية المنشأت","2018-06-06","تم التسديد"]
["علاء علي حسين ولي ",2450,{"$error":"#VALUE!"},"تكتك اصفر",350,10,"الدفاع المدني ","2018-06-06","تم التسديد","تم التسديد"]
["علاء حسن كاطع جابر",250,250,"مبردة",50,5,"ش.أ امرية الطبابة","2018-06-06"]
["علاء حسن كاطع جابر",500,500,"شاشة 43",71,7,"ش.أ امرية الطبابة","2018-06-06"]
["حامد جواد كاظم شمخي ",1500,1500,"سبلت 3 طن",150,10,"ف2 ل8 فق2 ش.أ","2018-06-06"]
["سعيد محمد صالح علي ",1000,1000,"شاشة 43 عدد2",142,7,"الشرطة الاتحادية","2018-06-06"]
["علي رشيد حسين محمود ",900,900,"سبلت 1 طن ",130,7,"الشرطة الاتحادية","2018-06-06"]
["علي جمال عواد العبودي",250,250,"شاشة 32",50,5,"مديرية البنى التحتية ","2018-06-06"]
["ضياء ناظم حمادي احمد",200,200,"طباخ",50,4,"مديرية التخطيط والمتابعة","2018-06-06"]
["إيهاب غالب شغيدل عبيد",600,600,"طباخ",85,7,"الشرطة الاتحادية","2018-06-06"]
["إيهاب غالب شغيدل عبيد",500,500,"شاشة 43",71,7,"الشرطة الاتحادية","2018-06-06"]
["إيهاب غالب شغيدل عبيد",600,600,"ثلاجة رويال",86,7,"الشرطة الاتحادية","2018-06-06"]
["إيهاب غالب شغيدل عبيد",250,250,"ميز طعام",50,5,"الشرطة الاتحادية","2018-06-06"]
["علي حسن علي حمادي الموسوي",3275,{"$error":"#VALUE!"},"تكتك اصفر",350,10,"حماية المنشأت","2018-06-06","تم التسديد "]
["علي مهدي عبد الشهيد ",1350,1350,"سبلت 1 طن عدد 3",195,7,"حماية المنشأت","2018-06-06"]
["امير عبد الكريم نصيف جاسم",250,250,"شاشة 32",50,5,"قوات حرس الحدود","2018-06-06"]
["وائل خالد جثير لفتة الماجدي",4500,4500,"سبلت 1 طن عدد 10",450,10,"الشرطة الاتحادية","2018-06-07"]
["نبيل قاسم مشتت بطل ",472,{"$error":"#VALUE!"},"طباخ ",85,7,"حماية المنشأت","2018-06-07","تم التسديد"]
["نبيل قاسم مشتت بطل ",472,{"$f":"B717-I717","v":{"$error":"#VALUE!"}},"ثلاجة",85,7,"حماية المنشأت","2018-06-07","تم التسديد"]
["نبيل قاسم مشتت بطل ",393,{"$error":"#VALUE!"},"ثلاجة 14",71,7,"حماية المنشأت","2018-06-07","تم التسديد"]
["قصي جعفر شهيد حمزة",2700,{"$error":"#VALUE!"},"تكتك احمر",350,10,"فرقة التدخل السريع","2018-06-10","تم التسديد","تم التسديد"]
["وسام محمد حسين بجاي",3150,{"$error":"#VALUE!"},"سبلت 1 طن عدد 10",450,10,"مديرية شرطة النجدة","2018-06-10","تم التسديد","تم التسديد"]
["امين عبد الأمير شحم جرمد ",3150,{"$error":"#VALUE!"},"سبلت 1 طن عدد 10",450,10,"مديرية نجدة بغداد","2018-06-10","تم التسديد","تم التسديد"]
["احمد عطية جيجان عبيد",450,450,"سبلت اطن ",65,7,"قيادة الشرطة الاتحادية الفوج الالي","2018-06-10"]
["حيدر حسن علوان منهل",2000,2000,"شاشة 43 عدد 4",285,7,"الشرطة الاتحادية","2018-06-10"]
["عمر حمزة إبراهيم عيادة",4500,4500,"سبلت اطن عدد 10",500,9,"الشرطة الاتحادية","2018-06-10"]
["احمد بزون مجلي عادل",1500,{"$error":"#VALUE!"},"سبلت 2 طن عدد 2",200,9,"فرقة التدخل السريع","2018-06-10","تم التسديد"]
["حسن هادي سالم عباس ",3000,3000,"سبلت 3 طن 2",300,10,"الشرطة الاتحادية","2018-06-10"]
["حسن هادي سالم عباس ",250,250,"ميز طعام",50,5,"الشرطة الاتحادية","2018-06-10"]
["امجد حامد خزعل مجيسر ",3000,3000,"غرفة نوم",300,10,"الشرطة الاتحادية","2018-06-10"]
["ليث ثامر محمود احمد ",900,900,"سبلت 2 طن",100,9,"الشرطة الاتحادية","2018-06-10"]
["سعيد محمد صالح علي ",900,900,"سبلت 2 طن",100,9,"الشرطة الاتحادية","2018-06-10"]
["ميثاق حازم جبار نجم",2100,{"$error":"#VALUE!"},"سبلت 3 طن عدد 2",300,10,"مديرية نجدة بغداد","2018-06-10","تم التسديد","تم التسديد"]
["طه حسين محمد حسين الجبوري",510,{"$error":"#VALUE!"},"سبلت 1 طن عدد 2",130,7,"فرقة الرد السريع","2018-05-27","تم التسديد","تم التسديد"]
["طه حسين محمد حسين الجبوري",100,{"$error":"#VALUE!"},"مبردة",50,5,"فرقة الرد السريع","2018-05-27","تم التسديد","تم التسديد"]
["محمد عبد الزهرة محيسن حلو ",1275,{"$error":"#VALUE!"},"سبلت 3 طن",150,10,"حماية المنشأت","2018-06-10","تم التسديد"]
["محمد عبد الزهرة محيسن حلو ",280,{"$error":"#VALUE!"},"مجمدة 14",80,5,"حماية المنشأت","2018-06-10","تم التسديد"]
["محمد عبد الزهرة محيسن حلو ",37,{"$error":"#VALUE!"},"مروحة شحن",25,3,"حماية المنشأت","2018-06-10","تم التسديد"]
["لؤي عبد الحسين صيهود ",1800,1800,"طباخ 3",250,7,"الشرطة الاتحادية","2018-06-10"]
["لؤي عبد الحسين صيهود ",600,600,"غسالة",85,7,"الشرطة الاتحادية","2018-06-10"]
["لؤي عبد الحسين صيهود ",1200,1200,"طباخ عدد 2",170,7,"الشرطة الاتحادية","2018-06-10"]
["لؤي عبد الحسين صيهود ",450,450,"سبلت 1 طن",65,7,"الشرطة الاتحادية","2018-06-10"]
["علي داخل سعيد مهدي ",1800,1800,"سبلت 2 طن عدد 2",200,9,"كلية الشرطة","2018-06-10"]
["حسين جبار محمد نعمة",3000,3000,"سبلت 3 طن عدد 2",300,10,"مديرية شرطة بغداد","2018-06-10"]
["ساجد حسوني صالح عيسى",3000,3000,"سبلت 3 طن عدد 2",300,10,"مديرية شرطة بغداد","2018-06-10"]
["اكرم زمان داوود ديوان",180,180,"براد ماء",45,4,"كلية الشرطة","2018-06-10"]
["اكرم زمان داوود ديوان",500,500,"شاشة 43",71,7,"كلية الشرطة","2018-06-10"]
["نعمة شاكر نعمة محسن",3000,3000,"سبلت 3طن عدد 2",300,10,"الشرطة الاتحادية","2018-06-10"]
["نعمة شاكر نعمة محسن",450,450,"سبلت 1 طن",65,7,"الشرطة الاتحادية","2018-06-10"]
["ضياء عبد الحسين مهاوي سلمان",200,200,"شاشة 32",50,5,"مكتب الوزير","2018-06-20"]
["عباس ناجي صبري صالح",3500,3500,"تكتك اصفر",350,10,"مديرية البنى التحتية ","2018-06-20"]
["احسان ذياب إسماعيل داوود",250,250,"مبردة ",50,5,"الشرطة الاتحادية","2018-06-10"]
["احسان ذياب إسماعيل داوود",600,600,"ثلاجة 18",85,7,"الشرطة الاتحادية","2018-06-20"]
["احسان ذياب إسماعيل داوود",180,180,"براد ماء",45,4,"الشرطة الاتحادية","2018-06-20"]
["احسان ذياب إسماعيل داوود",900,900,"سبلت 2 طن",100,9,"الشرطة الاتحادية","2018-06-20"]
["بلال خالد ناجي مجيد البياتي",450,450,"سبلت 1 طن",65,7,"مديرية امن الافراد","2018-06-10"]
["سلمان شاكر محمود حياوي",900,900,"سبلت 2 طن",100,9,"الشرطة الاتحادية","2018-06-10"]
["سلمان شاكر محمود حياوي",25,25,"خلاط",25,1,"الشرطة الاتحادية","2018-06-02"]
["جبار كاظم سعدون مرهوش",250,250,"مبردة",50,5,"مديرية الموارد البشرية","2018-06-10"]
["جبار كاظم سعدون مرهوش",180,180,"براد ماء",45,4,"مديرية الموارد البشرية","2018-06-10"]
["ماهر جعفر كريم تريجي",4500,4500,"سبلت 1 طن عدد 10",500,9,"مديرية البنى التحتية ","2018-06-02"]
["سمير عزيز عباس الكعبي",3750,{"$error":"#VALUE!"},"سبلت اطن عدد 10",500,9,"حماية المنشأت","2018-06-02","تم التسديد"]
["احمد إبراهيم حسين عبد ",600,600,"ثلاجة 18",85,7,"مديرية شرطة بغداد","2018-06-10"]
["احمد إبراهيم حسين عبد ",75,75,"مروحة شحن",25,3,"مديرية شرطة بغداد","2018-06-02"]
["احمد إبراهيم حسين عبد ",250,250,"شاشة 32",50,5,"مديرية شرطة بغداد","2018-06-10"]
["احمد إبراهيم حسين عبد ",75,75,"سيت فرفوري",25,3,"مديرية شرطة بغداد","2018-06-02"]
["حيدر عذاب خماس داوود",574,{"$error":"#VALUE!"},"شاشة 43",142,7,"مديرية النجدة العامة","2018-06-10","تم التسديد","تم التسديد"]
["رفعت عيسى حبيب جاسم",250,250,"مبردة",50,5,"الشرطة الاتحادية","2018-06-02"]
["رفعت عيسى حبيب جاسم",1200,1200,"طباخ عدد 2",170,7,"الشرطة الاتحادية","2018-06-02"]
["رفعت عيسى حبيب جاسم",180,180,"براد ماء",45,4,"الشرطة الاتحادية","2018-06-02"]
["حيدر حسن علاوي عرفات",393,{"$error":"#VALUE!"},"شاشة 43",71,7,"حماية المنشأت","2018-06-02","تم التسديد"]
["علي حسين فاضل محمد ",3000,3000,"سبلت 3 طن عدد 2",300,10,"الشرطة الاتحادية","2018-06-10"]
["علي حسين فاضل محمد ",500,500,"مجمدة 14",71,7,"الشرطة الاتحادية","2018-06-02"]
["مؤيد عبد المجيد حميد راضي",100,{"$error":"#VALUE!"},"ميز طعام",50,5,"فرقة الرد السريع","2018-06-10","تم التسديد","تم التسديد"]
["حيدر محسن خليفة إبراهيم",600,600,"ثلاجة 18 قدم",85,7,"كلية الشرطة","2018-06-10",null,"تم التسديد"]
["باسم محمد كرم عزيز",500,500,"سبلت 1 طن",65,7,"الشرطة الاتحادية","2018-06-02",null,"تم التسديد"]
["حسن عبد قوجان فرج",3000,3000,"سبلت 3 طن عدد 2",300,10,"مديرية شرطة بغداد","2018-06-10",null,"تم التسديد"]
["ثامر علي حسين عسل",2550,{"$error":"#VALUE!"},"سبلت 3 طن عدد 2",300,10,"حماية المنشأت","2018-06-02","تم التسديد"]
["ثامر علي حسين عسل",402,{"$error":"#VALUE!"},"سبلت ا طن ",65,7,"حماية المنشأت","2018-06-10","تم التسديد"]
["جاسم عبد موسى سعيد",2550,{"$error":"#VALUE!"},"سبلت 3 طن عدد 2",300,10,"حماية المنشأت","2018-06-10","تم التسديد"]
["جاسم عبد موسى سعيد",402,{"$error":"#VALUE!"},"سبلت ا طن",65,7,"حماية المنشأت","2018-06-03","تم التسديد"]
["رائد فيصل غازي شرهان",1275,{"$error":"#VALUE!"},"سبلت 3 طن",150,10,"حماية المنشأت","2018-06-11","تم التسديد"]
["محمد حنون بني عبدالله",1500,{"$f":"B781-I781","v":{"$error":"#VALUE!"}},"سبلت 2 طن عدد 2",200,9,"حماية المنشأت","2018-06-03","تم التسديد"]
["مصطفى صادق هذال جعفر",1500,{"$error":"#VALUE!"},"سبلت 2 طن عدد 2",200,9,"حماية المنشأت","2018-06-03","تم التسديد"]
["عقيل شهيد لفتة فرج",3000,3000,"غرفة نوم",300,10,"مديرية التدريب والتأهيل","2018-06-03"]
["مؤيد صالح فهد الحيدري",1200,{"$error":"#VALUE!"},"سبلت 2 طن عدد 2",200,9,"الدفاع المدني ","2018-06-03","تم التسديد","تم التسديد"]
["مهدي هادي محمد حسن",1800,1800,"سبلت 2 طن عدد 2",200,9,"الشرطة الاتحادية","2018-06-11"]
["نصر عبد الرزاق كرم ناصح",45,45,"كارت",45,1,"الشرطة الاتحادية","2018-06-11"]
["وليد عبد السادة مزعل طلب",600,600,"غسالة اوتماتيك",86,7,"مديرية شرطة بغداد","2018-06-03"]
["احمد هشام جاسم محمد",600,600,"طباخ",85,7,"الشرطة الاتحادية","2018-06-11"]
["احمد هشام جاسم محمد",250,250,"مبردة",50,5,"الشرطة الاتحادية","2018-06-11"]
["احمد هشام جاسم محمد",500,500,"ثلاجة 14",71,7,"الشرطة الاتحادية","2018-06-03"]
["محمد عبد المحسن مسلم ",800,800,"سبلت 2 طن",100,9,"فوج طوارئ بغداد","2018-06-11"]
["محمد عبد المحسن مسلم ",450,450,"سبلت 1 طن",65,7,"فوج طوارئ بغداد","2018-06-03"]
["علاء عبدالله حسين كاظم ",450,450,"كارتات 10",450,1,"مكتب المستشار","2018-06-11"]
["وسام عبد الكريم عبد الحسين ",500,500,"شاشة 43",71,7,"حماية المنشأت","2018-06-03"]
["وسام عبد الكريم عبد الحسين ",900,900,"سبلت 2 طن",100,9,"حماية المنشأت","2018-06-03"]
["هيثم مهدي هادي عبد الرضا",900,900,"سبلت 2 طن",100,9,"الشرطة الاتحادية","2018-06-11"]
["هيثم مهدي هادي عبد الرضا",500,500,"شاشة 43",71,7,"الشرطة الاتحادية","2018-06-03"]
["هيثم مهدي هادي عبد الرضا",500,500,"مجمدة 14",71,7,"الشرطة الاتحادية","2018-06-11"]
["احمد غالي غانم كحيط الفرطوسي",900,900,"سبلت 2 طن ",100,9,"مديرية شرطة بغداد","2018-06-11"]
["علي عبدالله عبيد حسين ",400,400,"مجمدة 12",80,5,"الشرطة الاتحادية","2018-06-03"]
["مصطفى وليد كامل عبد الرزاق",352,{"$error":"#VALUE!"},"سبلت 1 طن",65,7,"حماية المنشأت","2018-06-03","تم التسديد"]
["صلاح حسن عباس متعب",770,770,"سبلت 1 طن عدد 2",100,9,"الشرطة الاتحادية","2018-06-03"]
["صلاح حسن عباس متعب",429,429,"شاشة 43",71,7,"الشرطة الاتحادية","2018-06-03"]
["صلاح حسن عباس متعب",50,50,"مروحة شحن",25,3,"الشرطة الاتحادية","2018-06-03"]
["نصيف جاسم مبارك جريدة",1350,1350,"سبلت 1 طن عدد 3",195,7,"مديرية امن الافراد","2018-06-03"]
["نصيف جاسم مبارك جريدة",500,500,"شاشة 43",71,7,"مديرية امن الافراد","2018-06-03"]
["محمد عبد القادر خماس ",1400,1400,"عارضة عدد 2",200,7,"الشرطة الاتحادية","2018-06-03"]
["ليث ثامر محمود احمد ",3000,3000,"تخم قنفات",300,10,"الشرطة الاتحادية","2018-06-03"]
["محمد باقر محمود كاطع",900,900,"سبلت 1 طن عدد 2",130,7,"الشرطة الاتحادية","2018-06-03"]
["محمد باقر محمود كاطع",180,180,"براد ماء",45,4,"الشرطة الاتحادية","2018-06-03"]
["محمد سعدي صالح عبد ",765,{"$error":"#VALUE!"},"سبلت 1 طن عدد 2",90,10,"حماية المنشأت","2018-06-04","تم التسديد"]
["ليث فاضل حبيب سلمان",450,450,"سبلت 1 طن",65,7,"الشرطة الاتحادية","2018-06-04"]
["ليث فاضل حبيب سلمان",500,500,"شاشة 43",71,7,"الشرطة الاتحادية","2018-06-04"]
["ليث فاضل حبيب سلمان",180,180,"براد ماء",45,4,"الشرطة الاتحادية","2018-06-04"]
["مصطفى عبد الأمير عبد الرزاق",600,600,"طباخ كريازي",85,7,"مديرية شرطة بغداد","2018-06-04"]
["نورس يوسف جبر ضايع ",25,25,"خلاط",25,1,"الشرطة الاتحادية","2018-06-04"]
["تحسين علي حسن بدن",232,{"$error":"#VALUE!"},"سبلت 1 طن",65,7,"مديرية نجدة بغداد","2018-06-11","تم التسديد","تم التسديد"]
["امين احمد صافي عبد الجبار",500,500,"شاشة 43",71,7,"الشرطة الاتحادية","2018-06-12"]
["امين احمد صافي عبد الجبار",180,180,"كارتات 4",180,7,"الشرطة الاتحادية","2018-06-04"]
["محمد جاسم حاكم بشارة",858,858,"شاشة 43 عدد 2",142,7,"قوات حرس الحدود","2018-06-04"]
["محمد جاسم حاكم بشارة",385,385,"سبلت 1 طن ",65,7,"قوات حرس الحدود","2018-06-04"]
["رياض عبدالله جبار عرمان",1350,1350,"سبلت 1طن عدد 3",195,7,"مديرية شرطة ديالى","2018-06-04"]
["احمد صبحي علو حسين",1350,1350,"سبلت 1 طن عدد 3",195,7,"مديرية شرطة ديالى","2018-06-04"]
["احمد صبحي علو حسين",250,250,"مبردة",50,5,"مديرية شرطة ديالى","2018-06-12"]
["امير رسول كاظم سعيد ",900,900,"سبلت 1 طن عدد 2",130,7,"قوات حرس الحدود","2018-06-04"]
["جاسم محمد صالح خلف ",75,75,"سيت فرفوري",25,3,"الشرطة الاتحادية","2018-06-12"]
["انسام سبع إبراهيم رزوقي",125,125,"غسالة حوضين",25,3,"مكتب الوكيل الاقدم","2018-06-04"]
["حيدر جليل يوسف حويش",4000,{"$error":"#VALUE!"},"سبلت 1 طن عدد 10",500,9,"حماية المنشأت","2018-06-04","تم التسديد"]
["عمر مهدي شنيشل رسن",600,600,"ثلاجة رويال",86,7,"مديرية البنى التحتية ","2018-06-04"]
["جميل حسين مهلهل جاسم اللامي",710,{"$error":"#VALUE!"},"شاشة 43 عدد 2",142,7,"مديرية نجدة بغداد","2018-06-12","تم التسديد","تم التسديد"]
["جميل حسين مهلهل جاسم اللامي",150,{"$error":"#VALUE!"},"طباخ",50,5,"مديرية نجدة بغداد","2018-06-12","تم التسديد","تم التسديد"]
["جميل حسين مهلهل جاسم اللامي",428,{"$error":"#VALUE!"},"ثلاجة",86,7,"مديرية نجدة بغداد","2018-06-12","تم التسديد","تم التسديد"]
["اكرم عباس حسن صحن",45,{"$error":"#VALUE!"},"كارت",45,1,"مديرية التدريب والتأهيل","2018-06-12","تم التسديد"]
["حاتم اكرم إبراهيم عباس ",640,{"$error":"#VALUE!"},"سبلت 1 طن عدد 2",130,7,"مديرية نجدة بغداد","2018-06-12","تم التسديد","تم التسديد"]
["حسن هادي سالم عباس ",250,{"$error":"#VALUE!"},"ميز طعام",50,5,"الشرطة الاتحادية","2018-06-12","تم التسديد"]
["قصي ساجد عبدالله عبد الرزاق",75,{"$error":"#VALUE!"},"مروحة شحن",25,3,"محكمة تميز قوى الامن","2018-06-07","تم التسديد"]
["قصي ساجد عبدالله عبد الرزاق",450,{"$error":"#VALUE!"},"سبلت 1 طن",65,7,"محكمة تميز قوى الامن","2018-06-07","تم التسديد"]
["حسين محمد ناو خاص",200,{"$error":"#VALUE!"},"مبردة ",50,5,"حماية المنشأت","2018-06-07","تم التسديد"]
["اثير سعد حسن حمود",4000,{"$error":"#VALUE!"},"سبلت 1 طن عدد 10",500,9,"حماية المنشأت","2018-06-07","تم التسديد"]
["جميل حسين مهلهل جاسم اللامي",320,{"$error":"#VALUE!"},"سبلت 1 طن",65,7,"مديرية نجدة بغداد","2018-06-12","تم التسديد","تم التسديد"]
["عدنان جري سلمان محي ",1500,{"$error":"#VALUE!"},"سبلت 3 طن",150,10,"الشرطة الاتحادية","2018-06-07","تم التسديد"]
["عدنان جري سلمان محي ",250,{"$error":"#VALUE!"},"شاشة 32",50,5,"الشرطة الاتحادية","2018-06-12","تم التسديد"]
["سوسن مهدي مرهون خميس",3000,{"$error":"#VALUE!"},"غرفة نوم",250,12,"الشرطة الاتحادية","2018-06-07","تم التسديد"]
["علي عبد الرزاق سالم حسين",385,{"$error":"#VALUE!"},"سبلت 1 طن",65,7,"فرقة التدخل السريع","2018-06-12","تم التسديد"]
["سلمان شاكر محمود حياوي",900,{"$f":"B845-I845","v":900},null,100,9,"الشرطة الاتحادية","2018-06-07"]
["سلمان شاكر محمود حياوي",225,225,null,225,1,"الشرطة الاتحادية","2018-06-07"]
["قصي ساجد عبدالله عبد الرزاق",1600,1600,null,178,9,"محكمة تميز قوى الامن","2018-06-12"]
["سهام نعمة عبد كريدي الزبيدي",900,900,null,130,7,"الشرطة الاتحادية","2018-06-07"]
["هيثم صالح هادي حسن",600,600,null,85,7,"الشرطة الاتحادية","2018-06-12"]
["وليد عبد السادة مزعل طلب",225,225,null,225,1,"فوج طوارئ بغداد","2018-06-07"]
["علي حسن جواد رضا الجبوري",450,450,null,450,1,"مديرية العقود","2018-06-07"]
["عباس عدنان فرحان عبدالله",250,250,null,50,5,"الشرطة الاتحادية","2018-06-07"]
["جلال صخي حربي جواد",400,400,null,80,5,"الشرطة الاتحادية","2018-06-07"]
["اياد كاظم جياد عبدالله ",250,250,null,50,5,"الشرطة الاتحادية","2018-06-07"]
["فارس عبد الحمزة كريم سالم",1200,1200,null,170,7,"الشرطة الاتحادية","2018-06-07"]
["وسام عبد الكريم عبد الحسين ",270,270,null,270,1,"حماية المنشأت","2018-06-07"]
["سارة علي ذياب صالح",320,{"$error":"#VALUE!"},null,80,5,"حماية المنشأت","2018-06-07","تم التسديد"]
["عباس ناجي صبري صالح",600,600,null,85,7,"مديرية البنى التحتية ","2018-06-07"]
["طارق حسن علوان محيميد ",2250,{"$error":"#VALUE!"},null,250,10,"مديرية شرطة النجدة","2018-06-07","تم التسديد"]
["طارق حسن علوان محيميد ",1000,{"$error":"#VALUE!"},null,250,5,"مديرية شرطة النجدة","2018-06-07","تم التسديد"]
["حسين صبحي حسن حمادي",250,{"$error":"#VALUE!"},null,50,5,"مديرية شرطة النجدة","2018-06-07","تم التسديد"]
["عدنان جري سلمان محي ",250,{"$error":"#VALUE!"},null,50,5,"الشرطة الاتحادية","2018-06-07","تم التسديد"]
["صلاح حسن عباس متعب",400,400,null,80,5,"الشرطة الاتحادية","2018-06-07"]
["علي إسماعيل عبد الحسن صبر",360,360,null,360,1,"قوات حرس الحدود","2018-06-09"]
["مروان عدنان مهدي ظاهر",250,250,null,50,5,"الشرطة الاتحادية","2018-06-09"]
["مروان عدنان مهدي ظاهر",135,135,null,135,1,"الشرطة الاتحادية","2018-06-09"]
["فراس عبد الحميد محمد حسين",1200,{"$error":"#VALUE!"},null,200,7,"حماية المنشأت","2018-06-09","تم التسديد"]
["علي طالب هاشم عكروك",180,180,null,45,4,"الشرطة الاتحادية","2018-06-09"]
["وسام جليل ثجيل جاسم ",4500,4500,null,500,9,"مديرية البنى التحتية ","2018-06-09"]
["عبد الحسين عبد محيسن علي",4000,3500,null,500,9,"حماية المنشأت","2018-06-09",500,500]
["عبدالرزاق مطرود زناد سعيد",900,900,null,100,9,"الشرطة الاتحادية","2018-06-09"]
["حيدر حسن علوان منهل",1000,1000,null,200,5,"الشرطة الاتحادية","2018-06-09"]
["صادق جعفر ويس عبد العزيز",900,900,null,100,9,"الشرطة الاتحادية","2018-06-09"]
["تحسين مصطفى عنتر ولي علي",450,450,null,450,1,"الشرطة الاتحادية","2018-06-09"]
["علي حامد عبيد جاسم ",75,75,null,25,3,"الشرطة الاتحادية","2018-06-09"]
["قصي جعفر شهيد حمزة",700,{"$error":"#VALUE!"},null,100,9,"فرقة التدخل السريع","2018-06-09","تم التسديد","تم التسديد"]
["حيدر محسن خليفة إبراهيم",600,600,null,85,7,"كلية الشرطة","2018-06-09"]
["طه كنعان عبد المنعم مصطفى",1600,1600,null,200,8,"الشرطة الاتحادية","2018-06-09"]
["طه كنعان عبد المنعم مصطفى",2250,2250,null,325,7,"الشرطة الاتحادية","2018-06-09"]
["حسام عبد الأمير صبري معين",293,{"$error":"#VALUE!"},null,65,7,"شرطة النجدة","2018-06-09","تم التسديد","تم التسديد"]
["محمد عبد الحسين كاظم يوسف ",320,{"$error":"#VALUE!"},null,65,7,"مديرية شرطة النجدة","2018-06-09","تم التسديد","تم التسديد"]
["محمد عبد الحسين كاظم يوسف ",430,{"$error":"#VALUE!"},null,85,7,"مديرية شرطة النجدة","2018-06-09","تم التسديد","تم التسديد"]
["محمد عبد الحسين كاظم يوسف ",900,{"$error":"#VALUE!"},null,300,5,"مديرية شرطة النجدة","2018-06-09","تم التسديد","تم التسديد"]
["محمد عبد الحسين كاظم يوسف ",25,{"$error":"#VALUE!"},null,25,3,"مديرية شرطة النجدة","2018-06-09","تم التسديد","تم التسديد"]
["محمد عبد الحسين كاظم يوسف ",150,{"$error":"#VALUE!"},null,50,5,"مديرية شرطة النجدة","2018-06-09","تم التسديد","تم التسديد"]
["ضياء حسين علي شعبان ",4500,{"$error":"#VALUE!"},null,500,9,"الشرطة الاتحادية","2018-06-09","تم التسديد","تم التسديد"]
["حسين صبحي حسن حمادي",600,{"$error":"#VALUE!"},null,86,7,"مديرية شرطة بغداد","2018-06-09","تم التسديد"]
["عدنان حسوني صالح",250,{"$error":"#VALUE!"},null,50,5,"مديرية شرطة بغداد","2018-06-09","تم التسديد"]
["عدنان حسوني صالح",250,250,null,50,5,"مديرية شرطة بغداد","2018-06-09"]
["طالب لفتة نوح صريم",150,{"$error":"#VALUE!"},null,50,5,"مديرية نجدة بغداد","2018-06-09","تم التسديد","تم التسديد"]
["عدنان كامل عنيد جابر ",2500,{"$error":"#VALUE!"},null,250,12,"مديرية نجدة بغداد","2018-06-10","تم التسديد","تم التسديد"]
["عدنان كامل عنيد جابر ",1280,{"$error":"#VALUE!"},null,260,7,"مديرية نجدة بغداد","2018-06-10","تم التسديد","تم التسديد"]
["علي رحمة عذاب حسن",200,{"$error":"#VALUE!"},null,50,5,"مديرية شرطة النجدة","2018-06-10","تم التسديد","تم التسديد"]
["صادق جعفر ويس عبد العزيز",3500,3500,null,375,9,"الشرطة الاتحادية","2018-06-10"]
["حمزة عبد دخان مجدوم",250,250,null,50,5,"الشرطة الاتحادية","2018-06-10"]
["امين احمد صافي عبد الجبار",2500,2500,null,250,10,"الشرطة الاتحادية","2018-06-12"]
["امين احمد صافي عبد الجبار",600,600,null,85,7,"الشرطة الاتحادية","2018-06-12"]
["جبار سلمان كاظم خلف ",600,600,null,85,7,"الشرطة الاتحادية","2018-06-12"]
["جبار سلمان كاظم خلف ",25,25,null,25,1,"الشرطة الاتحادية","2018-06-12"]
["جبار سلمان كاظم خلف ",250,250,null,50,5,"الشرطة الاتحادية","2018-06-12"]
["سحر ياسين كاظم عبود",250,250,null,50,5,"مديرية شرطة بغداد","2018-06-12"]
["سحر ياسين كاظم عبود",400,400,null,80,5,"مديرية شرطة بغداد","2018-06-12"]
["سحر ياسين كاظم عبود",250,250,null,50,5,"مديرية شرطة بغداد","2018-06-12"]
["عبد القادر سمير بازول صالح",250,250,null,50,5,"الشرطة الاتحادية","2018-06-12"]
["عبد القادر سمير بازول صالح",250,250,null,50,5,"الشرطة الاتحادية","2018-06-12"]
["سيف جعفر جبار عبد رمضان",250,250,null,50,5,"الشرطة الاتحادية","2018-06-12"]
["سيف جعفر جبار عبد رمضان",180,180,null,180,1,"الشرطة الاتحادية","2018-06-12"]
["عباس راضي كاظم فرحان",250,250,null,50,5,"الشرطة الاتحادية","2018-06-12"]
["عباس راضي كاظم فرحان",25,{"$f":"B909-I909","v":25},null,25,1,"الشرطة الاتحادية","2018-06-12"]
["عباس راضي كاظم فرحان",45,45,null,45,1,"الشرطة الاتحادية","2018-06-12"]
["محمد عبد الزهرة كزيز وطن",250,250,null,50,5,"مديرية التدريب والتأهيل","2018-06-12"]
["عباس عبدالله سعد عبد",600,600,null,85,7,"مديرية الجنسية العامة","2018-06-12"]
["عباس عبدالله سعد عبد",250,250,null,50,5,"مديرية الجنسية العامة","2018-06-12"]
["عباس عبدالله سعد عبد",400,400,null,80,5,"مديرية الجنسية العامة","2018-06-12"]
["عباس عبدالله سعد عبد",180,180,null,180,1,"مديرية الجنسية العامة","2018-06-12"]
["هيثم مهدي هادي عبد الرضا",135,135,null,135,1,"الشرطة الاتحادية","2018-06-12"]
["علي نجم عبودي ذهب العبادي",3500,3500,null,375,9,"الشرطة الاتحادية","2018-06-12"]
["علي نجم عبودي ذهب العبادي",600,600,null,85,7,"الشرطة الاتحادية","2018-06-12"]
["احمد محمد شكري محمود ",3000,3000,null,425,7,"مديرية البنى التحتية ","2018-06-12"]
["اكرم حميد محمود دحام",1500,1500,null,150,10,"الشرطة الاتحادية","2018-06-09"]
["اكرم حميد محمود دحام",250,250,null,50,5,"الشرطة الاتحادية","2018-06-09"]
["اكرم حميد محمود دحام",45,45,null,45,1,"الشرطة الاتحادية","2018-06-09"]
["عدنان عاكول زغير فياض",600,600,null,85,7,"محكمة تميز قوى الامن","2018-06-09"]
["محمد حسن هادي مسرهد",600,600,null,85,7,"الشرطة الاتحادية","2018-06-09"]
["حسين فرحان بدن ثويني",3500,{"$error":"#VALUE!"},null,500,9,"مديرية نجدة بغداد","2018-06-13","تم التسديد"]
["ماجد جاسب حسن شلش ",4500,{"$error":"#VALUE!"},null,500,9,"قوات حرس الحدود","2018-06-13","تم التسديد"]
["جاسم خالد حكمان صالح ",600,{"$error":"#VALUE!"},null,85,7,"قوات حرس الحدود","2018-06-13","تم التسديد"]
["صفاء حسن حمود بطي",4500,{"$error":"#VALUE!"},null,500,9,"الشرطة الاتحادية","2018-06-13","تم التسديد"]
["سلام ياسر عبدالله جاسم ",2250,2250,null,325,7,"الشرطة الاتحادية","2018-06-13"]
["سلام ياسر عبدالله جاسم ",500,500,null,100,5,"الشرطة الاتحادية","2018-06-13"]
["قيصر حويس علي شخير",1400,{"$error":"#VALUE!"},null,175,10,"مديرية النجدة العامة","2018-06-13","تم التسديد","تم التسديد"]
["قيصر حويس علي شخير",320,{"$error":"#VALUE!"},null,65,7,"مديرية النجدة العامة","2018-06-13","تم التسديد","تم التسديد"]
["فلاح حسن حربي احمد ",250,250,null,50,5,"قوات حرس الحدود","2018-06-13"]
["اكرم عباس حسن صحن",45,45,null,45,1,"مديرية التدريب والتأهيل","2018-06-13"]
["علاء الدين شاكر حمود العبودي",1500,1500,null,150,10,"الشرطة الاتحادية","2018-06-13"]
["محمد عبد الزهرة محيسن حلو ",200,{"$error":"#VALUE!"},null,50,5,"حماية المنشأت","2018-06-13","تم التسديد"]
["طالب لفتة نوح صريم",640,{"$error":"#VALUE!"},null,130,7,"مديرية النجدة العامة","2018-06-13","تم التسديد","تم التسديد"]
["عصام محمد علي جاسم الربيعي",900,900,null,130,7,"مديرية التدريب والتأهيل","2018-06-13"]
["عصام محمد علي جاسم الربيعي",750,750,null,150,5,"مديرية التدريب والتأهيل","2018-06-13"]
["عصام محمد علي جاسم الربيعي",800,800,null,200,4,"مديرية التدريب والتأهيل","2018-06-13"]
["رائد ناصر حسن ثامر ",450,450,null,65,7,"الشرطة الاتحادية","2018-06-13"]
["رائد ناصر حسن ثامر ",250,250,null,50,5,"الشرطة الاتحادية","2018-06-13"]
["رائد ناصر حسن ثامر ",400,400,null,100,4,"الشرطة الاتحادية","2018-06-13"]
["ضياء الدين فالح حسن",250,250,null,50,5,"محكمة تميز قوى الامن","2018-06-13"]
["ضياء الدين فالح حسن",250,250,null,50,5,"محكمة تميز قوى الامن","2018-06-13"]
["حسين مهدي صالح كاظم",250,250,null,50,5,"معهد اعداد المفوضين","2018-06-13"]
["خالد كامل عبد الوهاب ",250,250,null,50,5,"وكالة شؤون الشرطة ","2018-06-13"]
["بشار هادي مظلوم عناد ",2500,{"$error":"#VALUE!"},null,500,7,"شرطة نجدة بغداد","2018-06-13","تم التسديد","تم التسديد"]
["طارق حسين علي فتاح ",3150,{"$error":"#VALUE!"},null,450,7,"مديرية شرطة بغداد","2018-06-13","تم التسديد","تم التسديد"]
["سحر ياسين كاظم عبود",250,{"$error":"#VALUE!"},null,50,5,"مديرية شرطة بغداد","2018-06-13","تم التسديد","تم التسديد"]
["محمد كريم رحيمة حمد",250,{"$error":"#VALUE!"},null,50,5,"الشرطة الاتحادية","2018-06-13","تم التسديد","تم التسديد"]
["محمد كريم رحيمة حمد",250,250,null,50,5,"الشرطة الاتحادية","2018-06-13"]
["جاسم محمد صالح خلف ",250,250,null,50,5,"الشرطة الاتحادية","2018-06-13"]
["علي كاطع كاظم فلحي ",200,{"$error":"#VALUE!"},null,50,5,"حماية المنشأت","2018-06-13","تم التسديد"]
["عامر عبد العزيز خضير محيميد",3500,3500,null,500,7,"مديرية شرطة بغداد","2018-06-13"]
["محمد كريم رحيمة حمد",250,250,null,50,5,"الشرطة الاتحادية","2018-06-13"]
["محمد فخري كامل ثجيل",500,500,null,100,5,"الشرطة الاتحادية","2018-06-13"]
["محمد فخري كامل ثجيل",700,700,null,100,7,"الشرطة الاتحادية","2018-06-13"]
["حيدر عدنان دلي علي ",250,250,null,50,5,"شرطة بغداد","2018-06-14"]
["ليث فاضل حبيب سلمان",600,600,null,86,7,"الشرطة الاتحادية","2018-06-14"]
["ليث فاضل حبيب سلمان",250,250,null,50,5,"الشرطة الاتحادية","2018-06-14"]
["حاتم اكرم إبراهيم عباس ",428,{"$error":"#VALUE!"},null,86,7,"مديرية نجدة بغداد","2018-06-14","تم التسديد","تم التسديد"]
["تيسير حامد محمود حسن",2000,{"$error":"#VALUE!"},null,375,5,"الشرطة الاتحادية","2018-06-14","تم التسديد"]
["تيسير حامد محمود حسن",250,{"$error":"#VALUE!"},null,50,5,"الشرطة الاتحادية","2018-06-14","تم التسديد"]
["سعدي فاضل عباس ناصر ",250,{"$error":"#VALUE!"},null,50,5,"الشرطة الاتحادية","2018-06-14","تم التسديد"]
["سيروان شجاع جاسم يعقوب",250,250,null,50,5,"الشرطة الاتحادية","2018-06-14"]
["سيروان شجاع جاسم يعقوب",25,25,null,25,1,"الشرطة الاتحادية","2018-06-14"]
["خالد جابر عبد العزيز سليمان",250,250,null,50,5,"الشرطة الاتحادية","2018-06-14"]
["علي سلومي كومان خزاز  ",250,250,null,50,5,"الشرطة الاتحادية","2018-06-14"]
["فاضل عباس سعد شندي",180,180,null,45,4,"مديرية الخدمات الطبية","2018-06-14"]
["كاظم كريم جاسم محمد",250,250,null,50,5,"الشرطة الاتحادية","2018-06-14"]
["عباس راضي كاظم فرحان",900,900,null,100,9,"الشرطة الاتحادية","2018-06-14"]
["عمر منديل محيسن جواد",3500,{"$f":"B973-I973","v":3500},null,350,10,"الشرطة الاتحادية","2018-06-14"]
["عمر منديل محيسن جواد",25,25,null,25,1,"الشرطة الاتحادية","2018-06-14"]
["جاسم خالد حكمان صالح ",900,900,null,100,9,"قوات حرس الحدود","2018-06-14"]
["جاسم خالد حكمان صالح ",500,500,null,100,5,"قوات حرس الحدود","2018-06-14"]
["جاسم خالد حكمان صالح ",250,250,null,50,5,"قوات حرس الحدود","2018-06-14"]
["رائد ناصر حسن ثامر ",1800,1800,null,200,9,"الشرطة الاتحادية","2018-06-14"]
["عقيل محسن ماجد عطية ",900,900,null,100,9,"الشرطة الاتحادية","2018-06-14"]
["حسين علي نعمة شبار العبودي",1800,1800,null,200,9,"مديرية التدريب البدني","2018-06-14"]
["سعاد عبد إبراهيم المراشك",600,{"$error":"#VALUE!"},null,100,9,"وكالة شؤون الشرطة ","2018-06-14","تم التسديد","تم التسديد","تم التسديد"]
["محمد حسن هادي مسرهد",400,400,null,80,5,"الشرطة الاتحادية","2018-06-14"]
["محمد حسن هادي مسرهد",250,250,null,50,5,"الشرطة الاتحادية","2018-06-14"]
["محمد حسن هادي مسرهد",250,250,null,50,5,"الشرطة الاتحادية","2018-06-14"]
["علي صالح حسن اعليب ",900,900,null,100,9,"الشرطة الاتحادية","2018-06-14"]
["محمود سباح موسى مشكور",1600,{"$error":"#VALUE!"},null,200,9,"فرقة التدخل السريع","2018-06-14","تم التسديد"]
["محمود سباح موسى مشكور",250,250,null,50,5,"فرقة التدخل السريع","2018-06-14"]
["قحطان حكمان ناصر محمد",600,{"$error":"#VALUE!"},null,100,7,"حماية المنشأت","2018-06-14","تم التسديد"]
["محمد كريم رحيمة حمد",1800,1800,null,200,9,"الشرطة الاتحادية","2018-06-14"]
["عدنان جري سلمان محي ",900,900,null,100,9,"الشرطة الاتحادية","2018-06-14"]
["علي مهدي حسن لفتة",125,{"$error":"#VALUE!"},null,50,5,"قوات رد السريع","2018-06-14","تم التسديد","تم التسديد"]
["علي مهدي حسن لفتة",675,{"$error":"#VALUE!"},null,100,9,"قوات رد السريع","2018-06-14","تم التسديد","تم التسديد"]
["ماهر حميد عبود داغر",3500,3500,null,350,10,"مديرية الاتصالات ","2018-06-14"]
["وعد لطفي حسين نور الدين",2700,2700,null,300,9,"حماية المنشأت","2018-06-14"]
["خالد وليد زكريا خليل",2700,{"$error":"#VALUE!"},null,300,10,"حماية المنشأت","2018-06-14","تم التسديد"]
["نصيف جاسم مبارك جريدة",700,700,null,100,7,"مديرية امن الافراد","2018-06-14"]
["علاء حسن عباس متعب",2700,2700,null,300,9,"الشرطة الاتحادية","2018-06-14"]
["نصير عبد العادل مهاوس",2700,2700,null,300,9,"قوات حرس الحدود","2018-06-14"]
["حامد عيدان موزان علي",700,{"$error":"#VALUE!"},null,100,9,"قاطع نجدة الرشاد","2018-06-14","تم التسديد","تم التسديد"]
["حامد عيدان موزان علي",700,{"$error":"#VALUE!"},null,100,9,"قاطع نجدة الرشاد","2018-06-14","تم التسديد","تم التسديد"]
["عدي عدنان صديق صالح",900,{"$error":"#VALUE!"},null,100,9,"الشرطة الاتحادية","2018-06-14","تم التسديد"]
["حيدر فاضل حمزة سلمان ",1600,{"$error":"#VALUE!"},null,160,10,"الشرطة الاتحادية","2018-06-14","تم التسديد"]
["خالد جابر عبد العزيز سليمان",900,900,null,100,9,"الشرطة الاتحادية","2018-06-14"]
["حيدر فاضل حمزة سلمان ",900,900,null,100,9,"الشرطة الاتحادية","2018-06-14"]
["علي وحيد جبر حسن ",3500,3500,null,350,10,"مديرية شرطة بغداد","2018-06-14"]
["حيدر فرحان محمد حسين ",200,{"$error":"#VALUE!"},null,50,5,"حماية المنشأت","2018-06-14","تم التسديد"]
["محمد كريم عبد مهاوي",3150,3150,null,315,10,"الشرطة الاتحادية","2018-06-19"]
["علي جمال فيصل محمد ",900,900,null,100,9,"مديرية النجدة قاطع الكندي","2018-06-14"]
["إبراهيم محمد كريم رشيد",2100,2100,null,300,7,"مديرية شرطة بغداد","2018-06-19"]
["محمد فخري كامل ثجيل",750,750,null,83,9,"الشرطة الاتحادية","2018-06-14"]
["احمد كريم رمح علي المجمعي",1246,{"$error":"#VALUE!"},null,177,9,"فرقة التدخل السريع","2018-06-19","تم التسديد","تم التسديد"]
["علي كاظم حميد حسين ",1500,1500,null,200,8,"الشرطة الاتحادية","2018-06-19"]
["اكرم عباس حسن صحن",900,900,null,100,9,"مديرية التدريب والتأهيل","2018-06-18"]
["حبيب محمد جاسم حطاب",1500,1500,null,200,8,"الشرطة الاتحادية","2018-06-19"]
["سحر ياسين كاظم عبود",250,250,null,50,5,"مديرية شرطة بغداد","2018-06-18"]
["حيدر رحيم علي ضويع",1600,1600,null,177,9,"الشرطة الاتحادية","2018-06-19"]
["عادل محمد داخل شايع",1650,{"$error":"#VALUE!"},null,300,8,"مديرية نجدة بغداد","2018-06-18","تم التسديد","تم التسديد"]
["صلاح عبد المهدي صالح عبد",75,{"$error":"#VALUE!"},null,25,3,"مديرية التدريب والتأهيل","2018-06-19","تم التسديد"]
["محمد مهدي صالح عبد الهادي",3500,{"$error":"#VALUE!"},null,350,10,"الشرطة الاتحادية","2018-06-18","تم التسديد"]
["عادل رشيد حميد خماس",1090,{"$error":"#VALUE!"},null,155,9,"مديرية نجدة بغداد","2018-06-19","تم التسديد","تم التسديد"]
["عادل رشيد حميد خماس",450,{"$error":"#VALUE!"},null,150,5,"مديرية نجدة بغداد","2018-06-18","تم التسديد","تم التسديد"]
["عادل رشيد حميد خماس",150,{"$error":"#VALUE!"},null,50,5,"مديرية نجدة بغداد","2018-06-19","تم التسديد","تم التسديد"]
["ضحى عبد الاله عبد الحسين ",250,{"$error":"#VALUE!"},null,50,5,"الشرطة الاتحادية","2018-06-19","تم التسديد"]
["ضحى عبد الاله عبد الحسين ",75,{"$error":"#VALUE!"},null,25,3,"الشرطة الاتحادية","2018-06-18","تم التسديد"]
["علي حسين صكبان سلمان ",3500,3500,null,350,10,"مديرية الصيانة والخدمات","2018-06-18"]
["فراس عبد الحميد محمد حسين",667,{"$error":"#VALUE!"},null,83,9,"حماية المنشأت","2018-06-19","تم التسديد"]
["ضياء عبد الحسين مهاوي سلمان",250,250,null,50,5,"مكتب الوزير","2018-06-19"]
["لؤي قدوري عبد الوهاب نوري",546,{"$error":"#VALUE!"},null,77,9,"مديرية نجدة بغداد","2018-06-18","تم التسديد","تم التسديد"]
["حيدر عدنان دلي علي ",1400,1400,null,155,9,"قيادة شرطة بغداد","2018-06-19"]
["لؤي قدوري عبد الوهاب نوري",546,{"$error":"#VALUE!"},null,77,9,"مديرية نجدة بغداد","2018-06-19","تم التسديد","تم التسديد"]
["حيدر حسين جاسم محمد الخفاجي",900,900,null,100,9,"حماية المنشأت والشخصيات","2018-06-18"]
["حيدر حسين جاسم محمد الخفاجي",250,250,null,50,5,"حماية المنشأت والشخصيات","2018-06-18"]
["صفاء دايخ فرحان وثيج",750,750,null,83,9,"مديرية شرطة بغداد","2018-06-19"]
["فراس حسين عباس مريوش",1600,{"$error":"#VALUE!"},null,200,10,"مديرية النجدة","2018-06-19","تم التسديد","تم التسديد"]
["فراس حسين عباس مريوش",700,{"$error":"#VALUE!"},null,100,9,"مديرية النجدة","2018-06-19","تم التسديد","تم التسديد"]
["باسم هادي احمد نايف",1980,{"$error":"#VALUE!"},null,285,9,"مديرية نجدة بغداد","2018-06-19","تم التسديد","تم التسديد"]
["مرتضى وادي عبد محمد ",1980,{"$f":"B1037-I1037","v":{"$error":"#VALUE!"}},null,285,9,"مديرية نجدة بغداد","2018-06-19","تم التسديد","تم التسديد"]
["احمد عطية جيجان عبيد",250,250,null,50,5,"الشرطة الاتحادية","2018-06-19"]
["زيد صالح حسن عبد الامام",2550,2550,null,285,9,"الرد السريع","2018-06-19"]
["وسام عباس عطية عبيد الحسيني",1752,{"$error":"#VALUE!"},null,249,9,"فرقة التدخل السريع","2018-06-19","تم التسديد","تم التسديد"]
["طه عبد الستار إبراهيم حمد",2250,2250,null,249,9,"مديرية شرطة بغداد","2018-06-19"]
["طه عبد الستار إبراهيم حمد",250,250,null,50,5,"مديرية شرطة بغداد","2018-06-19"]
["علاء مدب حسن خميس ",700,700,null,77,9,"الشرطة الاتحادية","2018-06-19"]
["علي سلمان حاوي علوان ",750,750,null,83,9,"مديرية شرطة بغداد","2018-06-19"]
["محمد صادق نور محمد ",750,750,null,83,9,"مديرية شرطة بغداد","2018-06-19"]
["لؤي عبد الحسين صيهود ",850,850,null,95,9,"مديرية الجنسية العامة","2018-06-21"]
["لؤي عبد الحسين صيهود ",750,750,null,83,9,"مديرية الجنسية العامة","2018-06-19"]
["علي جمال فيصل محمد ",250,250,null,50,5,"مديرية نجدة بغداد","2018-06-21"]
["علي جمال فيصل محمد ",750,750,null,83,9,"مديرية نجدة بغداد","2018-06-20"]
["محمود سباح موسى مشكور",613,{"$error":"#VALUE!"},null,87,8,"فرقة التدخل السريع","2018-06-21","تم التسديد"]
["محمود سباح موسى مشكور",250,250,null,50,5,"فرقة التدخل السريع","2018-06-20"]
["محمود سباح موسى مشكور",75,75,null,25,3,"فرقة التدخل السريع","2018-06-21"]
["حيدر علي نعمة شبار ",250,250,null,50,5,"مديرية العاب نادي الشرطة","2018-06-21"]
["حيدر علي نعمة شبار ",75,75,null,25,3,"مديرية العاب نادي الشرطة","2018-06-20"]
["حيدر علي نعمة شبار ",700,700,null,87,8,"مديرية العاب نادي الشرطة","2018-06-21"]
["حوراء فرحان عباس حلو ",600,600,null,71,8,"مركز تدريب النجف","2018-06-20"]
["حوراء فرحان عباس حلو ",1800,1800,null,200,9,"مركز تدريب النجف","2018-06-21"]
["حوراء فرحان عباس حلو ",600,600,null,85,7,"مركز تدريب النجف","2018-06-20"]
["حوراء فرحان عباس حلو ",75,75,null,25,3,"مركز تدريب النجف","2018-06-21"]
["معتز شاكر خضير دايم",700,700,null,100,7,"مديرية التدريب","2018-06-20"]
["معتز شاكر خضير دايم",400,400,null,80,5,"مديرية التدريب","2018-06-21"]
["نور مسلم رحومي حمادي",600,600,null,85,7,"مديرية شرطة النجف","2018-06-20"]
["نور مسلم رحومي حمادي",900,900,null,100,9,"مديرية شرطة النجف","2018-06-20"]
["نور مسلم رحومي حمادي",250,250,null,50,5,"مديرية شرطة النجف","2018-06-20"]
["علي سلومي كومان خزاز  ",1500,1500,null,166,9,"الشرطة الاتحادية","2018-06-21"]
["علي سلومي كومان خزاز  ",750,750,null,83,9,"الشرطة الاتحادية","2018-06-21"]
["جعفر صادق عبيد بشيت",25,{"$error":"#VALUE!"},null,25,3,"فرقة التدخل السريع","2018-06-20","تم التسديد","تم التسديد"]
["احمد كريم رمح علي المجمعي",1422,{"$error":"#VALUE!"},null,89,9,"فرقة التدخل السريع","2018-06-21","تم التسديد","تم التسديد"]
["وسام عباس عطية عبيد الحسيني",534,{"$error":"#VALUE!"},null,83,9,"فرقة التدخل السريع","2018-06-20","تم التسديد","تم التسديد"]
["محمد مجيد صغير فاضل ",250,250,null,50,5,"قوات حرس الحدود","2018-06-21"]
["محمد مجيد صغير فاضل ",600,600,null,85,7,"قوات حرس الحدود","2018-06-21"]
["علي جمال فيصل محمد ",900,900,null,100,9,"مديرية نجدة بغداد","2018-06-20"]
["حسام حمزة مظلوم عبد الرضا",3150,{"$error":"#VALUE!"},null,350,10,"حماية المنشأت","2018-06-21","تم التسديد"]
["حيدر عدنان دلي علي ",750,750,null,83,9,"قيادة شرطة بغداد","2018-06-20"]
["حسين علي حمادي علي ",3150,{"$error":"#VALUE!"},null,350,10,"حماية المنشأت","2018-06-20","تم التسديد"]
["حيدر حسين جاسم محمد الخفاجي",800,800,null,89,9,"حماية المنشات والشخصيات","2018-06-21"]
["حيدر حسين جاسم محمد الخفاجي",250,250,null,50,5,"حماية المنشات والشخصيات","2018-06-20"]
["علي عبد الرحيم كاطع عبود",3500,3500,null,350,5,"الشرطة الاتحادية","2018-06-20"]
["اشرف عبد الواحد إبراهيم مزعل",2250,2250,null,250,9,"مديرية البنى التحتية ","2018-06-21"]
["محمد إبراهيم محمود محمد",800,800,null,89,9,"امن وسلامة الوزارة","2018-06-21"]
["احسان علاوي جليل حسن",1800,1800,null,320,5,"مكتب الوزير","2018-06-20"]
["احمد محي محمد حسين ",334,{"$error":"#VALUE!"},null,83,6,"مديرية النجدة العامة","2018-06-20","تم التسديد","تم التسديد"]
["جلال عبود سلمان حسن",500,500,null,83,6,"مديرية شرطة بغداد","2018-06-20"]
["جلال عبود سلمان حسن",250,250,null,50,5,"مديرية شرطة بغداد","2018-06-21"]
["علي سعد نعيم بلعوط ",1000,1000,null,142,7,"قوات حرس الحدود","2018-06-20"]
["قصي ساجد عبدالله عبد الرزاق",900,900,null,100,9,"محكمة تميز قوى الامن","2018-06-21"]
["صفاء حسين علوان حمود",3500,3500,null,350,10,"مديرية التدريب","2018-06-20"]
["خليل خزعل بركات جبر",900,900,null,100,9,"مديرية نجدة بغداد","2018-06-20"]
["خليل خزعل بركات جبر",1600,1600,null,178,9,"مديرية نجدة بغداد","2018-06-21"]
["سهيل نجم مطشر لعيبي",1600,1600,null,178,9,"مديرية شرطة بغداد","2018-06-21"]
["فاضل كاظم حسين مري",800,800,null,89,9,"مديرية شرطة بغداد","2018-06-20"]
["محمد صادق نور محمد ",1600,1600,null,178,9,"مديرية شرطة بغداد","2018-06-20"]
["محمد صادق نور محمد ",750,750,null,83,9,"مديرية شرطة بغداد","2018-06-20"]
["مرتضى حسين عاشور حمزة ",700,{"$error":"#VALUE!"},null,100,9,"فرقة الرد السريع","2018-06-21","تم التسديد","تم التسديد"]
["مرتضى حسين عاشور حمزة ",622,{"$error":"#VALUE!"},null,89,9,"فرقة الرد السريع","2018-06-21","تم التسديد","تم التسديد"]
["مرتضى حسين عاشور حمزة ",50,{"$error":"#VALUE!"},null,50,3,"فرقة الرد السريع","2018-06-20","تم التسديد","تم التسديد"]
["محمد كاظم قنبر صنكور ",700,{"$error":"#VALUE!"},null,100,9,"مديرية نجدة بغداد","2018-06-21","تم التسديد","تم التسديد"]
["محمد كاظم قنبر صنكور ",150,{"$error":"#VALUE!"},null,50,5,"مديرية نجدة بغداد","2018-06-20","تم التسديد","تم التسديد"]
["هشام عماد خيري إبراهيم",834,668,null,166,7,"حماية المنشأت","2018-06-21",166,200]
["رعد خزعل كاظم حسين ",1422,1422,null,178,9,"الشرطة الاتحادية","2018-06-21"]
["خماس كاظم خماس مايع",711,{"$f":"B1101-I1101","v":{"$error":"#VALUE!"}},null,89,9,"حماية المنشأت","2018-06-20","تم التسديد"]
["خالد وليد زكريا خليل",200,{"$error":"#VALUE!"},null,50,5,"حماية المنشأت","2018-06-21","تم التسديد"]
["مصطفى سمير حمودي حسن",3000,3000,null,300,10,"الشرطة الاتحادية","2018-06-20"]
["مصطفى سمير حمودي حسن",700,700,null,100,7,"الشرطة الاتحادية","2018-06-21"]
["احمد صادق جعفر غضبان ",1350,{"$error":"#VALUE!"},null,150,10,"الشرطة الاتحادية","2018-06-20","تم التسديد"]
["عبد الأمير سعدي رشيد جابر",450,450,null,75,6,"امن وسلامة الوزارة","2018-06-22"]
["عبد الأمير سعدي رشيد جابر",500,500,null,100,5,"امن وسلامة الوزارة","2018-06-20"]
["علي رعد علي حسين ",450,450,null,70,6,"الشرطة الاتحادية","2018-06-20"]
["محمد عبد الزهرة كزيز وطن",450,450,null,70,6,"مديرية التدريب والتأهيل","2018-06-22"]
["علاء علي حسين ولي ",1280,{"$error":"#VALUE!"},null,160,10,"الدفاع المدني ","2018-06-22","تم التسديد","تم التسديد"]
["عدي عدنان صديق صالح",2400,2400,null,264,9,"الشرطة الاتحادية","2018-06-23"]
["مصطفى جمعة حسين شمخي",712,{"$error":"#VALUE!"},null,88,9,"حماية المنشأت","2018-06-23","تم التسديد"]
["حيدر احمد عباس سلوم ",700,700,null,100,7,"قوات حرس الحدود","2018-06-23"]
["حاتم اكرم إبراهيم عباس ",334,{"$error":"#VALUE!"},null,83,6,"مديرية نجدة بغداد","2018-06-20","تم التسديد","تم التسديد"]
["نورس يوسف جبر ضايع ",250,250,null,50,5,"الشرطة الاتحادية","2018-06-23"]
["محمد إبراهيم محمود محمد",3000,3000,null,300,10,"امن وسلامة الوزارة","2018-06-23",null,"تم التسديد"]
["بارق كاظم جودي خضير ",2500,2500,null,250,10,"الشرطة الاتحادية","2018-06-23",null,"تم التسديد"]
["طه عباس محمد عباس ",1600,1600,null,177,9,"الشرطة الاتحادية","2018-06-20"]
["طه عباس محمد عباس ",250,250,null,50,5,"الشرطة الاتحادية","2018-06-20"]
["محمد مجيد صغير فاضل ",250,250,null,50,5,"قوات حرس الحدود","2018-06-23"]
["علي رعد علي حسين ",1800,1800,null,200,9,"الشرطة الاتحادية","2018-06-20"]
["حيدر احمد عباس سلوم ",1400,1400,null,200,7,"قوات حرس الحدود","2018-06-20"]
["علي فايز جاسم عبيس ",3000,3000,null,300,10,"الشرطة الاتحادية","2018-06-23"]
["سيف علي عبد علي ",1500,1500,null,150,10,"مديرية الاتصالات ","2018-06-23"]
["حميد عبد الزهرة كزير وطن",3000,3000,null,300,10,"فوج طوارئ بغداد","2018-06-20"]
["حميد عبد الزهرة كزير وطن",75,75,null,25,3,"فوج طوارئ بغداد","2018-06-23"]
["إبراهيم عبدالله فخري رسول",600,{"$error":"#VALUE!"},null,150,6,"نجدة بغداد المقر العام","2018-06-23","تم التسديد","تم التسديد"]
["علي صابر عبد زاير ",1422,{"$error":"#VALUE!"},null,178,9,"حماية المنشات والشخصيات","2018-06-20","تم التسديد"]
["اياد صبر محمد ظاهر ",900,900,null,100,9,"مديرية شرطة بغداد ","2018-06-23"]
["حسين سالم كريم حسن",150,150,null,50,3,"الشرطة الاتحادية","2018-06-24"]
["عدنان عاكول زغير فياض",250,250,null,50,5,"محكمة تميز قوى الامن","2018-06-24"]
["عدنان عاكول زغير فياض",25,25,null,25,1,"محكمة تميز قوى الامن","2018-06-23"]
["عقيل ستار شاوي حمود الساعدي",483,{"$error":"#VALUE!"},null,87,8,"مديرية نجدة بغداد","2018-06-24","تم التسديد","تم التسديد"]
["عقيل حسن عبد الأمير يوسف",1200,{"$error":"#VALUE!"},null,150,10,"مديرية نجدة بغداد","2018-06-23","تم التسديد","تم التسديد"]
["عقيل حسن عبد الأمير يوسف",700,{"$error":"#VALUE!"},null,100,9,"مديرية نجدة بغداد","2018-06-23","تم التسديد","تم التسديد"]
["علي احمد حمة نادر",1600,1600,null,177,9,"كلية الشرطة","2018-06-24"]
["علي احمد حمة نادر",1800,1800,null,200,9,"كلية الشرطة","2018-06-23"]
["حلمي عوني فاضل حسين",75,75,null,25,3,"مديرية شرطة بغداد","2018-06-24"]
["سعد قاسم محمد بابير",1000,{"$error":"#VALUE!"},null,125,10,"فرقة التدخل السريع","2018-06-23","تم التسديد","تم التسديد"]
["صفاء جبار هادي مولى",800,800,null,88,9,"مديرية شرطة بغداد","2018-06-23"]
["صفاء عبد الرزاق محسن عبود",1600,1600,null,177,9,"الشرطة الاتحادية","2018-06-23"]
["هشام عماد خيري إبراهيم",800,700,null,100,9,"حماية المنشأت","2018-06-24",100,150]
["حسين محمد كامل منشد ",500,500,null,83,6,"الشرطة الاتحادية","2018-06-23"]
["حسين محمد كامل منشد ",700,700,null,87,8,"الشرطة الاتحادية","2018-06-24"]
["محمد خليل جلوب مهدي",1600,1600,null,177,9,"مديرية شرطة بغداد ","2018-06-23"]
["عقيل محسن ماجد عطية ",1500,1500,null,150,10,"مديرية امن الافراد","2018-06-24"]
["محمد كامل كاطع بندر",900,900,null,100,9,"مديرية التدريب والتأهيل","2018-06-23"]
["محمد عباس عبيد شراد ",1500,1500,null,150,10,"الشرطة الاتحادية","2018-06-23"]
["علاء الدين زامل حنون ",250,250,null,50,5,"الشرطة الاتحادية","2018-06-24"]
["علي سلمان حاوي علوان ",600,600,null,86,7,"مديرية شرطة بغداد","2018-06-23"]
["نبيل قاسم مشتت بطل ",94,{"$error":"#VALUE!"},null,31,4,"حماية المنشأت","2018-06-24","تم التسديد"]
["سحر ياسين كاظم عبود",450,450,null,75,7,"مديرية شرطة بغداد","2018-06-24"]
["عقيل لازم خلف ثامر السوداني",800,{"$error":"#VALUE!"},null,100,9,"حماية المنشأت","2018-06-24","تم التسديد"]
["سيف كاظم داوود سلمان ",900,900,null,100,9,"الشرطة الاتحادية","2018-06-25"]
["سيف كاظم داوود سلمان ",800,800,null,88,9,"الشرطة الاتحادية","2018-06-24"]
["حميد كاظم سبتي خلف ",700,700,null,87,8,"قوات حرس الحدود","2018-06-25"]
["حميد كاظم سبتي خلف ",450,450,null,75,6,"قوات حرس الحدود","2018-06-24"]
["حميد كاظم سبتي خلف ",1500,1500,null,150,10,"قوات حرس الحدود","2018-06-25"]
["حميد كاظم سبتي خلف ",350,350,null,70,5,"قوات حرس الحدود","2018-06-25"]
["قمر عباس محمد خلف",2144,{"$error":"#VALUE!"},null,428,7,"فرقة الرد السريع","2018-06-25","تم التسديد","تم التسديد"]
["فواز موفق شرقي رزوقي",900,900,null,100,9,"الشرطة الاتحادية","2018-06-25"]
["فواز موفق شرقي رزوقي",200,200,null,50,4,"الشرطة الاتحادية","2018-06-24"]
["حامد جواد كاظم شمخي ",1750,1750,null,175,10,"الشرطة الاتحادية","2018-06-25"]
["احمد شاكر عواد عاشور ",1125,{"$error":"#VALUE!"},null,125,10,"حماية المنشأت","2018-06-24","تم التسديد"]
["عامر إسماعيل عبد الرزاق حسون",350,{"$f":"B1165-I1165","v":350},null,50,7,"مديرية العاب نادي الشرطة","2018-06-25"]
["احمد أسامة ياسين عبد الحسين ",200,200,null,50,4,"معهد اعداد المفوضين","2018-06-24"]
["مخلص عباس كريم غالي العقابي",50,50,null,25,3,"مديرية امن الافراد","2018-06-25"]
["فراس عبد الحميد محمد حسين",1350,{"$error":"#VALUE!"},null,150,10,"حماية المنشأت","2018-06-24","تم التسديد"]
["هيثم جاسم محمد حسن",700,613,null,87,8,"الشرطة الاتحادية","2018-06-25",87]
["هيثم جاسم محمد حسن",200,150,null,50,4,"الشرطة الاتحادية","2018-06-25",50]
["غازي فيصل ستار جاسم ",150,{"$error":"#VALUE!"},null,50,5,"فرقة التدخل السريع","2018-06-24","تم التسديد","تم التسديد"]
["علي رعد علي حسين ",25,25,null,25,1,"الشرطة الاتحادية","2018-06-24"]
["علي رعد علي حسين ",75,75,null,25,3,"الشرطة الاتحادية","2018-06-25"]
["علي رعد علي حسين ",700,700,null,89,8,"الشرطة الاتحادية","2018-06-24"]
["عادل هادي صالح خضير ",1600,1600,null,177,9,"كلية الشرطة","2018-06-25"]
["علاء موسى عبد النبي شلاكة ",1250,1250,null,125,10,"مديرية الصيانة والخدمات","2018-06-25"]
["علاء موسى عبد النبي شلاكة ",700,700,null,87,8,"مديرية الصيانة والخدمات","2018-06-24"]
["نهاد باسم مجيد حسين ",878,{"$error":"#VALUE!"},null,174,8,"مديرية النجدة","2018-06-25","تم التسديد","تم التسديد"]
["محمد عباس حاجم سبع",1575,{"$error":"#VALUE!"},null,175,10,"حماية المنشأت","2018-06-24","تم التسديد"]
["محمد عباس حاجم سبع",1125,{"$error":"#VALUE!"},null,125,10,"حماية المنشأت","2018-06-24","تم التسديد"]
["بتول علي زغير فليفل",700,700,null,87,8,"الشرطة الاتحادية","2018-06-24"]
["علي عبدالله عبيد حسين ",1800,1800,null,257,7,"الشرطة الاتحادية","2018-06-25"]
["مؤيد عبد المجيد حميد راضي",150,{"$error":"#VALUE!"},null,50,5,"فرقة الرد السريع","2018-06-25","تم التسديد","تم التسديد"]
["مؤيد عبد المجيد حميد راضي",25,{"$error":"#VALUE!"},null,25,3,"فرقة الرد السريع","2018-06-26","تم التسديد","تم التسديد"]
["مؤيد عبد المجيد حميد راضي",25,{"$error":"#VALUE!"},null,25,4,"فرقة الرد السريع","2018-06-24","تم التسديد","تم التسديد"]
["مصطفى جمعة حسين شمخي",800,{"$error":"#VALUE!"},null,100,9,"حماية المنشأت","2018-06-26","تم التسديد"]
["احمد عبد علكم راهي الحسناوي",900,900,null,100,9,"قيادة شرطة بغداد","2018-06-26"]
["علي سعد نعيم بلعوط ",1750,1750,null,175,10,"قوات حرس الحدود","2018-06-24"]
["سيف جواد كاظم تعيب ",1400,1400,null,175,8,"مكتب المستشار","2018-06-24"]
["محمد خالد فياض محسن",1250,1250,null,125,10,"الشرطة الاتحادبة ","2018-06-26"]
["علي صادق حسن فليح الماجدي",500,500,null,100,5,"كلية الشرطة","2018-06-24"]
["جورج داوود جورج داوود",350,350,null,50,7,"الشرطة الاتحادية","2018-06-26"]
["جورج داوود جورج داوود",200,200,null,50,4,"الشرطة الاتحادية","2018-06-24"]
["ضياء حسن درباس حسين ",25,25,null,25,1,"الشرطة الاتحادية فق 4","2018-06-26"]
["ضياء حسن درباس حسين ",3500,3500,null,350,10,"الشرطة الاتحادية فق 4","2018-06-24"]
["حيدر ضياء عبد الحميد هايس",500,500,null,100,5,"الادعام العام","2018-06-24"]
["علي حسين سكران رباط ",450,450,null,75,6,"امن وسلامة الوزارة","2018-06-26"]
["حيدر عباس عجلان خليفة ",900,900,null,100,9,"مديرية شرطة بغداد","2018-06-24"]
["عمار إسماعيل إبراهيم سليم ",150,150,null,50,3,"مديرية شؤون السيطرات","2018-06-26"]
["إبراهيم عبدالله فخري رسول",300,{"$error":"#VALUE!"},null,75,6,"مديرية النجدة العامة","2018-06-24","تم التسديد","تم التسديد"]
["عبدالله عباس حسين شمخي",450,450,null,65,7,"الشرطة الاتحادية الطبابة","2018-06-27"]
["مخلص عباس كريم غالي العقابي",515,515,null,85,7,"مديرية امن الافراد","2018-06-24"]
["مخلص عباس كريم غالي العقابي",200,200,null,50,6,"مديرية امن الافراد","2018-06-26"]
["حسن حبيب داوود سلمان ",900,900,null,100,9,"مديرية شرطة بغداد","2018-06-26"]
["حيدر جبار مجيد محي ",657,{"$error":"#VALUE!"},null,93,8,"حماية المنشأت","2018-06-26","تم التسديد"]
["علي حسين سالم جاسم ",150,150,null,50,3,"الشرطة الاتحادية","2018-06-24"]
["علي حسين سالم جاسم ",600,600,null,86,7,"الشرطة الاتحادية","2018-06-24"]
["علي حسين سالم جاسم ",1250,1250,null,125,10,"الشرطة الاتحادية","2018-06-24"]
["علي عبد الرزاق سالم حسين",280,{"$error":"#VALUE!"},null,70,5,"فرقة الرد السريع","2018-06-24","تم التسديد"]
["علي عبدالله عبيد حسين ",600,600,null,85,7,"مقر قيادة الشرطة الاتحادية","2018-06-24"]
["معد كامل فارس محمد ",1750,1750,null,175,10,"مقر قيادة الشرطة الاتحادية","2018-06-24"]
["محمد عبد الحسين عيدان حزيم",900,900,null,100,9,"مقر قيادة الشرطة الاتحادية","2018-06-24"]
["علي شاكر نعمة زبون ",750,750,null,83,9,"مديرية شرطة امانة بغداد","2018-06-26"]
["حيدر حسن علاوي عرفات",375,{"$error":"#VALUE!"},null,75,6,"حماية المنشأت والشخصيات","2018-06-24","تم التسديد"]
["ضياء عبد الوهاب عبد الرزاق صبيح",1800,1800,null,200,9,"مديرية شرطة بغداد","2018-06-24"]
["محمد حياوي رباط راضي",1200,{"$error":"#VALUE!"},null,150,10,"مديرية النجدة العامة","2018-06-26","تم التسديد","تم التسديد"]
["جعفر صادق عبيد بشيت",700,{"$error":"#VALUE!"},null,100,9,"فرقة التدخل السريع","2018-06-24","تم التسديد","تم التسديد"]
["فاضل حمد راضي كاظم المياحي",3500,3500,null,350,10,"الدفاع المدني ","2018-06-26"]
["سعد حضيري عباس رشيد",1500,1500,null,150,10,"قوات حرس الحدود","2018-06-24"]
["سعد حضيري عباس رشيد",1500,1500,null,150,10,"قوات حرس الحدود","2018-06-26"]
["علي عدنان هادي ديكان",700,{"$error":"#VALUE!"},null,100,9,"مديرية النجدة","2018-06-24","تم التسديد","تم التسديد"]
["جاسم محمد محسن ماشاف",900,900,null,199,9,"الشرطة الاتحادية فق1 ","2018-06-26"]
["طعمة عبد الرحيم طاهر علي",350,350,null,70,5,"الشرطة الاتحادية فق 1","2018-06-24"]
["مصطفى حسن علي عبد",1250,1250,null,125,10,"مديرية شرطة بغداد","2018-06-24"]
["كاظم محمد ضيدان فنجان",900,900,null,100,9,"مديرية شرطة بغداد","2018-06-24"]
["كاظم محمد ضيدان فنجان",750,750,null,93,8,"مديرية شرطة بغداد","2018-06-26"]
["كاظم محمد ضيدان فنجان",250,250,null,50,5,"مديرية شرطة بغداد","2018-06-24"]
["امجد حميد علوان حمد",1750,1750,null,175,10,"مديرية شرطة بغداد","2018-06-24"]
["محمد زبيدي معيوف هليل",1400,{"$f":"B1229-I1229","v":{"$error":"#VALUE!"}},null,175,10,"الدفاع المدني ","2018-06-26","تم التسديد","تم التسديد"]
["معتز شاكر خضير دايم",450,450,null,75,6,"كلية الشرطة","2018-06-24"]
["رعد خليل سليمان مخلف ",700,700,null,88,8,"مديرية شرطة بغداد فوج طوارئ بغداد","2018-06-26"]
["مروان راجح هادي خليل ",1800,1800,null,200,9,"الشرطة الاتحادية فق 6","2018-06-24"]
["مروان راجح هادي خليل ",450,450,null,75,7,"الشرطة الاتحادية فق 6","2018-06-26"]
["احمد شاكر عواد عاشور ",1125,{"$error":"#VALUE!"},null,125,10,"حماية المنشات فوج سوات","2018-06-24","تم التسديد"]
["مؤيد صالح فهد الحيدري",700,{"$error":"#VALUE!"},null,100,9,"الدفاع المدني ","2018-06-24","تم التسديد","تم التسديد"]
["حازم عبد ناصر فركوس",1750,1750,null,175,10,"الشرطة الاتحادية فق الالي ","2018-06-26"]
["حازم عبد ناصر فركوس",750,750,null,93,8,"الشرطة الاتحادية فق الالي ","2018-06-26"]
["علي حسين بداي مختاظ",1750,1750,null,175,10,"الشرطة الاتحادية اللواء الالي","2018-06-26"]
["علي حسين بداي مختاظ",700,700,null,88,8,"الشرطة الاتحادية اللواء الالي","2018-06-27"]
["محمد عبد الكريم خلف فرج",750,750,null,87,8,"مقر قيادة الشرطة الاتحادية","2018-06-26"]
["أنور ناهض نجم عبدالله ",1500,1500,null,150,10,"قياد الشرطة الاتحادية المقر","2018-06-27"]
["أنور ناهض نجم عبدالله ",250,250,null,50,5,"قياد الشرطة الاتحادية المقر","2018-06-26"]
["أنور ناهض نجم عبدالله ",250,250,null,50,5,"قياد الشرطة الاتحادية المقر","2018-06-26"]
["أنور ناهض نجم عبدالله ",300,300,null,50,6,"قياد الشرطة الاتحادية المقر","2018-06-26"]
["مصطفى فاخر عزيز حبوب",700,700,null,87,8,"قيادة الشرطة الاتحادية الدعم اللوجستي","2018-06-27"]
["مصطفى فاخر عزيز حبوب",750,750,null,83,9,"قيادة الشرطة الاتحادية الدعم اللوجستي","2018-06-26"]
["هيثم صبري محمد معين ",900,900,null,100,9,"الادعام العام","2018-06-26"]
["يحيى حميد مجيد شاباز ",430,{"$error":"#VALUE!"},null,85,7,"مديرية نجدة بغداد","2018-06-26","تم التسديد","تم التسديد"]
["يحيى حميد مجيد شاباز ",150,{"$error":"#VALUE!"},null,50,5,"مديرية نجدة بغداد","2018-06-26","تم التسديد","تم التسديد"]
["اياد طارق زيدان خلف",700,{"$error":"#VALUE!"},null,100,9,"مديرية نجدة بغداد المقر","2018-06-27","تم التسديد","تم التسديد"]
["اياد طارق زيدان خلف",530,{"$error":"#VALUE!"},null,85,8,"مديرية نجدة بغداد المقر","2018-06-26","تم التسديد","تم التسديد"]
["اياد طارق زيدان خلف",150,{"$error":"#VALUE!"},null,50,5,"مديرية نجدة بغداد المقر","2018-06-27","تم التسديد","تم التسديد"]
["علي حسين ظاهر حبيب",1400,{"$error":"#VALUE!"},null,200,9,"فرقة التدخل السريع","2018-06-26","تم التسديد","تم التسديد"]
["نبيل قاسم مشتت بطل ",800,{"$error":"#VALUE!"},null,100,9,"حماية المنشات قاطع الصدر","2018-06-27","تم التسديد"]
["علي حسين صكبان سلمان ",250,250,null,50,5,"مديرية الصيانة والخدمات","2018-06-27"]
["عباس فيصل جلوب خلف ",2100,2100,null,261,8,"مديرية البنى التحتية ","2018-06-26"]
["علي طالب خليل إبراهيم ",250,250,null,50,5,"الشرطة الاتحادية فق 5 ل 20","2018-06-27"]
["منتظر مهدي صاحب حسن الساعدي",700,700,null,87,8,"قيادة شرطة بغداد فوج طوارئ بغداد","2018-06-26"]
["منتظر مهدي صاحب حسن الساعدي",750,750,null,93,8,"قيادة شرطة بغداد فوج طوارئ بغداد","2018-06-27"]
["إيهاب علي حمدي علي",200,{"$error":"#VALUE!"},null,50,5,"حماية المنشات الرصافة","2018-06-27","تم التسديد"]
["احمد محمد احمد اسود",200,200,null,50,4,"قيادة الشرطة الاتحادية الفرقة الالية","2018-06-27"]
["عمار شوكت محمد حميد",700,700,null,88,8,"الشرطة الاتحادية فق 4 ","2018-06-27"]
["عمار شوكت محمد حميد",350,350,null,70,5,"الشرطة الاتحادية فق 5","2018-06-27"]
["عمر عادل موسى جاسم",1545,{"$error":"#VALUE!"},null,255,7,"الدفاع المدني ","2018-06-27","تم التسديد"]
["عمر عادل موسى جاسم",800,{"$error":"#VALUE!"},null,100,9,"الدفاع المدني ","2018-06-27","تم التسديد"]
["رائد شلال موسى عباس ",900,900,null,100,9,"كلية الشرطة","2018-06-27"]
["لؤي قدوري عبد الوهاب نوري",700,{"$error":"#VALUE!"},null,100,9,"مديرية نجدة بغداد","2018-06-27","تم التسديد","تم التسديد"]
["لؤي قدوري عبد الوهاب نوري",300,{"$error":"#VALUE!"},null,75,6,"مديرية نجدة بغداد","2018-06-27","تم التسديد","تم التسديد"]
["عباس عبد ديوان رسن ",900,900,null,100,9,"امن وسلامة الوزارة","2018-06-27"]
["علي ناجي مهدي علي",700,{"$error":"#VALUE!"},null,100,9,"فرفة الرد السريع","2018-06-27","تم التسديد","تم التسديد"]
["علي ناجي مهدي علي",700,{"$error":"#VALUE!"},null,100,9,"فرفة الرد السريع","2018-06-27","تم التسديد","تم التسديد"]
["علي ناجي مهدي علي",524,{"$error":"#VALUE!"},null,88,8,"فرقة الرد السريع","2018-06-27","تم التسديد","تم التسديد"]
["حيدر احمد عباس سلوم ",1250,1250,null,125,10,"قوات حرس الحدود","2018-06-27"]
["محمد عبد الحسين عيدان حزيم",900,900,null,100,9,"الشرطة الاتحادية المقر","2018-06-27"]
["رياض خليل حمدان يونس",1000,{"$error":"#VALUE!"},null,125,10,"الدفاع المدني ","2018-06-27","تم التسديد","تم التسديد"]
["رياض خليل حمدان يونس",1400,{"$error":"#VALUE!"},null,200,9,"الدفاع المدني ","2018-06-27","تم التسديد","تم التسديد"]
["رياض خليل حمدان يونس",15,{"$error":"#VALUE!"},null,50,5,"الدفاع المدني ","2018-06-27","تم التسديد","تم التسديد"]
["سلام عبد لفتة كشمر ",1400,{"$error":"#VALUE!"},null,200,9,"مديرية النجدة العامة","2018-06-27","تم التسديد","تم التسديد"]
["سلام عبد لفتة كشمر ",526,{"$error":"#VALUE!"},null,87,8,"مديرية النجدة العامة","2018-06-27","تم التسديد","تم التسديد"]
["جاسم خالد حكمان صالح ",75,75,null,25,3,"قوات حرس الحدود","2018-06-27"]
["جبار صادق عوفي سادر",900,900,null,100,9,"دائرة مستشار الوزير","2018-06-27"]
["حاتم اكرم إبراهيم عباس ",300,{"$error":"#VALUE!"},null,75,6,"مديرية نجدة بغداد","2018-06-27","تم التسديد","تم التسديد"]
["جهاد جبار نعيم مطيلب ",900,900,null,100,9,"اتحاد الشرطة الرياضي","2018-06-27",null,"تم التسديد"]
["عدي عبد علي صالح",1800,1800,null,200,9,"الشرطة الاتحادية فق1 ","2018-06-27",null,"تم التسديد"]
["حلمي عوني فاضل حسين",900,900,null,100,9,"قيادة شرطة بغداد","2018-06-27",null,"تم التسديد"]
["جمال خزعل راغب محمد",613,{"$error":"#VALUE!"},null,87,8,"فرقة الرد السريع","2018-06-27","تم التسديد"]
["مصطفى عباس عبود هاشم",700,700,null,87,8,"مقر قيادة الشرطة الاتحادية","2018-06-27"]
["اكرم عباس حسن صحن",1800,1800,null,200,9,"مديرية التدريب والتأهيل","2018-06-27"]
["مهدي هادي محمد حسن",900,900,null,100,9,"الشرطة الاتحادية","2018-06-27"]
["علي سلمان حاوي علوان ",600,600,null,85,7,"مديرية شرطة بغداد سرية سوات","2018-06-27"]
["حيدر عباس عجلان خليفة ",900,900,null,100,9,"مديرية شرطة بغداد شؤون السيطرات","2018-06-27"]
["سيف سعد عباس احمد",1250,1250,null,125,10,"الشرطة الاتحادية فق 5","2018-06-27"]
["جعفر صادق عبيد بشيت",624,{"$f":"B1293-I1293","v":{"$error":"#VALUE!"}},null,88,9,"فرقة التدخل السريع","2018-06-27","تم التسديد","تم التسديد"]
["حامد احمد حسين",200,{"$error":"#VALUE!"},null,50,5,"قيادة الشرطة الاتحادية فق 2","2018-06-27","تم التسديد"]
["حامد احمد حسين",600,{"$error":"#VALUE!"},null,87,8,"قيادة الشرطة الاتحادية فق 3","2018-06-27","تم التسديد"]
["حسين حمود قاطع سالم",2800,{"$error":"#VALUE!"},null,350,10,"مديرية نجدة بغداد","2018-06-27","تم التسديد","تم التسديد"]
["كرار حسين عودة حسين",2500,2500,null,250,10,"قيادة الشرطة الاتحادية الرد السريع","2018-06-27"]
["كرار حسين عودة حسين",900,900,null,100,9,"قيادة الشرطة الاتحادية الرد السريع","2018-06-27"]
["جاسم محمد صالح خلف ",900,900,null,100,9,"الشرطة الاتحادية فق 1","2018-06-27"]
["حسين فليح حسن كريم",900,900,null,100,9,"قيادة الشرطة الاتحادية","2018-06-27"]
["حسين عودة حسين جلاب",700,700,null,87,8,"مديرية عمليات الوزارة","2018-06-27"]
["احمد شاكر عواد عاشور ",1125,{"$error":"#VALUE!"},null,125,10,"حماية المنشات فوج سوات","2018-06-28","تم التسديد"]
["حلمي عوني فاضل حسين",900,900,null,100,9,"قيادة شرطة بغداد","2018-06-28"]
["حلمي عوني فاضل حسين",700,700,null,87,8,"قيادة شرطة بغداد","2018-06-27"]
["مازن عدنان داوود سلمان ",700,700,null,88,8,"مديرية الصيانة والخدمات","2018-06-28"]
["فاضل عبد السادة راشد عليوي",750,750,null,93,8,"قيادة الشرطة الاتحادية فق 1","2018-06-27"]
["عباس حنون عيسى جاسم ",350,350,null,70,5,"شرطة اتحادية استخبارات وامن القيادة","2018-06-28"]
["حسن علي زبالة علي عباس",250,250,null,50,5,"شرطة اتحادية فق 1","2018-06-27"]
["فاضل كاظم حسين مري",3500,3500,null,350,10,"مديرية شرطة بغداد شرطة السعدون","2018-06-28"]
["مشتاق عبد طاهر عبد علي",900,900,null,100,9,"الشرطة الاتحادية فق 5","2018-06-28"]
["مؤيد مجيد عبد العزيز زيدان",700,700,null,87,8,"مديرية شرطة بغداد شعبة القلم","2018-06-27"]
["محمود شاكر حسين علي",450,450,null,75,6,"فوج طوارئ بغداد الثالث","2018-06-28"]
["محمود شاكر حسين علي",450,450,null,75,6,"فوج طوارئ بغداد الثالث","2018-06-28"]
["محمود شاكر حسين علي",1400,1400,null,174,8,"فوج طوارئ بغداد الثالث","2018-06-30"]
["عادل عباس حجي سبهان",750,750,null,83,9,"مديرية شرطة بغداد","2018-06-28"]
["احمد إسكندر محمود مرزوق",900,900,null,100,9,"الشرطة الاتحادية فق 2","2018-06-30"]
["احمد إسكندر محمود مرزوق",75,75,null,25,3,"الشرطة الاتحادية فق 3","2018-06-28"]
["مروان هشام عبد العباس ونان",450,450,null,65,7,"الشرطة الاتحادية فق 3","2018-06-28"]
["علي طالب هاشم عكروك",750,750,null,93,8,"الشرطة الاتحادية فق 5","2018-06-28"]
["علي طالب هاشم عكروك",250,250,null,50,5,"الشرطة الاتحادية فق 6","2018-06-30"]
["احمد عدنان ديوان حسين",3500,3500,null,350,10,"الشرطة الاتحادية فق 1","2018-06-28"]
["احمد عدنان ديوان حسين",250,250,null,50,5,"الشرطة الاتحادية فق 2","2018-06-28"]
["رياض عماد تحسين طاهر",1125,{"$error":"#VALUE!"},null,125,10,"حماية المنشات والشخصيات","2018-06-28","تم التسديد"]
["صفاء صباح شياع عودة ",1400,{"$error":"#VALUE!"},null,175,10,"فرقة التدخل السريع","2018-06-30","تم التسديد","تم التسديد"]
["علي خزعل لعيبي زبن ",1600,{"$error":"#VALUE!"},null,200,9,"حماية المنشات والشخصيات","2018-06-28","تم التسديد"]
["حيدر حسن عيدان منصور",350,350,null,50,7,"قوات حرس الحدود","2018-06-28"]
["عبد النبي صبري عبد السادة مانع الشرهاني",3432,{"$error":"#VALUE!"},null,430,9,"حماية المنشات والشخصيات","2018-06-28","تم التسديد"]
["عباس جواد نايف حنتوش",3573,{"$error":"#VALUE!"},null,510,8,"مديرية نجدة بغداد","2018-06-30","تم التسديد"]
["عقيل ستار شاوي حمود الساعدي",2197,{"$error":"#VALUE!"},null,315,9,"مديرية شرطة النجدة","2018-06-30","تم التسديد","تم التسديد"]
["عقيل لازم خلف ثامر السوداني",1038,{"$error":"#VALUE!"},null,150,8,"حماية المنشات والشخصيات","2018-06-30","تم التسديد"]
["حذيفة ماجد عبد الحميد عبد الحسين ",1249,{"$error":"#VALUE!"},null,207,8,"مديرية نجدة بغداد","2018-06-30","تم التسديد","تم التسديد"]
["إبراهيم عكاب كاطع جبر",1750,1750,null,175,10,"امن وسلامة الوزارة","2018-06-30"]
["إبراهيم عكاب كاطع جبر",900,900,null,100,9,"امن وسلامة الوزارة","2018-06-30"]
["محمد جمعة هليل عبود الربيعي",2816,{"$error":"#VALUE!"},null,352,9,"حماية المنشات والشخصيات","2018-06-30","تم التسديد"]
["محمد مرتضى سلمان مهدي",5371,5371,null,596,9,"الشرطة الاتحادية التموين والنقل","2018-06-30"]
["فيصل امير غازي فاضل",900,900,null,100,9,"قيادة شرطة بغداد","2018-06-30"]
["حيدر علي حطاب ثنين ",5145,5145,null,571,9,"مديرية العلاقات والاعلام","2018-06-30"]
["فلاح حسن حربي احمد ",2936,2936,null,326,9,"قوات حرس الحدود","2018-06-30"]
["نهاد كريم احمد عجيل",3883,3883,null,485,8,"الشرطة الاتحادية ل3","2018-06-30"]
["محمد خليف لعيبي صنكور",3333,3333,null,416,8,"الشرطة الاتحادية فق 1","2018-06-30"]
["يونس إسماعيل يوسف مثنى",526,{"$error":"#VALUE!"},null,87,8,"فرقة التدخل السريع","2018-06-30","تم التسديد","تم التسديد"]
["يونس إسماعيل يوسف مثنى",150,{"$error":"#VALUE!"},null,50,5,"فرقة التدخل السريع","2018-06-30","تم التسديد","تم التسديد"]
["محمد مجيد عبد الزهرة عطية",3696,3696,null,462,8,"وكالة شؤون الشرطة ","2018-06-30"]
["امنة عبد العباس امبيت فرخان ",4113,{"$error":"#VALUE!"},null,514,9,"حماية المنشات والشخصيات","2018-06-30","تم التسديد"]
["يحيى حميد مجيد شاباز ",678,{"$error":"#VALUE!"},null,135,7,"مديرية النجدة العامة","2018-06-30","تم التسديد","تم التسديد"]
["جاسم محمد صالح خلف ",4132,4132,null,460,9,"الشرطة الاتحادية مقر اللواء فق 1","2018-06-30"]
["محمد صباح جبر ياسين ",4139,4139,null,460,9,"الشرطة الاتحادية فق 1","2018-06-30"]
["فاضل عبد السادة راشد عليوي",998,998,null,142,7,"الشرطة الاتحادية فق 2","2018-06-30"]
["احمد عباس مهدي محمد",765,{"$error":"#VALUE!"},null,195,7,"مديرية شرطة بغداد","2018-06-30","تم التسديد","تم التسديد"]
["احمد عبد علكم راهي الحسناوي",2712,2712,null,339,8,"قيادة شرطة بغداد","2018-06-30"]
["محمد عبد عيال فضالة",700,700,null,87,8,"الشرطة الاتحادية","2018-06-30"]
["محمد قاسم علوان صالح ",2124,2124,null,265,8,"الشرطة الاتحادية النخبة","2018-06-30"]
["وسام ثائر فهد محمود",75,75,null,25,3,"مديرية التدريب والتأهيل","2018-06-30"]
["وسام ثائر فهد محمود",600,600,null,85,7,"مديرية التدريب والتأهيل","2018-06-30"]
["عباس علي عويلي التميمي",1850,1850,null,308,6,"الشرطة الاتحادية فق 4","2018-06-30"]
["علي حسين عبد الرضا مول",3230,3230,null,404,8,"الشرطة الاتحادية قيادة النسور","2018-06-30"]
["إيهاب سلام حمد خضير ",2760,{"$f":"B1357-I1357","v":2760},null,394,7,"الشرطة الاتحادية فق 1 ف1","2018-06-30"]
["هاني شاكر محمود رشيد",1800,1800,null,200,9,"الشرطة الاتحادية فق 3","2018-06-30"]
["محمد علي احمد لفتة ",2720,2720,null,388,7,"الشرطة الاتحادية فق 1","2018-06-30"]
["محمد عبد الرضا حسين جريب ",4235,4235,null,470,9,"الشرطة الاتحادية ل3 ف 3","2018-06-30"]
["اركان محمد حسن حسين ",1591,1591,null,200,8,"مديرية شرطة بغداد","2018-06-30"]
["اياد كايت رحمن عبد",1024,1024,null,146,7,"الشرطة الاتحادية فق 1 ل3 ف 3","2018-06-30"]
["محمد حياوي رباط راضي",2873,{"$error":"#VALUE!"},null,311,8,"مديرية النجدة العامة","2018-06-30","تم التسديد","تم التسديد"]
["حيدر خضير شنشول طاهر ",4428,4428,null,492,9,"مديرية البنى التحتية ","2018-06-30"]
["خليل خزعل بركات جبر",1744,1744,null,218,8,"قيادة شرطة بغداد","2018-06-30"]
["علي سلمان حاوي علوان ",75,75,null,25,3,"قيادة شرطة بغداد فوج سوات","2018-06-28"]
["حمزة هادي كطيف محمد",4094,4094,null,455,9,"مديرية البنى التحتية ","2018-06-28"]
["عمر مهدي شنيشل رسن",2907,2907,null,323,9,"مديرية البنى التحتية ","2018-06-28"]
["نبيل مخلف حمادي سليمان",700,{"$error":"#VALUE!"},null,100,9,"مديرية نجدة بغداد قاطع حي الجامعة","2018-06-28","تم التسديد","تم التسديد"]
["حيدر فرحان وهاب حسين",1800,1800,null,200,9,"كلية الشرطة","2018-06-28"]
["علاء إبراهيم جمعة عبد عون",624,{"$error":"#VALUE!"},null,88,9,"مديرية النجدة العامة قاطع الكاظمية","2018-06-28","تم التسديد","تم التسديد"]
["علاء إبراهيم جمعة عبد عون",250,{"$error":"#VALUE!"},null,50,7,"مديرية النجدة العامة قاطع الكاظمية","2018-06-28","تم التسديد","تم التسديد"]
["علاء إبراهيم جمعة عبد عون",1000,{"$error":"#VALUE!"},null,125,10,"مديرية النجدة العامة قاطع الكاظمية","2018-06-28","تم التسديد","تم التسديد"]
["علاء إبراهيم جمعة عبد عون",150,{"$error":"#VALUE!"},null,50,5,"مديرية النجدة العامة قاطع الكاظمية","2018-06-28","تم التسديد","تم التسديد"]
["انمار علي عباس سنيد",2450,2100,null,350,8,"حماية المنشات والشخصيات","2018-06-28",350,350]
["انمار علي عباس سنيد",375,300,null,75,6,"حماية المنشات والشخصيات","2018-06-28",75,75]
["علي عبد الكريم ناجي عاصي",2700,2700,null,300,9,"الشرطة الاتحادية فق الالية ل 3","2018-06-28"]
["سمير عبد الجبار منسف معيلو",150,150,null,50,3,"الشرطة الاتحادية فق 2","2018-06-28"]
["سمير عبد الجبار منسف معيلو",1250,1250,null,125,10,"الشرطة الاتحادية فق 2","2018-06-28"]
["حسين علي حسين غضبان ",700,700,null,87,8,"الشرطة الاتحادية مقر القيادة","2018-06-28"]
["طه حسين محمد حسين الجبوري",1000,{"$error":"#VALUE!"},null,125,10,"فرقة الرد السريع","2018-06-28","تم التسديد","تم التسديد"]
["احمد قدوري عباس جواد ",150,{"$error":"#VALUE!"},null,50,5,"فرقة الرد السريع","2018-06-28","تم التسديد","تم التسديد"]
["محمد مشحوت كزار ساجد",700,700,null,87,8,"الشرطة الاتحادية فق 1 ل 2 ف2","2018-06-28"]
["محمد مشحوت كزار ساجد",25,25,null,25,1,"الشرطة الاتحادية فق 1 ل 2 ف3","2018-06-28"]
["احمد صبحي علو حسين",900,900,null,100,9,"مديرية شرطة ديالى","2018-06-28"]
["احمد صبحي علو حسين",75,75,null,25,3,"مديرية شرطة ديالى","2018-06-28"]
["نهاد باسم مجيد حسين ",2100,{"$error":"#VALUE!"},null,300,9,"مديرية شرطة النجدة قاطع النهروان","2018-06-28","تم التسديد","تم التسديد"]
["عباس محمد حسين عبود",2500,{"$error":"#VALUE!"},null,250,12,"فرقة التدخل السريع","2018-06-28","تم التسديد","تم التسديد"]
["عباس محمد حسين عبود",546,{"$error":"#VALUE!"},null,77,9,"فرقة التدخل السريع","2018-06-28","تم التسديد","تم التسديد"]
["عباس محمد حسين عبود",2000,{"$error":"#VALUE!"},null,250,10,"فرقة التدخل السريع","2018-06-28","تم التسديد","تم التسديد"]
["عباس محمد حسين عبود",1050,{"$error":"#VALUE!"},null,100,12,"فرقة التدخل السريع","2018-06-28","تم التسديد","تم التسديد"]
["عباس محمد حسين عبود",400,{"$error":"#VALUE!"},null,50,10,"فرقة التدخل السريع","2018-06-28","تم التسديد","تم التسديد"]
["رائد شلال موسى عباس ",1800,1800,null,200,9,"كلية الشرطة","2018-06-28"]
["علي صافي ناصر حسين",280,{"$error":"#VALUE!"},null,70,5,"مديرية نجدة بغداد","2018-06-28","تم التسديد"]
["علي صافي ناصر حسين",100,{"$error":"#VALUE!"},null,25,5,"مديرية نجدة بغداد","2018-06-05","تم التسديد"]
["رعد مطر لعيبي مساعد",3500,3150,null,350,10,"قيادة الشرطة الاتحادية مقر قيادة النسور","2018-06-04",350]
["وسام فالح حسن خلف الساعدي",900,900,null,100,9,"مديرية مرور بغداد","2018-06-04"]
["حيدر محمد عاشور حمودي",3500,3500,null,350,10,"قيادة الشرطة الاتحادية فق 1","2018-06-13"]
["محمد جاسم حاكم بشارة",450,450,null,75,6,"قيادة حرس الحدود","2018-06-26"]
["محمد جاسم حاكم بشارة",700,700,null,100,8,"قيادة حرس الحدود","2018-06-28"]
["ضياء عسل حلو محيسن ",2700,2700,null,300,9,"الشرطة الاتحادية فق 1","2018-06-02"]
["نورس سلمان حسين كاظم",1750,1750,null,175,10,"الشرطة الاتحادية فق 1","2018-06-10"]
["اياد سلمان شطب محمد ",962,{"$error":"#VALUE!"},null,192,7,"فرقة التدخل السريع","2018-06-10","تم التسديد","تم التسديد"]
["باسم نعمة كاظم شلال",250,250,null,50,5,"الشرطة الاتحادية فق 1","2018-06-26",null,"تم التسديد"]
["نبيل مخلف حمادي سليمان",1400,{"$error":"#VALUE!"},null,175,10,"مديرية نجدة بغداد","2018-06-26","تم التسديد","تم التسديد"]
["سمير عبد الجبار منسف معيلو",700,700,null,100,7,"الشرطة الاتحادية  فق 1","2018-06-26"]
["علاء كريم جبار سلمان ",800,{"$error":"#VALUE!"},null,100,9,"مديرية شرطة الكهرباء","2018-06-26","تم التسديد"]
["علاء كريم جبار سلمان ",600,{"$error":"#VALUE!"},null,100,7,"مديرية شرطة الكهرباء","2018-06-26","تم التسديد"]
["علاء موسى عبد النبي شلاكة ",1250,1250,null,125,10,"مديرية الصيانة والخدمات","2018-06-26"]
["قيس صباح عناد حابط",1750,1750,null,175,10,"مديرية مرور بغداد","2018-06-26"]
["مهند علي شكر محمود",1250,1250,null,125,10,"قيادة الشرطة الاتحادية فق 5","2018-06-26"]
["مهند علي شكر محمود",350,350,null,70,5,"قيادة الشرطة الاتحادية فق 5","2018-06-26"]
["مهند علي شكر محمود",600,600,null,86,7,"قيادة الشرطة الاتحادية فق 5","2018-06-26"]
["ضياء باسم هادي اللامي",613,{"$error":"#VALUE!"},null,87,8,"فرقة التدخل السريع","2018-06-26","تم التسديد"]
["محمد علي ماضي لفتة",900,900,null,100,9,"مديرية إدارة الموارد البشرية","2018-06-26"]
["محمد زبيدي معيوف هليل",1052,{"$error":"#VALUE!"},null,174,8,"الدفاع المدني ","2018-06-26","تم التسديد","تم التسديد"]
["فؤاد شاكر محمود علي",700,{"$error":"#VALUE!"},null,100,9,"مديرية نجدة بغداد","2018-06-26","تم التسديد","تم التسديد"]
["علي حسن توفيق جاسم",200,200,null,50,4,"قيادة الشرطة الاتحادية فق 6","2018-06-26"]
["علي حسن توفيق جاسم",75,75,null,25,3,"قيادة الشرطة الاتحادية فق 6","2018-06-26"]
["احمد عبد النور حميد طارش",1125,{"$error":"#VALUE!"},null,125,10,"حماية المنشات والشخصيات","2018-06-26","تم التسديد"]
["نور مسلم رحومي حمادي",636,{"$f":"B1421-I1421","v":636},null,106,6,"قيادة شرطة النجف","2018-06-26"]
["حوراء فرحان عباس حلو ",1314,1314,null,187,7,"قيادة شرطة النجف","2018-06-26"]
["محمد حمادي طارش جهلول",526,{"$error":"#VALUE!"},null,87,8,"مديرية نجدة بغداد","2018-06-26","تم التسديد","تم التسديد"]
["محمد حمادي طارش جهلول",150,{"$error":"#VALUE!"},null,50,4,"مديرية نجدة بغداد","2018-06-26","تم التسديد","تم التسديد"]
["محمد حمادي طارش جهلول",1330,{"$error":"#VALUE!"},null,222,8,"مديرية نجدة بغداد","2018-06-26","تم التسديد","تم التسديد"]
["صلاح عبد المهدي صالح عبد",800,800,null,100,9,"مديرية التدريب والتأهيل","2018-06-26"]
["امجد سامي جوحي جبر",1250,1250,null,125,10,"قوات حرس الحدود","2018-06-26"]
["حيدر عباس عجلان خليفة ",700,700,null,87,8,"مديرية شرطة بغداد","2018-06-26"]
["حسين عبد الستار دحام سليمان",450,450,null,75,6,"الشرطة الاتحادية فق 1","2018-06-26"]
["حسين عبد الستار دحام سليمان",2250,2250,null,279,8,"الشرطة الاتحادية فق 1","2018-06-26"]
["ياسر حميد رسن علي",150,150,null,50,3,"الشرطة الاتحادية ","2018-06-26"]
["علاء مدب حسن خميس ",150,150,null,50,3,"الشرطة الاتحادية فق 1","2018-06-27"]
["علاء مدب حسن خميس ",1800,1800,null,200,9,"الشرطة الاتحادية فق 2","2018-06-27"]
["نبيل مخلف حمادي سليمان",700,{"$error":"#VALUE!"},null,100,9,"مديرية نجدة بغداد","2018-06-27","تم التسديد","تم التسديد"]
["محمد بريسم جودة جول",1800,1800,null,200,9,"الشرطة الاتحادية فق 3","2018-06-27"]
["سامر ستار محمد موازي",900,900,null,100,9,"الشرطة الاتحادية فق6 ","2018-06-27"]
["سامر ستار محمد موازي",700,700,null,87,8,"الشرطة الاتحادية فق6 ","2018-06-27"]
["حسن رباح مهدي حسين",250,250,null,50,5,"الشرطة الاتحادية فق 5","2018-06-27"]
["عدنان كاظم حمزة حبيب",1250,1250,null,125,10,"الشرطة الاتحادية فق 1","2018-06-27"]
["سامر ستار محمد موازي",900,900,null,100,9,"الشرطة الاتحادية فق6 ","2018-06-27"]
["جعفر صادق عبد جلود ",2100,{"$error":"#VALUE!"},null,300,9,"مديرية النجدة العامة","2018-06-27","تم التسديد","تم التسديد"]
["علاء إسماعيل عذير لفتة",1278,{"$error":"#VALUE!"},null,261,7,"مديرية شرطة النجدة","2018-06-27","تم التسديد","تم التسديد"]
["عباس فاضل حميد عريم",3500,3500,null,350,10,"كلية الشرطة","2018-06-27"]
["علي سمير جلوب راضي",500,{"$error":"#VALUE!"},null,100,7,"مديرية نجدة بغداد","2018-06-27","تم التسديد","تم التسديد"]
["علي سمير جلوب راضي",2800,{"$error":"#VALUE!"},null,350,10,"مديرية نجدة بغداد","2018-06-27","تم التسديد","تم التسديد"]
["صفاء رحيم باهض عكاب",3334,{"$error":"#VALUE!"},null,333,12,"فرقة الرد السريع","2018-06-27","تم التسديد","تم التسديد"]
["احمد عبد النور حميد طارش",2000,{"$error":"#VALUE!"},null,250,10,"حماية المنشات والشخصيات","2018-06-27","تم التسديد"]
["كرار اياد عبد الواحد سلمان ",3500,3500,null,350,10,"الشرطة الاتحادية فق 5 مقر اللواء","2018-06-27"]
["مالك محمود خشان ختلان",2700,2700,null,300,9,"كلية الشرطة","2018-06-27"]
["مرتضى نعيم ناهي طهماز",1750,1750,null,175,10,"الشرطة الاتحادية فق الالية ل 2","2018-06-27"]
["مرتضى نعيم ناهي طهماز",700,700,null,87,8,"الشرطة الاتحادية فق الالية ل 2","2018-06-27"]
["مرتضى نعيم ناهي طهماز",700,700,null,87,8,"الشرطة الاتحادية فق الالية ل 2","2018-06-27"]
["مرتضى نعيم ناهي طهماز",800,800,null,88,9,"الشرطة الاتحادية فق الالية ل 2","2018-06-27"]
["مهند محمد عباس علي",900,900,null,100,9,"حماية المنشات والشخصيات","2018-06-27"]
["احمد رؤوف حسن ميشة ",1750,1750,null,175,10,"الشرطة الاتحادية كتيبة معالجة المتفجرات","2018-06-27"]
["احمد رؤوف حسن ميشة ",1125,1125,null,125,10,"الشرطة الاتحادية كتيبة معالجة المتفجرات","2018-06-27"]
["احمد رؤوف حسن ميشة ",250,250,null,50,5,"الشرطة الاتحادية كتيبة معالجة المتفجرات","2018-06-27"]
["نبيل إبراهيم عبدالله حمدان",450,450,null,65,7,"الشرطة الاتحادية ل 6","2018-06-27"]
["نبيل إبراهيم عبدالله حمدان",150,150,null,50,3,"الشرطة الاتحادية ل 6","2018-06-27"]
["خالد جمال جبارة ياسين",500,500,null,72,7,"الشرطة الاتحادية فق2","2018-06-28"]
["مصطفى احمد خيري توفيق",3600,3600,null,400,9,"امن وسلامة الوزارة","2018-06-28"]
["مختار عناد معلة حسين",1400,{"$error":"#VALUE!"},null,200,9,"مديرية نجدة بغداد","2018-06-28","تم التسديد","تم التسديد"]
["علي حسين سكران رباط ",900,900,null,100,9,"امن وسلامة الوزارة","2018-06-28"]
["إبراهيم محمد شوكت عبد الحميد",613,{"$error":"#VALUE!"},null,87,8,"حماية المنشات والشخصيات","2018-06-28","تم التسديد"]
["عبد الأمير سعدي رشيد جابر",1800,1800,null,200,9,"امن وسلامة الوزارة","2018-06-28"]
["احمد خالد ناصر حسين ",2300,{"$error":"#VALUE!"},null,300,9,"مديرية شرطة الكهرباء","2018-06-28","تم التسديد"]
["عدي جبار عبد بجاي ",800,800,null,88,9,"الشرطة الاتحادية استخبارات امن القيادة","2018-06-28"]
["عدي جبار عبد بجاي ",250,250,null,50,5,"الشرطة الاتحادية استخبارات امن القيادة","2018-06-28"]
["علاء شاكر محمود حمد",3375,{"$error":"#VALUE!"},null,375,10,"مديرية شرطة الكهرباء","2018-06-28","تم التسديد"]
["أنور صباح عايز حبيب",3000,3000,null,300,10,"مديرية مكافحة الاجرام","2018-06-28"]
["أنور صباح عايز حبيب",900,900,null,100,9,"مديرية مكافحة الاجرام","2018-06-28"]
["ندوان عبد الجليل طابور عبد",200,200,null,50,4,"الشرطة الاتحادية فق 2 ف الالي","2018-06-28"]
["وسام حسين مويز جبر",1600,1600,null,160,10,"مديرية شؤون السيطرات","2018-06-28"]
["حيدر كاظم هادي عبيد ",600,600,null,85,7,"الشرطة الاتحادية فق 1 ف القناصين","2018-06-28"]
["علي حسين ظاهر حبيب",1400,{"$error":"#VALUE!"},null,200,9,"فرقة الرد السريع","2018-06-28","تم التسديد","تم التسديد"]
["هيثم صالح هادي حسن",1800,1800,null,200,9,"الشرطة الاتحادية فق 1 ل الالي","2018-06-28"]
["فؤاد محمد دغر عكوب",1800,1800,null,200,9,"الشرطة الاتحادية فق 1 مقر الفرقة","2018-06-28"]
["رائد محمد علي جاسم",250,250,null,50,5,"مديرية البنى التحتية ","2018-06-28"]
["رائد محمد علي جاسم",1250,1250,null,125,10,"مديرية البنى التحتية ","2018-06-28"]
["رائد محمد علي جاسم",200,200,null,50,4,"مديرية البنى التحتية ","2018-06-28"]
["حسين عريبي محيبس كريم",700,{"$error":"#VALUE!"},null,100,9,"الدفاع المدني ","2018-06-28","تم التسديد","تم التسديد"]
["علي خزعل لعيبي زبن ",1600,{"$error":"#VALUE!"},null,200,9,"حماية المنشات والشخصيات","2018-06-28","تم التسديد"]
["كرار سعد عاتي معارج ",900,900,null,100,9,"الشرطة الاتحادية فق 2","2018-06-28"]
["حسين سبع خميس علي",1400,{"$error":"#VALUE!"},null,200,9,"مديرية شرطة الكهرباء","2018-06-28","تم التسديد"]
["محمد عباس حاجم سبع",800,{"$f":"B1485-I1485","v":{"$error":"#VALUE!"}},null,100,9,"حماية المنشات والشخصيات","2018-06-28","تم التسديد"]
["محمد عباس حاجم سبع",150,{"$error":"#VALUE!"},null,50,4,"حماية المنشات والشخصيات","2018-06-28","تم التسديد"]
["علي سامي مهدي معن",2200,{"$error":"#VALUE!"},null,250,10,"مديرية شرطة الكهرباء","2018-06-28","تم التسديد"]
["حيدر طه عبد الزهرة عبد الحسين",200,200,null,50,4,"الشرطة الاتحادية فق الالية","2018-06-28"]
["إبراهيم عبدالله فخري رسول",334,{"$error":"#VALUE!"},null,83,6,"مديرية النجدة العامة","2018-06-28","تم التسديد","تم التسديد"]
["إبراهيم عبدالله فخري رسول",200,{"$error":"#VALUE!"},null,100,4,"مديرية النجدة العامة","2018-06-28","تم التسديد","تم التسديد"]
["محمد راضي موات مزعل ",900,900,null,100,9,"قيادة شرطة بغداد","2018-06-28"]
["سعد عبد الرزاق علي ",700,700,null,100,7,"الشرطة الاتحادية فق 4","2018-06-30"]
["محمد مزعل إسماعيل جويعد",2700,2700,null,300,9,"مديرية شرطة الكهرباء","2018-06-30"]
["حسام عريبي زغير حسين",1400,{"$error":"#VALUE!"},null,200,9,"مديرية النجدة العامة","2018-06-30","تم التسديد","تم التسديد"]
["حسام عريبي زغير حسين",700,{"$error":"#VALUE!"},null,100,9,"مديرية النجدة العامة","2018-06-30","تم التسديد","تم التسديد"]
["علي محمد جودة ",3600,3600,null,400,9,"امن وسلامة الوزارة","2018-06-30"]
["منتظر مهدي صاحب حسن الساعدي",1250,1250,null,125,10,"شرطة بغداد فوج الطوارئ","2018-06-30"]
["اياد صبر محمد ظاهر ",1400,1400,null,200,7,"شرطة بغداد","2018-06-30"]
["علي سامي مهدي معن",700,{"$error":"#VALUE!"},null,100,9,"مديرية شرطة الكهرباء","2018-06-30","تم التسديد"]
["حيدر عباس عجلان خليفة ",700,-110411,null,100,7,"مديرية شؤون السيطرات","2018-06-30",111111]
["سهيل نجم مطشر لعيبي",1800,1800,null,200,9,"مديرية شرطة بغداد","2018-06-30"]
["قيس غضبان حميد خليل الكرخي",1400,1400,null,200,7,"مديرية التدريب والتأهيل","2018-06-30"]
["احمد مطار حنيش كعيد ",3500,{"$error":"#VALUE!"},null,440,9,"مديرية شرطة الكهرباء","2018-06-30","تم التسديد"]
["وهاب قاسم كريم مريوش",524,{"$error":"#VALUE!"},null,88,8,"مديرية النجدة العامة","2018-06-30","تم التسديد","تم التسديد"]
["وهاب قاسم كريم مريوش",210,{"$error":"#VALUE!"},null,70,5,"مديرية النجدة العامة","2018-06-30","تم التسديد","تم التسديد"]
["دلال حامد عبدالله سالم",900,900,null,100,9,"مديرية الشرطة القضائية","2018-06-30"]
["دلال حامد عبدالله سالم",350,350,null,70,5,"مديرية الشرطة القضائية","2018-06-30"]
["ايناس حسن علوان سرحان",350,350,null,70,5,"مديرية البطاقة الموحدة","2018-06-30"]
["علي حسين جلوب دلي",800,{"$error":"#VALUE!"},null,100,9,"حماية المنشات والشخصيات","2018-06-30","تم التسديد"]
["رياض سالم كاظم عبد الحسين",3600,3600,null,400,9,"قيادة الشرطة الاتحادية فق 4","2018-06-30"]
["ماجد عبد السادة عبد عيسى الجبوري",3750,3750,null,375,10,"الشرطة الاتحادية فق 1","2018-06-30"]
["علي محمد مظهر محمد",700,700,null,100,7,"الشرطة الاتحادية قيادة النسور","2018-06-30"]
["عباس فيصل جلوب خلف ",350,350,null,70,5,"مديرية البنى التحتية ","2018-06-30"]
["علي صابر عبد زاير ",1125,{"$error":"#VALUE!"},null,125,10,"حماية المنشات والشخصيات","2018-06-30","تم التسديد"]
["محمد خالد ناصر حسين",3500,{"$error":"#VALUE!"},null,440,9,"مديرية شرطة الكهرباء","2018-06-30","تم التسديد"]
["قصي عجيل محسن كمر",2500,2500,null,250,10,"مديرية البنى التحتية ","2018-06-30"]
["رائد محمد علي جاسم",1250,1250,null,125,10,"مديرية البنى التحتية ","2018-06-30"]
["رائد محمد علي جاسم",1250,1250,null,125,10,"مديرية البنى التحتية ","2018-06-30"]
["سمعان شهاب احمد حسن",1000,{"$error":"#VALUE!"},null,125,10,"مديرية نجدة بغداد","2018-06-30","تم التسديد","تم التسديد"]
["عباس خلف ازغير كريم ",2700,2700,null,300,9,"امن وسلامة الوزارة","2018-06-30"]
["حامد عيدان موزان علي",1200,{"$error":"#VALUE!"},null,150,10,"مديرية النجدة العامة ","2018-06-30","تم التسديد","تم التسديد"]
["حامد عيدان موزان علي",624,{"$error":"#VALUE!"},null,88,9,"مديرية النجدة العامة ","2018-06-30","تم التسديد","تم التسديد"]
["علي صابر عبد زاير ",600,{"$error":"#VALUE!"},null,100,7,"حماية المنشات والشخصيات","2018-06-30","تم التسديد"]
["محمد شهاب عايد فياض ",2700,2700,null,300,9,"مديرية البنى التحتية ","2018-06-30"]
["سلام عبد لفتة كشمر ",1000,{"$error":"#VALUE!"},null,125,10,"مديرية النجدة العامة","2018-06-30","تم التسديد","تم التسديد"]
["حيدر فرحان وهاب حسين",1250,1250,null,125,10,"كلية الشرطة","2018-06-30"]
["ضرغام رسول مهدي مبروك",900,900,null,100,9,"كلية الشرطة","2018-06-30"]
["ضرغام رسول مهدي مبروك",1250,1250,null,125,10,"كلية الشرطة","2018-06-30"]
["مالك عبد الكريم خضير بريسم",600,{"$error":"#VALUE!"},null,100,7,"حماية المنشات والشخصيات","2018-06-30","تم التسديد"]
["امجد محمود محسن حسن",1500,1500,null,150,10,"الشرطة الاتحادية فق 1 المقر","2018-06-30"]
["امجد محمود محسن حسن",800,800,null,99,9,"الشرطة الاتحادية فق 1 المقر","2018-06-30"]
["امجد محمود محسن حسن",1250,1250,null,125,10,"الشرطة الاتحادية فق 1 المقر","2018-06-30"]
["امجد محمود محسن حسن",700,700,null,100,7,"الشرطة الاتحادية فق 1 المقر","2018-06-30"]
["محمد ثامر عبد الصاحب علوان",800,800,null,88,9,"قيادة شرطة بغداد مديرية أفواج بغداد","2018-06-30"]
["محمد ثامر عبد الصاحب علوان",300,300,null,50,6,"قيادة شرطة بغداد مديرية أفواج بغداد","2018-06-30"]
["حسين علي وناس شناوة ",1050,{"$error":"#VALUE!"},null,175,8,"مديرية نجدة بغداد","2018-06-30","تم التسديد","تم التسديد"]
["حسين علي وناس شناوة ",1400,{"$error":"#VALUE!"},null,200,9,"مديرية نجدة بغداد","2018-06-30","تم التسديد","تم التسديد"]
["علي حكمت عبد الرضا احمد",1200,{"$error":"#VALUE!"},null,200,7,"مديرية شرطة الكهرباء","2018-06-30","تم التسديد"]
["احمد إبراهيم جبار غازي",700,700,null,100,7,"مديرية شرطة بغداد","2018-06-30"]
["سيف سعد خلف عطية",700,700,null,100,7,"الشرطة الاتحادية الفرقة الالية ","2018-06-30"]
["سيف سعد خلف عطية",800,800,null,88,9,"الشرطة الاتحادية الفرقة الالية ","2018-06-30"]
["سيف سعد خلف عطية",75,75,null,25,3,"الشرطة الاتحادية الفرقة الالية ","2018-06-30"]
["سيف سعد خلف عطية",200,200,null,50,4,"الشرطة الاتحادية الفرقة الالية ","2018-06-30"]
["امجد حميد غانم سلطان",3000,{"$error":"#VALUE!"},null,429,7,"قيادة شرطة بغداد","2018-06-30","تم ارسال القوائم لهذا الشهر"]
["صباح وادي كاظم لفتة",3000,3000,null,300,10,"مديرية شرطة بغداد","2018-07-01"]
["وائل حافظ عذيب بشير",1750,1750,null,175,10,"شرطة بغداد شؤون السيطرات","2018-07-01"]
["سعيد والي جنحوت حسين",3000,3000,null,300,10,"مديرية شرطة بغداد","2018-07-01"]
["سعيد والي جنحوت حسين",300,300,null,75,4,"مديرية شرطة بغداد","2018-07-01"]
["اياد طارق حمودي نصيف ",4500,{"$f":"B1549-I1549","v":4500},null,450,10,"مديرية شرطة بغداد","2018-07-01"]
["سعيد جبر جاسم عبد الحسين ",3000,3000,null,300,10,"الشرطة الاتحادية فق1","2018-07-01"]
["طلال مهدي صالح هلال ",700,700,null,100,7,"الشرطة الاتحادية","2018-07-01"]
["طلال مهدي صالح هلال ",900,900,null,100,9,"الشرطة الاتحادية","2018-07-01"]
["طلال مهدي صالح هلال ",600,600,null,85,7,"الشرطة الاتحادية","2018-07-01"]
["اركان كامل طاهر هوير",1200,1200,null,172,7,"حماية المنشات والشخصيات","2018-07-01"]
["صلاح مهدي صالح هلول",1500,1500,null,150,10,"مديرية شرطة بغداد","2018-07-01"]
["وريا خليل حسن ازاد ",700,700,null,100,7,"حماية المنشات والشخصيات","2018-07-01"]
["وريا خليل حسن ازاد ",700,700,null,140,5,"حماية المنشات والشخصيات","2018-07-01"]
["وريا خليل حسن ازاد ",700,700,null,88,8,"حماية المنشات والشخصيات","2018-07-01"]
["وريا خليل حسن ازاد ",400,400,null,66,6,"حماية المنشات والشخصيات","2018-07-01"]
["علاء فالح عبد الكاظم زغير",3000,3000,null,300,10,"مديرية شرطة بغداد فوج طوارئ بغداد","2018-07-01"]
["حسام عريبي زغير حسين",300,{"$error":"#VALUE!"},null,50,7,"مديرية النجدة العامة","2018-07-01","تم التسديد"]
["عامر بشير حميد راضي ",900,900,null,100,9,"الشرطة الاتحادية فق 2","2018-07-01"]
["سيف كريم ياسين فرحان",2700,{"$error":"#VALUE!"},null,300,10,"مديرية شرطة الكهرباء","2018-07-01","تم التسديد"]
["سيف كريم ياسين فرحان",600,{"$error":"#VALUE!"},null,100,7,"مديرية شرطة الكهرباء","2018-07-01","تم التسديد"]
["طالب عبد قاسم خليف ",1250,1250,null,125,10,"الشرطة الاتحادية معالجة المتفجرات","2018-07-01"]
["مصطفى خليف ساير حويش ",700,700,null,100,7,"الشرطة الاتحادية فق 1","2018-07-01"]
["مصطفى خليف ساير حويش ",450,450,null,75,6,"الشرطة الاتحادية فق 2","2018-07-01"]
["مصطفى شوقي عبد بدر",900,900,null,100,9,"مديرية شرطة بغداد","2018-07-01"]
["احمد رؤوف حسن ميشة ",1500,1500,null,150,10,"الشرطة الاتحادية كتيبة معالجة المتفجرات","2018-07-01"]
["احمد عامر عبد الجليل محمد",613,{"$error":"#VALUE!"},null,87,8,"مديرية نجدة بغداد","2018-07-01","تم التسديد"]
["حيدر فاضل حمزة سلمان ",1500,1500,null,150,10,"الشرطة الاتحادية الحسابات","2018-07-01"]
["محمد جاسم خطار عودة ",600,600,null,100,6,"الشرطة الاتحادية فق 2","2018-07-01"]
["فراس عبد الرزاق نعمة موسى ",3000,3000,null,300,10,"مديرية الأدلة الجنائية","2018-07-01"]
["فراس عبد الرزاق نعمة موسى ",900,900,null,100,9,"مديرية الأدلة الجنائية","2018-07-01"]
["حسين صبحي حسن حمادي",350,350,null,50,7,"مديرية شرطة بغداد","2018-07-01"]
["رزاق جمعة موسى حسون",1350,{"$error":"#VALUE!"},null,150,10,"مديرية شرطة الكهرباء","2018-07-01","تم التسديد"]
["رزاق جمعة موسى حسون",1225,{"$error":"#VALUE!"},null,175,8,"مديرية شرطة الكهرباء","2018-07-01","تم التسديد"]
["رائد ساجد حبيب حندور",2400,{"$error":"#VALUE!"},null,400,7,"مديرية شرطة الكهرباء","2018-07-01","تم التسديد"]
["رائد ساجد حبيب حندور",100,{"$error":"#VALUE!"},null,50,5,"مديرية شرطة الكهرباء","2018-07-01","تم التسديد"]
["حيدر فالح ناجي جارالله ",1500,1500,null,150,10,"الشرطة الاتحادية فق6 ","2018-07-01"]
["ناطق صالح حاجم لولي وشل",515,{"$error":"#VALUE!"},null,85,7,"مديرية شرطة الكهرباء","2018-07-01","تم التسديد"]
["اياد ناصر لفتة كنيهر",1029,{"$error":"#VALUE!"},null,171,7,"مديرية شرطة الكهرباء","2018-07-01","تم التسديد"]
["سيف سعد خلف عطية",75,75,null,25,3,"الشرطة الاتحادية","2018-07-01"]
["علي شاكر نعمة زبون ",1250,1250,null,125,10,"مديرية شرطة امانة بغداد","2018-07-01"]
["رزاق جمعة موسى حسون",150,{"$error":"#VALUE!"},null,50,4,"مديرية شرطة الكهرباء","2018-07-01","تم التسديد"]
["علي محمد مظهر محمد",700,700,null,100,7,"الشرطة الاتحادية مقر القيادة","2018-07-01"]
["علي سلمان حاوي علوان ",600,600,null,100,6,"قيادة شرطة بغداد سرية سوات","2018-07-01"]
["علي حسين جلوب دلي",1500,1500,null,150,10,"حماية المنشات والشخصيات","2018-07-01"]
["علي حسن توفيق جاسم",130,130,null,33,4,"الشرطة الاتحادية فق 6","2018-07-01"]
["احمد ثامر عبد الصاحب علوان",800,800,null,88,9,"قيادة شرطة بغداد","2018-07-01"]
["علي جاسم سبتي بدر البدري",3000,3000,null,300,10,"الشرطة الاتحادية فق1","2018-07-01"]
["عباس ناصر عدوان سلمان",600,600,null,86,7,"قيادة الشرطة الاتحادية","2018-07-02"]
["حسين عباس حسن باشخ ",800,800,null,88,9,"الشرطة الاتحادية فق1","2018-07-02"]
["حسين عباس حسن باشخ ",250,250,null,50,3,"الشرطة الاتحادية فق2","2018-07-02"]
["حسين عباس حسن باشخ ",350,350,null,70,5,"الشرطة الاتحادية فق3","2018-07-02"]
["حسين عباس حسن باشخ ",700,700,null,88,8,"الشرطة الاتحادية فق4","2018-07-02"]
["علي اياد عبد الرحمن عبدالله",1500,1500,null,150,10,"الشرطة الاتحادية فق 1 المغاوير","2018-07-02"]
["محمد حسين سلوم مناجي",25,25,null,25,1,"الدفاع المدني ","2018-07-02"]
["سالم مصطفى عبد المصطفى الملا",300,300,null,50,6,"الشرطة الاتحادية فق1","2018-07-02"]
["صلاح مهدي حسن بردي",2700,{"$error":"#VALUE!"},null,300,10,"مديرية شرطة الكهرباء","2018-07-02","تم التسديد"]
["معتز شاكر خضير دايم",1200,1200,null,200,6,"كلية الشرطة","2018-07-02"]
["مصطفى خزعل خليفة مصطفى",4000,4000,null,333,12,"الشرطة الاتحادية فق الالية","2018-07-02"]
["حسين صبري عبد منسي ",225,225,null,225,1,"حماية المنشات والشخصيات","2018-07-02"]
["حسين صبري عبد منسي ",3000,3000,null,300,10,"حماية المنشات والشخصيات","2018-07-02"]
["علاء مدب حسن خميس ",1500,1500,null,150,10,"الشرطة الاتحادية مقر فق 2","2018-07-02"]
["عقيل نعمة راضي عليوي",1000,1000,null,143,7,"مديرية امن الافراد","2018-07-02"]
["محمد حسن محمد حسين",600,600,null,86,7,"الشرطة الاتحادية فق 2","2018-07-02"]
["محمد حسن محمد حسين",1500,1500,null,150,10,"الشرطة الاتحادية فق 3","2018-07-02"]
["عقيل عماد ياسين داوود",300,300,null,50,6,"الشرطة الاتحادية فق الالية","2018-07-02"]
["رحيم مالك رحيم راشد",417,{"$error":"#VALUE!"},null,83,6,"فرقة التدخل السريع","2018-07-02","تم التسديد"]
["حيدر فالح ناجي جارالله ",1500,1500,null,150,10,"الشرطة الاتحادية","2018-07-02"]
["حيدر فالح ناجي جارالله ",900,900,null,100,9,"الشرطة الاتحادية","2018-07-02"]
["علي لازم حاتم مشجل ",3500,{"$f":"B1613-I1613","v":3500},null,350,10,"مكتب الوزير","2018-07-02"]
["مريم غافل غضب خلف ",3000,3000,null,300,10,"حماية المنشات والشخصيات","2018-07-02"]
["مريم مدهوش مثنى نجم",200,200,null,50,4,"المحكمة الثالثة المنطقة الثالثة","2018-07-02"]
["احمد إسكندر محمود مرزوق",1250,1250,null,125,10,"الشرطة الاتحادية فق 2","2018-07-02"]
["مصطفى جمعة حسين شمخي",1250,1250,null,125,10,"حماية المنشات والشخصيات","2018-07-02"]
["مرتضى حسين عاشور حمزة ",100,{"$error":"#VALUE!"},null,50,3,"فرقة الرد السريع","2018-07-02","تم التسديد"]
["نبيل إبراهيم رحيم مزعل",800,{"$error":"#VALUE!"},null,100,9,"مديرية شرطة الكهرباء","2018-07-02","تم التسديد"]
["مصطفى عبد الكريم شريف",800,{"$error":"#VALUE!"},null,100,9,"مديرية شرطة الكهرباء","2018-07-02","تم التسديد"]
["علي حكمت عبد الرضا احمد",1200,{"$error":"#VALUE!"},null,200,7,"مديرية شرطة الكهرباء","2018-07-02","تم التسديد"]
["ثائر احسان جمال عباس",800,800,null,88,9,"مديرية الشرطة الاتحادية","2018-07-02"]
["كريم كاظم عبدالله كريم",600,{"$error":"#VALUE!"},null,100,7,"مديرية نجدة بغداد ","2018-07-02","تم التسديد"]
["احمد داوود عبادي زاجي",1250,1250,null,125,10,"الشرطة الاتحادية امرية الطبابة","2018-07-02"]
["احمد داوود عبادي زاجي",1500,1500,null,150,10,"الشرطة الاتحادية امرية الطبابة","2018-07-02"]
["محمد برهان محمد ياسين",450,375,null,75,6,"حماية المنشات والشخصيات","2018-07-03",75]
["محمد برهان محمد ياسين",200,150,null,50,4,"حماية المنشات والشخصيات","2018-07-03",50]
["فيصل نوري سلطان فليح ",800,{"$error":"#VALUE!"},null,100,9,"مديرية النجدة العامة","2018-07-03","تم التسديد"]
["فيصل نوري سلطان فليح ",614,{"$error":"#VALUE!"},null,86,null,"مديرية النجدة العامة","2018-07-03","تم التسديد"]
["فيصل نوري سلطان فليح ",1200,{"$error":"#VALUE!"},null,200,null,"مديرية النجدة العامة","2018-07-03","تم التسديد"]
["ستار جبار زاير حسن ",600,{"$error":"#VALUE!"},null,100,null,"مديرية نجدة بغداد","2018-07-03","تم التسديد"]
["سعد علي شلش محسن ",612,{"$error":"#VALUE!"},null,88,null,"مديرية نجدة بغداد","2018-07-03","تم التسديد"]
["سعد علي شلش محسن ",50,{"$error":"#VALUE!"},null,25,null,"مديرية نجدة بغداد","2018-07-03","تم التسديد"]
["قصي عيدان موزان علي ",700,700,null,100,null,"الشرطة الاتحادية فق 1","2018-07-03"]
["قصي عيدان موزان علي ",300,300,null,50,null,"الشرطة الاتحادية فق 1","2018-07-03"]
["احمد عجيل راهي سبع",1800,1800,null,200,null,"امن وسلامة الوزارة","2018-07-03"]
["علاء عامر صالح محمد",350,350,null,70,null,"مديرية شرطة صلاح الدين","2018-07-03"]
["علاء عامر صالح محمد",900,900,null,100,null,"مديرية شرطة صلاح الدين","2018-07-03"]
["علي موسى حميد بصيبص",1800,{"$error":"#VALUE!"},null,200,null,"فرقة التدخل السريع","2018-07-03","تم التسديد","تم التسديد"]
["علي موسى حميد بصيبص",250,{"$error":"#VALUE!"},null,50,null,"فرقة التدخل السريع","2018-07-03","تم التسديد","تم التسديد"]
["حلمي عوني فاضل حسين",900,900,null,100,null,"مديرية شرطة بغداد","2018-07-03"]
["عمر عماد عبد الفتاح خضير",900,900,null,150,6,"الشرطة الاتحادية لواء الرشاشات","2018-07-03"]
["عمر عماد عبد الفتاح خضير",200,200,null,50,null,"الشرطة الاتحادية لواء الرشاشات","2018-07-03"]
["عمر عماد عبد الفتاح خضير",700,700,null,100,null,"الشرطة الاتحادية لواء الرشاشات","2018-07-03"]
["حيدر ماجد شنشل جلوب",1400,1400,null,200,null,"الشرطة الاتحادية مقر القيادة","2018-07-03"]
["فاضل دريول عبدالله رخيص",800,{"$error":"#VALUE!"},null,100,null,"مديرية شرطة الكهرباء","2018-07-03","تم التسديد"]
["فاضل دريول عبدالله رخيص",1200,{"$error":"#VALUE!"},null,200,null,"مديرية شرطة الكهرباء","2018-07-03","تم التسديد"]
["علي سلومي كومان خزاز  ",700,700,null,100,null,"الشرطة الاتحادية","2018-07-03"]
["حامد نعيم محمد حسن ",450,450,null,75,null,"مديرية امن الافراد","2018-07-03"]
["عباس حنون عيسى جاسم ",250,250,null,50,null,"شرطة اتحادية استخبارات وامن القيادة","2018-07-03"]
["عباس حنون عيسى جاسم ",75,75,null,25,null,"شرطة اتحادية استخبارات وامن القيادة","2018-07-03"]
["إبراهيم عبدالله فخري رسول",1200,{"$error":"#VALUE!"},null,200,null,"مديرية النجدة العامة","2018-07-03","تم التسديد"]
["مهدي محسن عباس خليف",1030,{"$error":"#VALUE!"},null,170,null,"مديرية شرطة الكهرباء","2018-07-03","تم التسديد"]
["مهدي محسن عباس خليف",600,{"$error":"#VALUE!"},null,100,null,"مديرية شرطة الكهرباء","2018-07-03","تم التسديد"]
["علي رعد ياسين حيدر ",1500,1500,null,150,null,"الشرطة الاتحادية فق 1","2018-07-03"]
["احمد إبراهيم جبار غازي",1500,1500,null,150,null,"مديرية شرطة بغداد","2018-07-03"]
["صباح وادي كاظم لفتة",900,900,null,100,null,"مديرية شرطة بغداد","2018-07-03"]
["ساجد صباح جبار فاضل ",700,700,null,100,null,"حماية المنشات والشخصيات","2018-07-03"]
["محمد مشرف عبد جاسم محمد",1270,1270,null,150,null,"مديرية شرطة الانبار","2018-07-03"]
["علي هشام فاضل حسين ",700,700,null,100,null,"الشرطة الاتحادية فق1","2018-07-03"]
["صفاء صباح شياع عودة ",1350,{"$error":"#VALUE!"},null,150,null,"فرقة التدخل السريع","2018-07-03","تم التسديد"]
["علي بلاسم عبطان بداي",3000,3000,null,300,null,"مديرية الصيانة والخدمات","2018-07-03"]
["حسين عبد الرزاق محمود سلمان ",450,450,null,75,null,"الشرطة الاتحادية مقر القيادة","2018-07-03"]
["صلاح سعيد عبد الحسن كاظم",4500,4500,null,450,null,"الشرطة الاتحادية فق الالية","2018-07-03"]
["احمد فاضل عودة جاسم",700,700,null,100,null,"الشرطة الاتحادية فق 2","2018-07-03"]
["محمد عدنان فرحان ساجت",3000,3000,null,300,null,"الشرطة الاتحادية فق 1","2018-07-03"]
["ايناس حسن علوان سرحان",500,500,null,72,null,"مديرية البطاقة الموحدة","2018-07-03"]
["حسين داوود سلمان نجم",2800,2800,null,400,null,"مديرية شرطة الطاقة","2018-07-03"]
["قاسم غازي مكارز حسين","د.ع.‏ 3,000.000 ",{"$error":"#VALUE!"},null,"د.ع.‏ 300.000 ",null,"مديرية شرطة الطاقة","2018-07-03"]
["مصطفى عبد الكريم شريف",1200,{"$error":"#VALUE!"},null,200,null,"مديرية شرطة الكهرباء","2018-07-03","تم التسديد"]
["حيدر يابان عبدالله بداي ","د.ع.‏ 1,500.000 ",{"$error":"#VALUE!"},null,"د.ع.‏ 150.000 ",null,"قوات حرس الحدود","2018-07-03"]
["علي سلمان حاوي علوان ","د.ع.‏ 700.000 ",{"$error":"#VALUE!"},null,"د.ع.‏ 100.000 ",null,"مديرية شرطة بغداد","2018-07-03"]
["علي ماهر زكي إبراهيم الساعدي","د.ع.‏ 1,800.000 ",{"$error":"#VALUE!"},null,"د.ع.‏ 200.000 ",null,"قيادة شرطة بغداد الفوج التاسع","2018-07-03"]
["علي ماهر زكي إبراهيم الساعدي","د.ع.‏ 450.000 ",{"$error":"#VALUE!"},null,"د.ع.‏ 75.000 ",null,"قيادة شرطة بغداد الفوج التاسع","2018-07-03"]
["علي ماهر زكي إبراهيم الساعدي","د.ع.‏ 250.000 ",{"$error":"#VALUE!"},null,"د.ع.‏ 50.000 ",null,"قيادة شرطة بغداد الفوج التاسع","2018-07-03"]
["رياض سعود عليوي مال الله",1350,{"$error":"#VALUE!"},null,150,null,"مديرية شرطة الكهرباء","2018-07-03","تم التسديد"]
["زيدون عماد مذخور محسن المحمداوي",1400,{"$f":"B1677-I1677","v":1400},null,"د.ع.‏ 150.000 ",null,"الشرطة الاتحادية فق 1","2018-07-03"]
["زيدون عماد مذخور محسن المحمداوي",600,600,null,"د.ع.‏ 100.000 ",null,"الشرطة الاتحادية فق 1","2018-07-03"]
["اوس خالد صالح سعيد ","د.ع.‏ 2,700.000 ",{"$error":"#VALUE!"},null,"د.ع.‏ 300.000 ",null,"الشرطة الاتحادية قسم البحوث والدراسات","2018-07-03"]
["اوس خالد صالح سعيد ","د.ع.‏ 900.000 ",{"$error":"#VALUE!"},null,"د.ع.‏ 100.000 ",null,"الشرطة الاتحادية قسم البحوث والدراسات","2018-07-03"]
["حيدر حامد عبيد مطر",1350,{"$error":"#VALUE!"},null,"د.ع.‏ 150.000 ",null,"فرقة التدخل السريع","2018-07-04","تم التسديد"]
["حيدر حامد عبيد مطر",600,{"$error":"#VALUE!"},null,"د.ع.‏ 100.000 ",null,"فرقة التدخل السريع","2018-07-04","تم التسديد"]
["حيدر حامد عبيد مطر",200,{"$error":"#VALUE!"},null,"د.ع.‏ 50.000 ",null,"فرقة التدخل السريع","2018-07-04","تم التسديد"]
["عمر عماد عبد الفتاح خضير","د.ع.‏ 1,500.000 ",{"$error":"#VALUE!"},null,"د.ع.‏ 150.000 ",null,"الشرطة الاتحادية لواء الرشاشات","2018-07-04"]
["رائد جهاد إبراهيم مصطفى",1500,1500,null,150,null,"قوات حرس الحدود","2018-07-04"]
["قصي عيدان موزان علي ",900,900,null,100,null,"الشرطة الاتحادية فق1","2018-07-04"]
["محمد عبد المحسن مسلم ",1500,1500,null,150,null,"مديرية شرطة بغداد","2018-07-04"]
["عمر علوان شلال فرحان",3000,3000,null,300,null,"الشرطة الاتحادية فق 1","2018-07-04"]
["عمر علوان شلال فرحان",900,900,null,100,null,"الشرطة الاتحادية فق 1","2018-07-04"]
["محمد فهد درويش مخور",1500,1500,null,150,null,"الدفاع المدني","2018-07-04"]
["سيف فضل عبد الهادي إبراهيم",1350,{"$error":"#VALUE!"},null,150,null,"مديرية النجدة العامة","2018-07-04","تم التسديد"]
["سيف فضل عبد الهادي إبراهيم",800,{"$error":"#VALUE!"},null,100,null,"مديرية النجدة العامة","2018-07-04","تم التسديد"]
["سيف فضل عبد الهادي إبراهيم",612,{"$error":"#VALUE!"},null,88,null,"مديرية النجدة العامة","2018-07-04","تم التسديد"]
["سيف فضل عبد الهادي إبراهيم",417,{"$error":"#VALUE!"},null,83,null,"مديرية النجدة العامة","2018-07-04","تم التسديد"]
["نورس سلمان حسين كاظم",1500,1500,null,150,null,"الشرطة الاتحادية فق 1","2018-07-04"]
["اشرف عبد الواحد إبراهيم مزعل",4000,4000,null,444,null,"مديرية البنى التحتية","2018-07-04"]
["محمد طالب نايف حسوني",450,450,null,75,null,"حماية المنشا والشخصيات","2018-07-04"]
["محمد طالب نايف حسوني",800,800,null,88,null,"حماية المنشات والشخصيات","2018-07-04"]
["طلال مهدي صالح هلال ",450,450,null,75,null,"الشرطة الاتحادية امرية الطبابة","2018-07-04"]
["خالد باسل محمد سعدون ",1313,{"$error":"#VALUE!"},null,187,null,"الدفاع المدني","2018-07-04","تم التسديد"]
["ساجد صباح جبار فاضل ",900,900,null,100,null,"حماية المنشات والشخصيات","2018-07-04"]
["احمد محمد حسين مطنش",1600,1600,null,176,null,"حماية المنشات والشخصيات","2018-07-04"]
["رعد سعد عودة محمد السوداني",700,700,null,87,null,"الشرطة الاتحادية فق3","2018-07-04"]
["رعد سعد عودة محمد السوداني",450,450,null,75,null,"الشرطة الاتحادية فق3","2018-07-04"]
["محمد يونس راضي موزان ",250,250,null,50,null,"مديرية شرطة بغداد","2018-07-04"]
["احمد عبد محمد حساس",900,900,null,100,null,"مديرية شرطة بغداد","2018-07-04"]
["احمد عبد محمد حساس",800,800,null,88,null,"مديرية شرطة بغداد","2018-07-04"]
["سعد علي شلش محسن ",613,{"$error":"#VALUE!"},null,87,null,"مديرية شرطة النجدة","2018-07-04","تم التسديد"]
["سعد علي شلش محسن ",712,{"$error":"#VALUE!"},null,88,null,"مديرية شرطة النجدة","2018-07-04","تم التسديد"]
["جاسم عبد الباقي عبد الستار سلوم",250,250,null,50,null,"لشرطة الاتحادية فق1","2018-07-04"]
["جاسم عبد الباقي عبد الستار سلوم",200,200,null,50,null,"لشرطة الاتحادية فق2","2018-07-04"]
["جاسم عبد الباقي عبد الستار سلوم",50,50,null,50,null,"لشرطة الاتحادية فق3","2018-07-04"]
["حسن سمير حسن حمدي",75,75,null,25,null,"مديرية شرطة بغداد","2018-07-04"]
["حسن سمير حسن حمدي",200,200,null,50,null,"مديرية شرطة بغداد","2018-07-04"]
["ضياء رحيم محمود علي",750,{"$error":"#VALUE!"},null,150,null,"مديرية النجدة العامة","2018-07-04","تم التسديد"]
["علي ماهر زكي إبراهيم الساعدي",1600,1600,null,177,null,"قيادة شرطة بغداد ","2018-07-04"]
["عقيل سعدون ساهي حميدي",4000,4000,null,400,null,"مديرية نجدة بغداد","2018-07-04"]
["حمزة عبد عون عيدان",3200,3200,null,352,null,"مديرية الصيانة والخدمات","2018-07-04"]
["ياسر صلاح طاهر محمد علي",250,250,null,50,null,"الشرطة الاتحادية فق1","2018-07-04"]
["ياسر صلاح طاهر محمد علي",125,125,null,25,null,"الشرطة الاتحادية فق1","2018-07-04"]
["قصي عجيل محسن كمر",1600,1600,null,177,null,"مديرية البنى التحتية","2018-07-04"]
["هشام عودة غربي سلطان",2100,2100,null,300,null,"الشرطة الاتحادية فق 4","2018-07-04"]
["محمد عباس فاضل حسين",25,25,null,25,null,"قوات حرس الحدود","2018-07-04"]
["ستار جبار زاير حسن ",250,{"$error":"#VALUE!"},null,50,null,"مديرية نجدة بغداد","2018-07-04","تم التسديد"]
["ستار جبار زاير حسن ",1200,{"$error":"#VALUE!"},null,200,null,"مديرية نجدة بغداد","2018-07-04","تم التسديد"]
["احمد عامر عبد الجليل محمد",800,{"$error":"#VALUE!"},null,100,null,"مديرية نجدة بغداد","2018-07-05","تم التسديد"]
["طالب علي سعدون لعيبي",1200,{"$error":"#VALUE!"},null,200,null,"مديرية نجدة بغداد","2018-07-05","تم التسديد"]
["طالب علي سعدون لعيبي",97,{"$error":"#VALUE!"},null,33,null,"مديرية نجدة بغداد","2018-07-05","تم التسديد"]
["علاء حسن درباس حسن",75,75,null,25,null,"الشرطة الاتحادية فق 1","2018-07-05"]
["علاء كاظم عبد الحسين كاظم",75,75,null,25,null,"محكمة تميز قوى الامن","2018-07-05"]
["ناطق صالح حاجم لولي وشل",515,{"$error":"#VALUE!"},null,85,null,"مديرية شرطة الكهرباء","2018-07-05","تم التسديد"]
["طعمة عبد الرحيم طاهر علي",250,250,null,50,null,"الشرطة الاتحادية فق 2","2018-07-05"]
["طعمة عبد الرحيم طاهر علي",700,700,null,88,null,"الشرطة الاتحادية فق 2","2018-07-05"]
["علاء حسين علي حميد ",600,600,null,85,null,"الشرطة الاتحادية فق 3","2018-07-05"]
["علاء حسين علي حميد ",1600,1600,null,177,null,"الشرطة الاتحادية فق 3","2018-07-05"]
["علاء حسين علي حميد ",700,700,null,87,null,"الشرطة الاتحادية فق 3","2018-07-05"]
["نهاد يوسف بريسم عصاد",1225,{"$error":"#VALUE!"},null,175,null,"مديرية نجدة بغداد","2018-07-05","تم التسديد"]
["نهاد يوسف بريسم عصاد",250,{"$error":"#VALUE!"},null,50,null,"مديرية نجدة بغداد","2018-07-05","تم التسديد"]
["ضياء عبد الوهاب عبد الرزاق صبيح",1400,1400,null,175,null,"مديرية شرطة بغداد","2018-07-05"]
["وسام عباس نكروز جخيم",1400,1225,null,175,null,"حماية المنشات والشخصيات","2018-07-05",175]
["حسين حمود موزان ناصر",8500,{"$f":"B1741-I1741","v":{"$error":"#VALUE!"}},null,500,null,"مديرية شرطة النجدة","2018-07-05","تم التسديد"]
["محمد هادي سرحان بدر",800,800,null,88,null,"الشرطة الاتحادية فق2","2018-07-05"]
["محمد هادي سرحان بدر",700,700,null,87,null,"الشرطة الاتحادية فق 2","2018-07-05"]
["حسين جواد كاظم حمد",1000,1000,null,142,null,"الشرطة الاتحادية فق 6","2018-07-05"]
["عقيل تركي عبود مضحي",600,600,null,85,null,"الشرطة الاتحادية فق5","2018-07-05"]
["حيدر يابان عبدالله بداي ",700,700,null,87,null,"قوات حرس الحدود","2018-07-05"]
["حيدر يابان عبدالله بداي ",300,300,null,50,null,"قوات حرس الحدود","2018-07-05"]
["حيدر علي ذيبان سلمان ",800,800,null,88,null,"مديرية التدريب والتأهيل","2018-07-05"]
["احمد محمد حسين مطنش",700,700,null,87,null,"حماية المنشات والشخصيات","2018-07-05"]
["خالد حسن علي جاري",800,800,null,88,null,"قوات حرس الحدود","2018-07-05"]
["خالد حسن علي جاري",700,700,null,87,null,"قوات حرس الحدود","2018-07-05"]
["خالد حسن علي جاري",600,600,null,85,null,"قوات حرس الحدود","2018-07-05"]
["حسين محسن نصار عبدالله ",800,{"$error":"#VALUE!"},null,100,null,"فرقة التدخل السريع","2018-07-05","تم التسديد"]
["حسين محسن نصار عبدالله ",150,{"$error":"#VALUE!"},null,50,null,"فرقة التدخل السريع","2018-07-05","تم التسديد"]
["حسين محسن نصار عبدالله ",280,{"$error":"#VALUE!"},null,70,null,"فرقة التدخل السريع","2018-07-05","تم التسديد"]
["مصطفى نجاح قاسم ثجيل",700,700,null,100,null,"قيادة قوات الشرطة الاتحادية","2018-07-05"]
["مصطفى نجاح قاسم ثجيل",1600,1600,null,178,null,"قيادة قوات الشرطة الاتحادية","2018-07-05"]
["وهاب قاسم كريم مريوش",250,{"$error":"#VALUE!"},null,50,null,"مديرية النجدة العامة","2018-07-05","تم التسديد"]
["بتول علي زغير فليفل",300,300,null,50,null,"الشرطة الاتحادية","2018-07-05"]
["مالك محمود خشان ختلان",800,800,null,88,null,"كلية الشرطة","2018-07-05"]
["رعد سعد عودة محمد السوداني",1400,1400,null,175,null,"الشرطة الاتحادية فق3 ل 11","2018-07-05"]
["سلام فرحان بنوان إبراهيم ",1225,{"$error":"#VALUE!"},null,175,null,"مديرية النجدة العامة","2018-07-05","تم التسديد"]
["علي عبد الرزاق سالم حسين",50,{"$error":"#VALUE!"},null,25,null,"فرقة التدخل السريع","2018-07-05","تم التسديد"]
["حيدر احمد عباس سلوم ",450,450,null,75,null,"قوات حرس الحدود","2018-07-05"]
["فاضل صبري حسين علي",600,600,null,200,null,"الشرطة الاتحادية فق5","2018-07-05"]
["فاضل صبري حسين علي",350,350,null,50,null,"الشرطة الاتحادية فق5","2018-07-05"]
["احمد هيثم حسين إبراهيم ",1125,{"$error":"#VALUE!"},null,225,null,"مديرية شرطة الكهرباء","2018-07-05","تم التسديد"]
["احمد هيثم حسين إبراهيم ",600,{"$error":"#VALUE!"},null,100,null,"مديرية شرطة الكهرباء","2018-07-05","تم التسديد"]
["تحسين علي عطية عبد السادة",900,900,null,100,null,"الشرطة الاتحادية فق1","2018-07-05"]
["مازن جبار زيدان سهر",2700,2700,null,300,null,"قيادة شرطة بغداد","2018-07-05"]
["علي هشام فاضل حسين ",900,900,null,100,null,"الشرطة الاتحادية فق 1","2018-07-05"]
["بهاء صلاح نعمان علوان",50,{"$error":"#VALUE!"},null,25,null,"فرقة التدخل السريع","2018-07-07","تم التسديد"]
["جاسم عواد شلاش مطروح",450,450,null,75,null,"مديرية شرطة بغداد","2018-07-07"]
["رسول محمد حسن كعيد",900,900,null,100,null,"الشرطة الاتحادية فق5","2018-07-07"]
["رسول محمد حسن كعيد",150,150,null,50,null,"الشرطة الاتحادية فق5","2018-07-07"]
["رسول محمد حسن كعيد",200,200,null,50,null,"الشرطة الاتحادية فق5","2018-07-07"]
["مختار عناد معلة حسين",700,{"$error":"#VALUE!"},null,100,null,"مديرية النجدة العامة","2018-07-07","تم التسديد"]
["مختار عناد معلة حسين",200,{"$error":"#VALUE!"},null,50,null,"مديرية النجدة العامة","2018-07-07","تم التسديد"]
["نعمان محمد إبراهيم حمادي ",300,300,null,60,null,"حماية المنشات والشخصيات","2018-07-07"]
["نعمان محمد إبراهيم حمادي ",450,450,null,75,null,"حماية المنشات والشخصيات","2018-07-07"]
["نعمان محمد إبراهيم حمادي ",75,75,null,25,null,"حماية المنشات والشخصيات","2018-07-07"]
["عقيل صباح حسين بدر",250,250,null,50,null,"الشرطة الاتحادية فق6 ","2018-07-07"]
["علاء سعد صكراشغيت",700,700,null,89,null,"الشرطة الاتحادية فق6 ","2018-07-07"]
["علاء سعد صكراشغيت",900,900,null,100,null,"الشرطة الاتحادية فق6 ","2018-07-07"]
["علاء سعد صكراشغيت",350,350,null,70,null,"الشرطة الاتحادية فق6 ","2018-07-07"]
["رسول محمد حسن كعيد",350,350,null,75,null,"الشرطة الاتحادية فق 5","2018-07-07"]
["رسول محمد حسن كعيد",130,130,null,32,null,"الشرطة الاتحادية فق 5","2018-07-07"]
["رسول محمد حسن كعيد",900,900,null,100,null,"الشرطة الاتحادية فق 5","2018-07-07"]
["فهد وليد خالد علي ",700,700,null,87,null,"حماية المنشات والشخصيات","2018-07-07"]
["فهد وليد خالد علي ",200,200,null,50,null,"حماية المنشات والشخصيات","2018-07-07"]
["اركان محمد حسن حسين ",350,350,null,70,null,"مديرية شرطة بغداد","2018-07-07"]
["حيدر نعيم عبد حسين",500,500,null,71,null,"امن وسلامة الوزارة","2018-07-07"]
["سلام فرحان بنوان إبراهيم ",800,{"$error":"#VALUE!"},null,100,null,"مديرية النجدة العامة","2018-07-07","تم التسديد"]
["سلام فرحان بنوان إبراهيم ",613,{"$error":"#VALUE!"},null,87,null,"مديرية النجدة العامة","2018-07-07","تم التسديد"]
["مجيب عبد الرسول جابر محمد",1800,1800,null,200,null,"الشرطة الاتحادية فق2","2018-07-07"]
["عباس احمد محمود هاشم ",1800,1800,null,200,null,"حماية المنشات والشخصيات","2018-07-07"]
["حيدر هادي سلمان عبد الرزاق",300,300,null,50,null,"مديرية شرطة ديالى","2018-07-07"]
["حيدر هادي سلمان عبد الرزاق",270,270,null,54,null,"مديرية شرطة ديالى","2018-07-07"]
["علي خضير رومي شلبة",900,{"$error":"#VALUE!"},null,100,null,"مديرية شرطة الكهرباء","2018-07-07","تم التسديد"]
["قحطان كامل عنيد جابر الساعدي",3500,3500,null,350,null,"مديرية شرطة بغداد","2018-07-07"]
["قصي عيدان موزان علي ",900,900,null,100,null,"الشرطة الاتحادية فق 1","2018-07-07"]
["قصي عيدان موزان علي ",300,300,null,50,null,"الشرطة الاتحادية فق 1","2018-07-07"]
["علي ماهر زكي إبراهيم الساعدي",900,900,null,100,null,"قيادة شرطة بغداد","2018-07-07"]
["طالب علي سعدون لعيبي",800,{"$error":"#VALUE!"},null,100,null,"مديرية نجدة بغداد","2018-07-07","تم التسديد"]
["عادل عباس حجي سبهان",900,{"$f":"B1805-I1805","v":900},null,100,null,"مديرية شرطة بغداد","2018-07-07"]
["حذيفة ماجد عبد الحميد عبد الحسين ",1225,{"$error":"#VALUE!"},null,175,null,"مديرية نجدة بغداد","2018-07-07","تم التسديد"]
["مريم مدهوش مثنى نجم",2100,2100,null,262,null,"محكمة تميز قوى الامن","2018-07-07"]
["حسين كاظم طلب جبرالله ",700,700,null,87,null,"الشرطة الاتحادية فق2","2018-07-07"]
["حسين كاظم طلب جبرالله ",300,300,null,50,null,"الشرطة الاتحادية فق2","2018-07-07"]
["محمد احمد جمعة محمد",250,{"$error":"#VALUE!"},null,50,null,"مديرية نجدة بغداد","2018-07-07","تم التسديد"]
["محمد احمد جمعة محمد",613,{"$error":"#VALUE!"},null,87,null,"مديرية نجدة بغداد","2018-07-07","تم التسديد"]
["عامر عبد الرزاق محمد مجيد",800,{"$error":"#VALUE!"},null,100,null,"مديرية نجدة بغداد","2018-07-07","تم التسديد"]
["عامر عبد الرزاق محمد مجيد",225,{"$error":"#VALUE!"},null,75,null,"مديرية نجدة بغداد","2018-07-07","تم التسديد"]
["عامر عبد الرزاق محمد مجيد",613,{"$error":"#VALUE!"},null,87,null,"مديرية نجدة بغداد","2018-07-07","تم التسديد"]
["عامر عبد الرزاق محمد مجيد",50,{"$error":"#VALUE!"},null,25,null,"مديرية نجدة بغداد","2018-07-07","تم التسديد"]
["مراد كاظم جبر سعد",711,{"$error":"#VALUE!"},null,89,null,"مديرية نجدة بغداد","2018-07-07","تم التسديد"]
["مراد كاظم جبر سعد",50,{"$error":"#VALUE!"},null,25,null,"مديرية نجدة بغداد","2018-07-07","تم التسديد"]
["طارق عبد الأمير خضير",300,300,null,50,null,"الشرطة الاتحادية فق 1","2018-07-07"]
["طارق عبد الأمير خضير",75,75,null,25,null,"الشرطة الاتحادية فق 1","2018-07-07"]
["ماهر مجيد حميد سلطان",1837,{"$error":"#VALUE!"},null,263,null,"مديرية نجدة بغداد","2018-07-07","تم التسديد"]
["حسين مهدي صالح كاظم",75,75,null,25,null,"معهد اعداد المفوضين","2018-07-07"]
["مصطفى عبد الكريم شريف",613,{"$error":"#VALUE!"},null,87,null,"مديرية شرطة الكهرباء","2018-07-07","تم التسديد"]
["عفاف لطيف عبدالله عبدالله",5000,5000,null,416,null,"الشرطة الاتحادية فق 2","2018-07-07"]
["عصام كريم جبار شمخي ",150,150,null,50,null,"مديرية البنى التحتية","2018-07-07"]
["رياض عماد تحسين طاهر",1400,1400,null,175,null,"حماية المنشات والشخصيات","2018-07-07"]
["احمد عبد تمن دعيج ",9000,9000,null,500,null,"الشرطة الاتحادية فق1","2018-07-07"]
["هشام شاكر رشيد رملة ",1225,{"$error":"#VALUE!"},null,175,null,"مديرية شرطة الكهرباء","2018-07-07","تم التسديد"]
["علي عذاب فليح حسن ",4584,{"$error":"#VALUE!"},null,416,null,"مديرية شرطة النجدة","2018-07-07","تم التسديد"]
["علاء كريم جبار سلمان ",600,{"$error":"#VALUE!"},null,87,null,"مديرية شرطة الكهرباء","2018-07-07","تم التسديد"]
["حيدر حامد عبيد مطر",800,{"$error":"#VALUE!"},null,100,null,"فرقة التدخل السريع","2018-07-07","تم التسديد"]
["مالك محمود خشان ختلان",700,700,null,87,null,"كلية الشرطة","2018-07-07"]
["مصطفى مهدي حمود مهول",300,300,null,50,null,"مديرية الصيانة والخدمات","2018-07-07"]
["مصطفى مهدي حمود مهول",700,700,null,87,null,"مديرية الصيانة والخدمات","2018-07-07"]
["حسين عبد السيد بوتو",600,600,null,86,null,"مديرية شرطة بغداد","2018-07-07"]
["حسين عبد السيد بوتو",700,700,null,88,null,"مديرية شرطة بغداد","2018-07-07"]
["حسين عبد السيد بوتو",900,900,null,100,null,"مديرية شرطة بغداد","2018-07-07"]
["علي محمد كاظم حمود ",1800,1800,null,200,null,"قوات حرس الحدود","2018-07-07"]
["سيف عراك جميل عبد الله",900,900,null,100,null,"مديرية نجدة بغداد","2018-07-07"]
["سيف عراك جميل عبد الله",2100,2100,null,300,null,"مديرية نجدة بغداد","2018-07-07"]
["حسين علي ناصر محمد",900,900,null,100,null,"مديرية الصيانة والخدمات","2018-07-08"]
["احمد عبد القادر مهدي صالح",900,900,null,100,null,"امن وسلامة الوزارة","2018-07-08"]
["احمد عبد القادر مهدي صالح",900,900,null,100,null,"امن وسلامة الوزارة","2018-07-08"]
["هادي عبد رسن ثويني",1800,1800,null,200,null,"ش أ فق الالية","2018-07-08"]
["احمد محمد حسين مطنش",700,700,null,100,null,"حماية المنشات والشخصيات","2018-07-08"]
["مقداد خضير عباس عبد الهادي",600,{"$error":"#VALUE!"},null,100,null,"مديرية النجدة العامة","2018-07-08","تم التسديد"]
["مقداد خضير عباس عبد الهادي",200,{"$error":"#VALUE!"},null,50,null,"مديرية النجدة العامة","2018-07-08","تم التسديد"]
["هشام محمد حسين احمد",200,{"$error":"#VALUE!"},null,50,null,"مديرية نجدة بغداد","2018-07-08","تم التسديد"]
["علي عبد الأمير عباس عصري",711,{"$error":"#VALUE!"},null,89,null,"مديرية نجدة بغداد","2018-07-08","تم التسديد"]
["ضياء جاسم محمد محسن",2100,2100,null,262,null,"حماية المنشات والشخصيات","2018-07-08"]
["عماد كاظم رحيمة عباس",1576,{"$error":"#VALUE!"},null,262,null,"مديرية نجدة بغداد","2018-07-08","تم التسديد"]
["عماد كاظم رحيمة عباس",250,{"$error":"#VALUE!"},null,50,null,"مديرية نجدة بغداد","2018-07-08","تم التسديد"]
["عماد كاظم رحيمة عباس",280,{"$error":"#VALUE!"},null,70,null,"مديرية نجدة بغداد","2018-07-08","تم التسديد"]
["سعد جليل سعيد حمود",5000,5000,null,500,null,"مديرية الدفاع المدني","2018-07-08"]
["كرار اياد عبد الواحد سلمان ",350,350,null,70,null,"الشرطة الاتحادية فق5","2018-07-08"]
["محمد كاظم حسن خريبط السوداني",700,700,null,87,null,"الاتحادية فق1 ل2 ف3","2018-07-08"]
["احمد صاحب جمعة عناد الخالدي",900,900,null,100,null,"الاتحادية فق5 المقر","2018-07-08"]
["احمد صاحب جمعة عناد الخالدي",700,700,null,87,null,"الاتحادية فق5 المقر","2018-07-08"]
["محمد برهان محمد ياسين",900,800,null,100,null,"مديرية حماية المنشات /قاطع المدائن","2018-07-08",100]
["سعد علي شلش محسن ",613,{"$error":"#VALUE!"},null,87,null,"مديرية النجدة العامة","2018-07-08","تم التسديد"]
["سعد علي شلش محسن ",800,{"$error":"#VALUE!"},null,100,null,"مديرية النجدة العامة","2018-07-08","تم التسديد"]
["عمر هاشم محمد ضاري",5000,5000,null,416,null,"شرطة بغداد /قاطع الاعظمية","2018-07-08"]
["عمر هاشم محمد ضاري",450,450,null,75,null,"شرطة بغداد /قاطع الاعظمية","2018-07-08"]
["ثائر كامل جواد كاظم الشمري",1400,1400,null,175,null,"مديرية شرطة بغداد","2018-07-08"]
["علي عبد المهدي محمد قاسم التميمي",4584,{"$error":"#VALUE!"},null,416,null,"مديرية شرطة الكهرباء","2018-07-08","تم التسديد"]
["علي عبد المهدي محمد قاسم التميمي",613,{"$error":"#VALUE!"},null,87,null,"مديرية شرطة الكهرباء","2018-07-08","تم التسديد"]
["جبار هادي عبد خضر الاسدي",5000,5000,null,416,null,"الاتحادية فق2 ل8 مقر اللواء","2018-07-08"]
["هشام عماد خيري إبراهيم",700,613,null,87,null,"مديرية حماية المنشات والشخصيات","2018-07-08",87,93]
["علي كاظم طالب حسن التميمي",4584,{"$error":"#VALUE!"},null,416,null,"مديرية شرطة الكهرباء","2018-07-08","تم التسديد"]
["رافد عبد الواحد جبار مطلك",900,{"$f":"B1869-I1869","v":900},null,100,null,"الاتحادية فق2 ل8 الفوج الثالث","2018-07-08"]
["ايسر حكمت محمود خضر القيسي",25,25,null,25,null,"الاتحادية فق1 ل3 مقر اللواء","2018-07-08"]
["علي جاسم محمد جواد الدليمي",700,700,null,87,null,"الاتحادية /فق الالية","2018-07-08"]
["علي جاسم محمد جواد الدليمي",700,700,null,87,null,"الاتحادية /فق الالية","2018-07-08"]
["احمد سلمان شنان فرج السوداني",900,900,null,100,null,"امن وسلامة الوزارة","2018-07-08"]
["جورج داوود جورج داوود",700,700,null,87,null,"الاتحادية","2018-07-08"]
["حيدر حميد عميد حوشان الحميداوي",250,{"$error":"#VALUE!"},null,50,null,"مديرية شرطة الكهرباء","2018-07-08","تم التسديد"]
["حيدر حميد عميد حوشان الحميداوي",67,{"$error":"#VALUE!"},null,38,null,"مديرية شرطة الكهرباء","2018-07-08","تم التسديد"]
["حسنين موات حسين إبراهيم",5000,5000,null,416,null,"الاتحادية /فق2 ل8 مقر اللواء","2018-07-08"]
["عدي هاشم صمد حسن الجبوري",1423,{"$error":"#VALUE!"},null,177,null,"مديرية نجدة بغداد / قاطع الطارمية","2018-07-08","تم التسديد"]
["عدي هاشم صمد حسن الجبوري",514,{"$error":"#VALUE!"},null,86,null,"مديرية نجدة بغداد / قاطع الطارمية","2018-07-08","تم التسديد"]
["تحسين سليم هاتو سلمان الفيصلاوي",600,600,null,100,null,"امن وسلامة الوزارة","2018-07-08"]
["محمد علي طه حميد البياتي",300,300,null,50,null,"الاتحادية / مقر القيادة","2018-07-08"]
["وفاء شنيور جلود زغير",25,25,null,25,null,"حماية المنشات والشخصيات","2018-07-08"]
["علي حسن توفيق جاسم",500,500,null,83,null,"الشرطة الاتحادية","2018-07-08"]
["يحيى حميد مجيد شاباز ",429,{"$error":"#VALUE!"},null,71,null,"مديرية نجدة بغداد","2018-07-08","تم التسديد"]
["قصي ساجد عبدالله عبد الرزاق",300,300,null,50,null,"محكمة تميز قوى الامن","2018-07-08"]
["رائد فيصل شاكر قمندار ",3200,3200,null,355,null,"مديرية شرطة بغداد","2018-07-08"]
["عباس شنون عبد الحسين قمبر",700,700,null,87,null,"الشرطة الاتحادية","2018-07-09"]
["بركات عبد الزهرة فيروز عبدالله",350,350,null,70,null,"مديرية العلاقات والاعلام","2018-07-09"]
["عامر عبد الرزاق محمد مجيد",711,{"$error":"#VALUE!"},null,89,null,"مديرية نجدة بغداد","2018-07-09","تم التسديد"]
["اياد كاظم ماضي شميل",700,700,null,88,null,"امن وسلامة الوزارة","2018-07-09"]
["عادل عبد الزهرة خلف جابر",700,700,null,88,null,"قوات حرس الحدود","2018-07-09"]
["عادل عبد الزهرة خلف جابر",350,350,null,70,null,"قوات حرس الحدود","2018-07-09"]
["عماد كاظم عبود عذار ",125,125,null,25,null,"مديرية شرطة بغداد","2018-07-09"]
["حسين علي حسين غضبان ",300,300,null,50,null,"الشرطة الاتحادية","2018-07-09"]
["قيس نوار إبراهيم معيوف",500,500,null,83,null,"مديرية شرطة بغداد","2018-07-09"]
["عباس احمد محمود هاشم ",850,850,null,95,null,"حماية المنشات والشخصيات","2018-07-09"]
["عباس فاضل حميد عريم",850,850,null,95,null,"كلية الشرطة","2018-07-09"]
["محمد مزعل إسماعيل جويعد",755,{"$error":"#VALUE!"},null,95,null,"مديرية شرطة الكهرباء","2018-07-09","تم التسديد"]
["سجاد محمد علي جعفر ",150,150,null,50,null,"الشرطة الاتحادية المقر","2018-07-09"]
["محمد احمد جمعة محمد",755,{"$error":"#VALUE!"},null,95,null,"مديرية نجدة بغداد","2018-07-09","تم التسديد"]
["محمد احمد جمعة محمد",150,{"$error":"#VALUE!"},null,50,null,"مديرية نجدة بغداد","2018-07-09","تم التسديد"]
["صفاء جميل علوان حسين ",3400,3400,null,377,null,"مديرية شرطة بغداد","2018-07-09"]
["منير سامي ياسين عباس",1700,1700,null,188,null,"مديرية شرطة ديالى","2018-07-09"]
["منير سامي ياسين عباس",900,900,null,100,null,"مديرية شرطة ديالى","2018-07-09"]
["مروان إبراهيم مسلط حسون",500,500,null,71,null,"مديرية امن الافراد","2018-07-09"]
["كريم عبدالله محمد ويس القره ولي",755,{"$error":"#VALUE!"},null,95,null,"مديرية شرطة الكهرباء","2018-07-09","تم التسديد"]
["عبد الأمير علوان عبود عليان",800,800,null,89,null,"مديرية التدريب والتأهيل","2018-07-09"]
["عبد الحميد ناجي صبر نجرس",800,800,null,89,null,"مديرية شرطة الانبار","2018-07-09"]
["عبد الحميد ناجي صبر نجرس",850,850,null,94,null,"مديرية شرطة الانبار","2018-07-09"]
["عبد الحميد ناجي صبر نجرس",1000,1000,null,143,null,"مديرية شرطة الانبار","2018-07-09"]
["حاتم عبد الكريم صالح مطر",800,800,null,89,null,"الشرطة الاتحادية","2018-07-09"]
["علي خضير عبد الحسين الحسناوي",3150,3150,null,450,null,"الشرطة الاتحادية","2018-07-09"]
["مؤيد حازم شاكراحمد محمد",1250,1250,null,125,null,"كلية الشرطة","2018-07-09"]
["علي حمزة جتان صبري ",2250,{"$error":"#VALUE!"},null,250,null,"مديرية شرطة الكهرباء","2018-07-09","تم التسديد"]
["علي حمزة جتان صبري ",712,{"$error":"#VALUE!"},null,88,null,"مديرية شرطة الكهرباء","2018-07-09","تم التسديد"]
["مرتضى عبد الاله عبد الشهيد عبود",2250,{"$error":"#VALUE!"},null,250,null,"مديرية شرطة الكهرباء","2018-07-09","تم التسديد"]
["مرتضى عبد الاله عبد الشهيد عبود",712,{"$error":"#VALUE!"},null,88,null,"مديرية شرطة الكهرباء","2018-07-09","تم التسديد"]
["عماد شاكر حمزة سلمان ",2250,{"$error":"#VALUE!"},null,250,null,"مديرية شرطة الكهرباء","2018-07-09","تم التسديد"]
["عماد شاكر حمزة سلمان ",712,{"$error":"#VALUE!"},null,88,null,"مديرية شرطة الكهرباء","2018-07-09","تم التسديد"]
["مازن محمد غني حمزة الجبوري",1250,1250,null,125,null,"حماية المنشات والشخصيات","2018-07-09"]
["مازن محمد غني حمزة الجبوري",1600,1600,null,177,null,"حماية المنشات والشخصيات","2018-07-09"]
["مازن محمد غني حمزة الجبوري",1250,1250,null,125,null,"حماية المنشات والشخصيات","2018-07-09"]
["هادي عبد رسن ثويني",1250,1250,null,125,null,"الشرطة الاتحادية","2018-07-09"]
["حيدر يابان عبدالله بداي ",450,450,null,75,null,"قوات حرس الحدود","2018-07-09"]
["طه علي جبار محمد",500,500,null,83,null,"مديرية تصليح اليات مقر الوزارة","2018-07-09"]
["حيدر فرحان محمد حسين ",800,800,null,88,null,"حماية المنشات والشخصيات","2018-07-09"]
["حيدر فرحان محمد حسين ",900,900,null,100,null,"حماية المنشات والشخصيات","2018-07-09"]
["كفاح عاصي عبد داوود",3200,3200,null,356,null,"الشرطة الاتحادية فق2","2018-07-10"]
["عباس شنون عبد الحسين قمبر",2550,2550,null,283,null,"الشرطة الاتحادية مقر القيادة","2018-07-10"]
["حيدر علي نعمة شبار ",1700,1700,null,189,null,"مديرية التدريب والتأهيل","2018-07-10"]
["نهاد يوسف بريسم عصاد",500,{"$error":"#VALUE!"},null,100,null,"مديرية نجدة بغداد","2018-07-10","تم التسديد"]
["نهاد يوسف بريسم عصاد",300,{"$error":"#VALUE!"},null,100,null,"مديرية نجدة بغداد","2018-07-10","تم التسديد"]
["حيدر عزيز حسن حسين العامري",3023,{"$f":"B1933-I1933","v":{"$error":"#VALUE!"}},null,377,null,"مديرية شرطة الكهرباء","2018-07-10","تم التسديد"]
["علاء سعد صكراشغيت",1500,1500,null,188,null,"الشرطة الاتحادية","2018-07-10"]
["عامر عبد الرزاق محمد مجيد",50,{"$error":"#VALUE!"},null,50,null,"مديرية شرطة النجدة","2018-07-10","تم التسديد"]
["احمد حسن ريسان جاسم الحسناوي",2250,2250,null,375,null,"الشرطة الاتحادية","2018-07-10"]
["حيدر احمد عباس سلوم ",450,450,null,75,null,"قيادة قوات الحدود","2018-07-10"]
["انفال شياع فيصل مسلم الرفاعي",500,500,null,83,null,"مديرية شرطة بغداد","2018-07-10"]
["انفال شياع فيصل مسلم الرفاعي",240,240,null,48,null,"مديرية شرطة بغداد","2018-07-10"]
["وسام قاسم عباس علي ",2550,2550,null,283,null,"امن وسلامة الوزارة","2018-07-10"]
["سامر ستار محمد موازي",450,450,null,75,null,"الشرطة الاتحادية","2018-07-10"]
["مصطفى نجاح قاسم ثجيل",800,800,null,88,null,"الشرطة الاتحادية القيادة","2018-07-10"]
["سعد خالد سلمان حسين",350,350,null,70,null,"مديرية الشهداء والجرحى","2018-07-10"]
["سعد خالد سلمان حسين",350,350,null,70,null,"مديرية الشهداء والجرحى","2018-07-10"]
["سعد خالد سلمان حسين",750,750,null,93,null,"مديرية الشهداء والجرحى","2018-07-10"]
["سعد خالد سلمان حسين",600,600,null,86,null,"مديرية الشهداء والجرحى","2018-07-10"]
["محمد سعيد جعفر احمد",1750,1750,null,175,null,"مديرية الصيانة والخدمات","2018-07-10"]
["سعد خالد سلمان حسين",450,450,null,75,null,"مديرية الشهداء والجرحى","2018-07-10"]
["عامر نوري نعمة لفتة",3150,{"$error":"#VALUE!"},null,350,null,"مديرية شرطة الكهرباء","2018-07-10","تم التسديد"]
["عباس جادر محمد كريم",3150,{"$error":"#VALUE!"},null,350,null,"مديرية شرطة الكهرباء","2018-07-10","تم التسديد"]
["رائد حكيم لطيف عباس",500,500,null,83,null,"مكتب الوزير","2018-07-11"]
["نبيل إبراهيم رحيم مزعل",900,{"$error":"#VALUE!"},null,100,null,"مديرية شرطة الكهرباء","2018-07-11","تم التسديد"]
["وفاء شنيور جلود زغير",1750,1750,null,175,null,"حماية المنشات والشخصيات","2018-07-11"]
["عقيل حسن حربي شبيب",280,{"$error":"#VALUE!"},null,70,null,"مديرية النجدة العامة","2018-07-11","تم التسديد"]
["عباس مطشر سعود احمد",4584,{"$error":"#VALUE!"},null,416,null,"مديرية النجدة العامة","2018-07-11","تم التسديد"]
["طاهر إبراهيم رحيم مزعل",2400,{"$error":"#VALUE!"},null,300,null,"مديرية شرطة الكهرباء","2018-07-11","تم التسديد"]
["حسن عبد علي حسون عباس ",1600,{"$error":"#VALUE!"},null,200,null,"مديرية شرطة الكهرباء","2018-07-11","تم التسديد"]
["حسن عبد علي حسون عباس ",600,{"$error":"#VALUE!"},null,100,null,"مديرية شرطة الكهرباء","2018-07-11","تم التسديد"]
["امجد كاظم رحيم حافظ",1600,{"$error":"#VALUE!"},null,200,null,"مديرية شرطة الكهرباء","2018-07-11","تم التسديد"]
["غالب عبيد مظلوم رويهي",800,{"$error":"#VALUE!"},null,100,null,"مديرية شرطة الكهرباء","2018-07-11","تم التسديد"]
["علي عزيز شنيشل موسم المسعداوي",600,600,null,85,null,"الشرطة الاتحادية","2018-07-11"]
["علي عزيز شنيشل موسم المسعداوي",150,150,null,30,null,"الشرطة الاتحادية","2018-07-11"]
["عدي هاشم صمد حسن الجبوري",750,{"$error":"#VALUE!"},null,150,null,"مديرية نجدة بغداد","2018-07-11","تم التسديد"]
["ياسين رحمة صكبان رسن",300,300,null,50,null,"امن وسلامة الوزارة","2018-07-11"]
["جاسم حميد جاسم عطية اللامي",3500,3500,null,350,null,"قيادة شرطة بغداد","2018-07-11"]
["جاسم حميد جاسم عطية اللامي",800,800,null,88,null,"قيادة شرطة بغداد","2018-07-11"]
["منصور حسن منصور سوادي الفريجي",1575,{"$error":"#VALUE!"},null,175,null,"مديرية شرطة الكهرباء","2018-07-11","تم التسديد"]
["سها صاحب عنون عبد العامري",1750,1750,null,175,null,"الشرطة الاتحادية","2018-07-11"]
["حسام محمد حداوي عنتاكي",3150,{"$error":"#VALUE!"},null,350,null,"مديرية شرطة الكهرباء","2018-07-11","تم التسديد"]
["مهند خالد فاضل ذنون",1750,1750,null,175,null,"الشرطة الاتحادية","2018-07-11"]
["فلاح حسن عداي جوعان جيزان",5000,5000,null,416,null,"مديرية مرور بغداد","2018-07-11"]
["علاء كريم جبار سلمان ",900,{"$error":"#VALUE!"},null,100,null,"مديرية شرطة الكهرباء","2018-07-11","تم التسديد"]
["نبيل إبراهيم رحيم مزعل",712,{"$error":"#VALUE!"},null,88,null,"مديرية شرطة الكهرباء","2018-07-11","تم التسديد"]
["علي عبد الأمير عباس عصري",250,{"$error":"#VALUE!"},null,50,null,"مديرية نجدة بغداد","2018-07-11","تم التسديد"]
["علي عبد الأمير عباس عصري",94,{"$error":"#VALUE!"},null,31,null,"مديرية نجدة بغداد","2018-07-11","تم التسديد"]
["علي عبد الأمير عباس عصري",150,{"$error":"#VALUE!"},null,50,null,"مديرية نجدة بغداد","2018-07-11","تم التسديد"]
["حسين عبد الرضا علي حسن اللامي ",800,800,null,88,null,"امن وسلامة الوزارة","2018-07-11"]
["حسين عبد الرضا علي حسن اللامي ",200,200,null,50,null,"امن وسلامة الوزارة","2018-07-11"]
["علاء إبراهيم جمعة عبد عون",1125,{"$error":"#VALUE!"},null,125,null,"مديرية نجدة الكاظمية","2018-07-11","تم التسديد"]
["ناصر إبراهيم مطير عباس العكيلي",3000,3000,null,300,null,"مديرية نجدة بغدد","2018-07-11"]
["حارث صبحي عبد الهادي",600,600,null,100,null,"مديرية شرطة الكهرباء","2018-07-11"]
["فراس خضير جاسم عواد اللامي",2400,2400,null,266,null,"الشرطة الاتحادية","2018-07-11"]
["فراس خضير جاسم عواد اللامي",600,600,null,85,null,"الشرطة الاتحادية","2018-07-11"]
["وفاء شنيور جلود زغير",700,700,null,87,null,"حماية المنشات والشخصيات","2018-07-11"]
["ياسر هاشم محمد فرج البخاتي ",2100,2100,null,263,null,"الشرطة الاتحادية","2018-07-11"]
["ياسر هاشم محمد فرج البخاتي ",175,175,null,35,null,"الشرطة الاتحادية","2018-07-11"]
["ياسر هاشم محمد فرج البخاتي ",800,800,null,100,null,"الشرطة الاتحادية","2018-07-11"]
["عباس مانع عطية حمد",900,900,null,100,null,"الشرطة الاتحادية فق 1","2018-07-11"]
["علي رعد ياسين حيدر ",1800,1800,null,200,null,"الشرطة الاتحادية فق 1","2018-07-11"]
["مصطفى ناجي كريدي بنيان",125,125,null,31,null,"امن وسلامة الوزارة","2018-07-11"]
["احمد حسين علوان صكر",1800,1800,null,200,null,"الشرطة الاتحادية فق 1","2018-07-11"]
["زيدون عماد مذخور محسن المحمداوي",700,700,null,100,null,"الشرطة الاتحادية فق 1","2018-07-11"]
["محمد صاحب شنيشل كاظم",2500,2500,null,250,null,"حماية المنشات والشخصيات","2018-07-12"]
["محمد صاحب شنيشل كاظم",600,600,null,86,null,"حماية المنشات والشخصيات","2018-07-12"]
["علي فاضل عبود علوش",800,{"$error":"#VALUE!"},null,100,null,"مديرية شرطة النجدة","2018-07-12","تم التسديد"]
["احمد عبد الحسين حسن الكناني",1400,1400,null,175,null,"الشرطة الاتحادية فق 5","2018-07-12"]
["يوسف علي محمد عواد",2100,{"$f":"B1997-I1997","v":2100},null,263,null,"مديرية النجدة العامة","2018-07-12"]
["محمد عبد علي حميد جاسم",900,900,null,100,null,"امن وسلامة الوزارة","2018-07-12"]
["احمد صاحب جمعة عناد الخالدي",1400,1400,null,175,null,"الشرطة الاتحادية فق 5","2018-07-12"]
["حيدر عبد الرضا عبد الحسن خلف",1400,1400,null,175,null,"امن وسلامة الوزارة","2018-07-12"]
["فلاح سلومي لعيبي يوسف",3256,{"$f":"B2317-I2317","v":3256},null,407,null,"حماية المنشات والشخصيات","2018-07-24"]
["حيدر صاحب عيسى موسى ",1080,1080,null,108,null,"مديرية النجدة العامة","2018-08-14"]
["عصام محمد علي جاسم الربيعي",1000,1000,null,166,null,"مديرية التدريب والتأهيل","2018-09-01"]
[]
[]
[]
[]
[]
[]
[]
[]
[]
[]
[]
[]
[]
[]
[]
[]
[]
[]
[]
[]
[]
[]
[]
[]
[]
[]
[]
[]
[]
[]
[]
[]
[]
[]
[]
[]
[]
[]
[]
[]
[]
[]
[]
[]
[]
[]
[]
[]
[]
[]
[]
[]
[]
[]
[]
[]
[]
[]
[]
[]
[]
[]
[]
[]
[]
[]
[]
[]
[]
[]
[]
[]
[]
[]
[]
[]
[]
[]
[]
[]
[]
[]
[]
[]
[]
[]
[]
[]
[]
[]
[]
[]
[]
[]
[]
[]
[]
[]
[]
[]
[]
[]
[]
[]
[]
[]
[]
[]
[]
[]
[]
[]
[]
[]
[]
[]
[]
[]
[]
[]
[]
[]
[]
[]
[]
[]
[]
[]
[]
[]
[]
[]
[]
[]
[]
[]
[]
[]
[]
[]
[]
[]
[]
[]
[]
[]
[]
[]
[]
[]
[]
[]
[]
[]
[]
[]
[]
[]
[]
[]
[]
[]
[]
[]
[]
[]
[]
[]
[]
[]
[]
[]
[]
[]
[]
[]
[]
[]
[]
[]
[]
[]
[]
[]
[]
[]
[]
[]
[]
[]
[]
[]
[]
[]
[]
[]
[]
[]
[]
[]
[]
[]
[]
[]
[]
[]
[]
[]
[]
[]
[]
[]
[]
[]
[]
[]
[]
[]
[]
[]
[]
[]
[]
[]
[]
[]
[]
[]
[]
[]
[]
[]
[]
[]
[]
[]
[]
[]
[]
[]
[]
[]
[]
[]
[]
[]
[]
[]
[]
[]
[]
[]
[]
[]
[]
[]
[]
[]
[]
[]
[]
[]
[]
[]
[]
[]
[]
[]
[]
[]
[]
[]
[]
[]
[]
[]
[]
[]
[]
[]
[]
[]
[]
[]
[]
[]
[]
[]
[]
[]
[]
[]
[]
[]
[]
[]
[]
[]
[]
[]
[]
[]
[]
[]
[]
[]
[]
[]
[]
[]
[]
[]
[]
[]
[]
[]
[]
[]
[]
[]
[]
[]
[]
[]
[]
[]
[]
[]
[]
[]
[]
[]
[]
[]
[]
[]
[]
[]
[]
[]
[]
[]
[]
[]
[]
[]
[]
[]
[]
[]
[]
[]
[]
[]
[]
[]
[]
[]
[]
[]
[]
[]
[]
[]
[]
[]
[]
[]
[]
[]
[]
[]
[]
[]
[]
[]
[]
[]
[]
[]
[]
[]
[]
[]
[]
[]
[]
[]
[]
[]
[]
[]
[]
[]
[]
[]
[]
[]
[]
[]
[]
[]
[]
[]
[]
[]
[]
[]
[]
[]
[]
[]
[]
[]
[]
[]
[]
[]
[]
[]
[]
[]
[]
[]
[]
[]
[]
[]
[]
[]
[]
[]
[]
[]
[]
[]
[]
[]
[]
[]
[]
[]
[]
[]
[]
[]
[]
[]
[]
[]
[]
[]
[]
[]
[]
[]
[]
[]
[]
[]
[]
[]
[]
[]
[]
[]
[]
[]
[]
[]
[]
[]
[]
[]
[]
[]
[]
[]
[]
[]
[]
[]
[]
[]
[]
[]
[]
[]
[]
[]
[]
[]
[]
[]
[]
[]
[]
[]
[]
[]
[]
[]
[]
[]
[]
[]
[]
[]
[]
[]
[]
[]
[]
[]
[]
[]
[]
[]
[]
[]
[]
[]
[]
[]
[]
[]
[]
[]
[]
[]
[]
[]
[]
[]
[]
[]
[]
[]
[]
[]
[]
[]
[]
[]
[]
[]
[]
[]
[]
[]
[]
[]
[]
[]
[]
[]
[]
[]
[]
[]
[]
[]
[]
[]
[]
[]
[]
[]
[]
[]
[]
[]
[]
[]
[]
[]
[]
[]
[]
[]
[]
[]
[]
[]
[]
[]
[]
[]
[]
[]
[]
[]
[]
[]
[]
[]
[]
[]
[]
[]
[]
[]
[]
[]
[]
[]
[]
[]
[]
[]
[]
[]
[]
[]
[]
[]
[]
[]
[]
[]
[]
[]
[]
[]
[]
[]
[]
[]
[]
[]
[]
[]
[]
[]
[]
[]
[]
[]
[]
[]
[]
[]
[]
[]
[]
[]
[]
[]
[]
[]
[]
[]
[]
[]
[]
[]
[]
[]
[]
[]
[]
[]
[]
[]
[]
[]
[]
[]
[]
[]
[]
[]
[]
[]
[]
[]
[]
[]
[]
[]
[]
[]
[]
[]
[]
[]
[]
[]
[]
[]
[]
[]
[]
[]
[]
[]
[]
[]
[]
[]
[]
[]
[]
[]
[]
[]
[]
[]
[]
[]
[]
[]
[]
[]
[]
[]
[]
[]
[]
[]
[]
[]
[]
[]
[]
[]
[]
[]
[]
[]
[]
[]
[]
[]
[]
[]
[]
[]
[]
[]
[]
[]
[]
[]
[]
[]
[]
[]
[]
[]
[]
[]
[]
[]
[]
[]
[]
[]
[]
[]
[]
[]
[]
[]
[]
[]
[]
[]
[]
[]
[]
[]
[]
[]
[]
[]
[]
[]
[]
[]
[]
[]
[]
[]
[]
[]
[]
[]
[]
[]
[]
[]
[]
[]
[]
[]
[]
[]
[]
[]
[]
[]
[]
[]
[]
[]
[]
[]
[]
[]
[]
[]
[]
[]
[]
[]
[]
[]
[]
[]
[]
[]
[]
[]
[]
[]
[]
[]
[]
[]
[]
[]
[]
[]
[]
[]
[]
[]
[]
[]
[]
[]
[]
[]
[]
[]
[]
[]
[]
[]
[]
[]
[]
[]
[]
[]
[]
[]
[]
[]
[]
[]
[]
[]
[]
[]
[]
[]
[]
[]
[]
[]
[]
[]
[]
[]
[]
[]
[]
[]
[]
[]
[]
[]
[]
[]
[]
[]
[]
[]
[]
[]
[]
[]
[]
[]
[]
[]
[]
[]
[]
[]
[]
[]
[]
[]
[]
[]
[]
[]
[]
[]
[]
[]
[]
[]
[]
[]
[]
[]
[]
[]
[]
[]
[]
[]
[]
[]
[]
[]
[]
[]
[]
[]
[]
[]
[]
[]
[]
[]
[]
[]
[]
[]
[]
[]
[]
[]
[]
[]
[]
[]
[]
[]
[]
[]
[]
[]
[]
[]
[]
[]
[]
[]
[]
[]
[]
[]
[]
[]
[]
[]
[]
[]
[]
[]
[]
[]
[]
[]
[]
[]
[]
[]
[]
[]
[]
[]
[]
[]
[]
[]
[]
[]
[]
[]
[]
[]
[]
[]
[]
[]
[]
[]
[]
[]
[]
[]
[]
[]
[]
[]
[]
[]
[]
[]
[]
[]
[]
[]
[]
[]
[]
[]
[]
[]
[]
[]
[]
[]
[]
[]
[]
[]
[]
[]
[]
[]
[]
[]
[]
[]
[]
[]
[]
[]
[]
[]
[]
[]
[]
[]
[]
[]
[]
[]
[]
[]
[]
[]
[]
[]
[]
[]
[]
[]
[]
[]
[]
[]
[]
[]
[]
[]
[]
[]
[]
[]
[]
[]
[]
[]
[]
[]
[]
[]
[]
[]
[]
[]
[]
[]
[]
[]
[]
[]
[]
[]
[]
[]
[]
[]
[]
[]
[]
[]
[]
[]
[]
[]
[]
[]
[]
[]
[]
[]
[]
[]
[]
[]
[]
[]
[]
[]
[]
[]
[]
[]
[]
[]
[]
[]
[]
[]
[]
[]
[]
[]
[]
[]
[]
[]
[]
[]
[]
[]
[]
[]
[]
[]
[]
[]
[]
[]
[]
[]
[]
[]
[]
[]
[]
[]
[]
[]
[]
[]
[]
[]
[]
[]
[]
[]
[]
[]
[]
[]
[]
[]
[]
[]
[]
[]
[]
[]
[]
[]
[]
[]
[]
[]
[]
[]
[]
[]
[]
[]
[]
[]
[]
[]
[]
[]
[]
[]
[]
[]
[]
[]
[]
[]
[]
[]
[]
[]
[]
[]
[]
[]
[]
[]
[]
[]
[]
[]
[]
[]
[]
[]
[]
[]
[]
[]
[]
[]
[]
[]
[]
[]
[]
[]
[]
[]
[]
[]
[]
[]
[]
[]
[]
[]
[]
[]
[]
[]
[]
[]
[]
[]
[]
[]
[]
[]
[]
[]
[]
[]
[]
[]
[]
[]
[]
[]
[]
[]
[]
[]
[]
[]
[]
[]
[]
[]
[]
[]
[]
[]
[]
[]
[]
[]
[]
[]
[]
[]
[]
[]
[]
[]
[]
[]
[]
[]
[]
[]
[]
[]
[]
[]
[]
[]
[]
[]
[]
[]
[]
[]
[]
[]
[]
[]
[]
[]
[]
[]
[]
[]
[]
[]
[]
[]
[]
[]
[]
[]
[]
[]
[]
[]
[]
[]
[]
[]
[]
[]
[]
[]
[]
[]
[]
[]
[]
[]
[]
[]
[]
[]
[]
[]
[]
[]
[]
[]
[]
[]
[]
[]
[]
[]
[]
[]
[]
[]
[]
[]
[]
[]
[]
[]
[]
[]
[]
[]
[]
[]
[]
[]
[]
[]
[]
[]
[]
[]
[]
[]
[]
[]
[]
[]
[]
[]
[]
[]
[]
[]
[]
[]
[]
[]
[]
[]
[]
[]
[]
[]
[]
[]
[]
[]
[]
[]
[]
[]
[]
[]
[]
[]
[]
[]
[]
[]
[]
[]
[]
[]
[]
[]
[]
[]
[]
[]
[]
[]
[]
[]
[]
[]
[]
[]
[]
[]
[]
[]
[]
[]
[]
[]
[]
[]
[]
[]
[]
[]
[]
[]
[]
[]
[]
[]
[]
[]
[]
[]
[]
[]
[]
[]
[]
[]
[]
[]
[]
[]
[]
[]
[]
[]
[]
[]
[]
[]
[]
[]
[]
[]
[]
[]
[]
[]
[]
[]
[]
[]
[]
[]
[]
[]
[]
[]
[]
[]
[]
[]
[]
[]
[]
[]
[]
[]
[]
[]
[]
[]
[]
[]
[]
[]
[]
[]
[]
[]
[]
[]
[]
[]
[]
[]
[]
[]
[]
[]
[]
[]
[]
[]
[]
[]
[]
[]
[]
[]
[]
[]
[]
[]
[]
[]
[]
[]
[]
[]
[]
[]
[]
[]
[]
[]
[]
[]
[]
[]
[]
[]
[]
[]
[]
[]
[]
[]
[]
[]
[]
[]
[]
[]
[]
[]
[]
[]
[]
[]
[]
[]
[]
[]
[]
[]
[]
[]
[]
[]
[]
[]
[]
[]
[]
[]
[]
[]
[]
[]
[]
[]
[]
[]
[]
[]
[]
[]
[]
[]
[]
[]
[]
[]
[]
[]
[]
[]
[]
[]
[]
[]
[]
[]
[]
[]
[]
[]
[]
[]
[]
[]
[]
[]
[]
[]
[]
[]
[]
[]
[]
[]
[]
[]
[]
[]
[]
[]
[]
[]
[]
[]
[]
[]
[]
[]
[]
[]
[]
[]
[]
[]
[]
[]
[]
[]
[]
[]
[]
[]
[]
[]
[]
[]
[]
[]
[]
[]
[]
[]
[]
[]
[]
[]
[]
[]
[]
[]
[]
[]
[]
[]
[]
[]
[]
[]
[]
[]
[]
[]
[]
[]
[]
[]
[]
[]
[]
[]
[]
[]
[]
[]
[]
[]
[]
[]
[]
[]
[]
[]
[]
[]
[]
[]
[]
[]
[]
[]
[]
[]
[]
[]
[]
[]
[]
[]
[]
[]
[]
[]
[]
[]
[]
[]
[]
[]
[]
[]
[]
[]
[]
[]
[]
[]
[]
[]
[]
[]
[]
[]
[]
[]
[]
[]
[]
[]
[]
[]
[]
[]
[]
[]
[]
[]
[]
[]
[]
[]
[]
[]
[]
[]
[]
[]
[]
[]
[]
[]
[]
[]
[]
[]
[]
[]
[]
[]
[]
[]
[]
[]
[]
[]
[]
[]
[]
[]
[]
[]
[]
[]
[]
[]
[]
[]
[]
[]
[]
[]
[]
[]
[]
[]
[]
[]
[]
[]
[]
[]
[]
[]
[]
[]
[]
[]
[]
[]
[]
[]
[]
[]
[]
[]
[]
[]
[]
[]
[]
[]
[]
[]
[]
[]
[]
[]
[]
[]
[]
[]
[]
[]
[]
[]
[]
[]
[]
[]
[]
[]
[]
[]
[]
[]
[]
[]
[]
[]
[]
[]
[]
[]
[]
[]
[]
[]
[]
[]
[]
[]
[]
[]
[]
[]
[]
[]
[]
[]
[]
[]
[]
[]
[]
[]
[]
[]
[]
[]
[]
[]
[]
[]
[]
[]
[]
[]
[]
[]
[]
[]
[]
[]
[]
[]
[]
[]
[]
[]
[]
[]
[]
[]
[]
[]
[]
[]
[]
[]
[]
[]
[]
[]
[]
[]
[]
[]
[]
[]
[]
[]
[]
[]
[]
[]
[]
[]
[]
[]
[]
[]
[]
[]
[]
[]
[]
[]
[]
[]
[]
[]
[]
[]
[]
[]
[]
[]
[]
[]
[]
[]
[]
[]
[]
[]
[]
[]
[]
[]
[]
[]
[]
[]
[]
[]
[]
[]
[]
[]
[]
[]
[]
[]
[]
[]
[]
[]
[]
[]
[]
[]
[]
[]
[]
[]
[]
[]
[]
[]
[]
[]
[]
[]
[]
[]
[]
[]
[]
[]
[]
[]
[]
[]
[]
[]
[]
[]
[]
[]
[]
[]
[]
[]
[]
[]
[]
[]
[]
[]
[]
[]
[]
[]
[]
[]
[]
[]
[]
[]
[]
[]
[]
[]
[]
[]
[]
[]
[]
[]
[]
[]
[]
[]
[]
[]
[]
[]
[]
[]
[]
[]
[]
[]
[]
[]
[]
[]
[]
[]
[]
[]
[]
[]
[]
[]
[]
[]
[]
[]
[]
[]
[]
[]
[]
[]
[]
[]
[]
[]
[]
[]
[]
[]
[]
[]
[]
[]
[]
[]
[]
[]
[]
[]
[]
[]
[]
[]
[]
[]
[]
[]
[]
[]
[]
[]
[]
[]
[]
[]
[]
[]
[]
[]
[]
[]
[]
[]
[]
[]
[]
[]
[]
[]
[]
[]
[]
[]
[]
[]
[]
[]
[]
[]
[]
[]
[]
[]
[]
[]
[]
[]
[]
[]
[]
[]
[]
[]
[]
[]
[]
[]
[]
[]
[]
[]
[]
[]
[]
[]
[]
[]
[]
[]
[]
[]
[]
[]
[]
[]
[]
[]
[]
[]
[]
[]
[]
[]
[]
[]
[]
[]
[]
[]
[]
[]
[]
[]
[]
[]
[]
[]
[]
[]
[]
[]
[]
[]
[]
[]
[]
[]
[]
[]
[]
[]
[]
[]
[]
[]
[]
[]
[]
[]
[]
[]
[]
[]
[]
[]
[]
[]
[]
[]
[]
[]
[]
[]
[]
[]
[]
[]
[]
[]
[]
[]
[]
[]
[]
[]
[]
[]
[]
[]
[]
[]
[]
[]
[]
[]
[]
[]
[]
[]
[]
[]
[]
[]
[]
[]
[]
[]
[]
[]
[]
[]
[]
[]
[]
[]
[]
[]
[]
[]
[]
[]
[]
[]
[]
[]
[]
[]
[]
[]
[]
[]
[]
[]
[]
[]
[]
[]
[]
[]
[]
[]
[]
[]
[]
[]
[]
[]
[]
[]
[]
[]
[]
[]
[]
[]
[]
[]
[]
[]
[]
[]
[]
[]
[]
[]
[]
[]
[]
[]
[]
[]
[]
[]
[]
[]
[]
[]
[]
[]
[]
[]
[]
[]
[]
[]
[]
[]
[]
[]
[]
[]
[]
[]
[]
[]
[]
[]
[]
[]
[]
[]
[]
[]
[]
[]
[]
[]
[]
[]
[]
[]
[]
[]
[]
[]
[]
[]
[]
[]
[]
[]
[]
[]
[]
[]
[]
[]
[]
[]
[]
[]
[]
[]
[]
[]
[]
[]
[]
[]
[]
[]
[]
[]
[]
[]
[]
[]
[]
[]
[]
[]
[]
[]
[]
[]
[]
[]
[]
[]
[]
[]
[]
[]
[]
[]
[]
[]
[]
[]
[]
[]
[]
[]
[]
[]
[]
[]
[]
[]
[]
[]
[]
[]
[]
[]
[]
[]
[]
[]
[]
[]
[]
[]
[]
[]
[]
[]
[]
[]
[]
[]
[]
[]
[]
[]
[null,{"$f":"SUBTOTAL(9,B1:B1048535)","v":38179149}]